Service Area,Service Division,Expense Type,Expense Code,Detailed Expense Type,Payment Date,Transaction Number,Amount Exc Vat,Supplier Name
Adult and Health Services,Central/Other,Employees,80025,Agency Staff,01-Dec-16,3214092-334518,"137,428.32",DE POEL MANAGED SERVICES LTD.
Adult and Health Services,Commissioning inc Supporting People,Premises,145050,Cleaning and Domestic Supplies,01-Dec-16,3213967-62483,"11,160.50",ANLABY OFFICE CLEANING SERVICES LTD.
Adult and Health Services,Commissioning inc Supporting People,Supplies and Services,338066,Services,01-Dec-16,3214342-135153,"9,758.80",NORTHUMBERLAND COUNTY COUNCIL.
Adult and Health Services,Commissioning inc Supporting People,Third Party Payments,440051,Other Third Party Payments,01-Dec-16,3214097-OCTOBER16,"3,841.67",DERIC YOUTH BUS PROJECT.
Adult and Health Services,Head of Adults,Supplies and Services,338365,Services,01-Dec-16,3214552-OP/I117414,"3,480.00",TOTAL HYGIENE LTD.
Adult and Health Services,Head of Adults,Supplies and Services,304259,Equipment and Materials,01-Dec-16,3213978-IP869036,"1,196.00",ARJOHUNTLEIGH UK.
Adult and Health Services,Head of Adults,Supplies and Services,338045,Services,01-Dec-16,305601-1019548,650,MJO
Adult and Health Services,Head of Adults,Supplies and Services,338045,Services,01-Dec-16,3213935-204818,"2,850.00",39EC
Adult and Health Services,Head of Adults,Third Party Payments,479102,Purchase of Care,01-Dec-16,3214334-0000031468,"1,633.92",NORTH EAST AUTISM SOCIETY.
Adult and Health Services,Head of Adults,Third Party Payments,470101,Purchase of Care,01-Dec-16,3214565-0003,"10,548.00",TURNAROUND HOMES (3 TO 13).
Adult and Health Services,Head of Adults,Transport,230005,Contract Hire,01-Dec-16,3213938-F2/AC,630,AABAT TAXIS.
Adult and Health Services,Head of Adults,Supplies and Services,338367,Services,01-Dec-16,3214034-36083,675,CARE ABILITY.
Adult and Health Services,Head of Adults,Third Party Payments,478101,Purchase of Care,01-Dec-16,305609-2345448,"1,395.40",REDACTED - PAYMENT TO INDIVIDUAL
Adult and Health Services,Planning & Service Strategy,Supplies and Services,338089,Services,01-Dec-16,3214042-1206,"1,990.00",CB LEARNING & DEVELOPMENT LTD.
Adult and Health Services,Planning & Service Strategy,Supplies and Services,338089,Services,01-Dec-16,3214227-461,865,KRONOS LEARNING LTD.
Adult and Health Services,Public Health,Third Party Payments,460802,Contract Payments,01-Dec-16,3214581-10300043970,"5,063.00",VIRGIN CARE SERVICES LTD (VCSL NONE SURREY).
Adult and Health Services,Public Health,Third Party Payments,460803,Contract Payments,01-Dec-16,3214174-2510004950,"937,500.00",HARROGATE & DISTRICT NHS FOUNDATION TRUST.
Children and Young Peoples Services,Childrens Services,Employees,80025,Agency Staff,01-Dec-16,3214582-229460,749.85,VISION FOR EDUCATION LTD.
Children and Young Peoples Services,Childrens Services,Supplies and Services,352001,Conference Expenses,01-Dec-16,3214146-QUOTE7862,900,FREEDOM PROGRAMME LTD.
Children and Young Peoples Services,Childrens Services,Supplies and Services,352001,Conference Expenses,01-Dec-16,3214325-019,620,NICOLA JONES EDUCATION CONSULTANCY & TRAINING.
Children and Young Peoples Services,Childrens Services,Supplies and Services,304252,Equipment and Materials,01-Dec-16,3213951-45739,806,ALARM RADIO MONITORING LTD.
Children and Young Peoples Services,Childrens Services,Supplies and Services,338044,Services,01-Dec-16,3214109-03112016,"1,241.85",REDACTED - PAYMENT TO INDIVIDUAL
Children and Young Peoples Services,Childrens Services,Premises,108099,Service Repairs and Maintenance,01-Dec-16,3214184-7080582473,"5,388.52",HONEYWELL NOVAR SYSTEMS LTD.
Children and Young Peoples Services,Childrens Services,Supplies and Services,364352,Grants to Voluntary Organisations,01-Dec-16,305567-1078,"1,400.00",CITY OF SUNDERLAND YMCA LTD.
Children and Young Peoples Services,Childrens Services,Supplies and Services,364999,Grants to Voluntary Organisations,01-Dec-16,305574-CAS-11-2016-129,"1,075.00",EASINGTON YOUTH & COMMUNITY COMMITTEE.
Children and Young Peoples Services,Childrens Services,Supplies and Services,364999,Grants to Voluntary Organisations,01-Dec-16,305574-CAS-11-2016-144,645,EASINGTON YOUTH & COMMUNITY COMMITTEE.
Children and Young Peoples Services,Childrens Services,Supplies and Services,384199,Miscellaneous Expenses,01-Dec-16,3213993-SIN025149,720.5,BEAMISH MUSEUM LTD.
Children and Young Peoples Services,Childrens Services,Supplies and Services,384199,Miscellaneous Expenses,01-Dec-16,3214036-6,675,REDACTED - PAYMENT TO INDIVIDUAL
Children and Young Peoples Services,Childrens Services,Supplies and Services,338099,Services,01-Dec-16,3214137-0114,"1,800.00",FEEL GOOD FACTORY CIC.
Children and Young Peoples Services,Childrens Services,Third Party Payments,440999,Other Third Party Payments,01-Dec-16,3214124-02243,"1,272.00",EAST DURHAM PARTNERSHIP LTD.
Children and Young Peoples Services,Childrens Services,Supplies and Services,364310,Grants to Voluntary Organisations,01-Dec-16,3214371-CAS-11-2016-238,"2,310.30",REDACTED - PAYMENT TO INDIVIDUAL
Children and Young Peoples Services,Childrens Services,Supplies and Services,364310,Grants to Voluntary Organisations,01-Dec-16,3214497-CAS-11-2016-239,"4,739.60",REDACTED - PAYMENT TO INDIVIDUAL
Children and Young Peoples Services,Childrens Services,Supplies and Services,364310,Grants to Voluntary Organisations,01-Dec-16,3214500-CAS-11-2016-224,541.32,REDACTED - PAYMENT TO INDIVIDUAL
Children and Young Peoples Services,Childrens Services,Third Party Payments,486043,Service Level Agreements,01-Dec-16,3214396-15612,"1,760.00",POST ADOPTION CENTRE.
Children and Young Peoples Services,Childrens Services,Supplies and Services,344033,Telephones,01-Dec-16,3214571-203127,572.7,UNIFY BUSINESS SOLUTIONS LTD.
Children and Young Peoples Services,Childrens Services,Supplies and Services,364358,Grants to Voluntary Organisations,01-Dec-16,3214282-CAS-11-2016-222,666,REDACTED - PAYMENT TO INDIVIDUAL
Children and Young Peoples Services,Education,Supplies and Services,324500,Provisions,01-Dec-16,3214517-SI-TSW-1030793,"3,746.15",TAYLOR SHAW LTD.
Children and Young Peoples Services,Education,Supplies and Services,338001,Services,01-Dec-16,3213982-16030245,"9,900.00",ATKINS GLOBAL.
Children and Young Peoples Services,Education,Construction Work,908105,Construction work,01-Dec-16,3213975-6904,"2,390.00",ARC ENVIRONMENTAL LTD.
Children and Young Peoples Services,Education,Construction Work,908105,Construction work,01-Dec-16,3214494-10327,"6,993.60",STEADFAST SECURITY SOLUTIONS LTD.
Children and Young Peoples Services,Education,Supplies and Services,338027,Services,01-Dec-16,3214336-874,"2,038.69",NORTH EAST ENVIRONMENT NETWORK LTD.
Children and Young Peoples Services,Education,Transport,230003,Contract Hire,01-Dec-16,3214595-STJOHN/OCT/16,"6,672.00",WEARDALE MOTOR SERVICES LTD.
Children and Young Peoples Services,Education,Transport,230003,Contract Hire,01-Dec-16,3214595-STJOHN/SEP/16,"7,506.00",WEARDALE MOTOR SERVICES LTD.
Children and Young Peoples Services,Education,Transport,230006,Contract Hire,01-Dec-16,3214236-CAS-11-2016-202,"1,689.00",REDACTED - PAYMENT TO INDIVIDUAL
Children and Young Peoples Services,Education,Transport,230008,Contract Hire,01-Dec-16,3214338-M0007270543,"1,140.00",NORTH TYNESIDE COUNCIL.
Children and Young Peoples Services,Education,Supplies and Services,304259,Equipment and Materials,01-Dec-16,3214330-INV1029569,"1,174.00",NORMANS (BURTON ON TRENT) LTD.
Children and Young Peoples Services,Education,Supplies and Services,338035,Services,01-Dec-16,3214314-INV222651,880,NCFE-CACHE.
Children and Young Peoples Services,Education,Supplies and Services,338035,Services,01-Dec-16,3214314-INV222688,"1,320.00",NCFE-CACHE.
Children and Young Peoples Services,Education,Supplies and Services,384199,Miscellaneous Expenses,01-Dec-16,3214379-C1535,"1,814.40",PETERLEE TOWN COUNCIL.
Children and Young Peoples Services,Education,Supplies and Services,338099,Services,01-Dec-16,3214316-2016081113,620.25,NEOPOST FINANCE LTD.
Children and Young Peoples Services,Education,Third Party Payments,440999,Other Third Party Payments,01-Dec-16,3214471-1,"17,595.00",SMARTT NORTH EAST LTD.
Children and Young Peoples Services,Education,Fees,901002,Professional fees,01-Dec-16,3214153-107549827,"7,024.20",GATESHEAD COUNCIL.
Children and Young Peoples Services,Education,Employees,40149,Recruitment Instruction and Training,01-Dec-16,3214191-IOSINV010823,960,INSTITUTE OF SWIMMING.
Dedicated Schools Grant,Dedicated Schools Grant,Central Support and Capital,689996,Unclassified,01-Dec-16,3214185-CAS-11-2016-236,"2,853.39",HOPE WOOD ACADEMY.
Regeneration and Local Services,Culture & Sport,Supplies and Services,324117,Provisions,01-Dec-16,3214268-192316,597.76,MARK TONEY & CO LTD.
Regeneration and Local Services,Culture & Sport,Supplies and Services,324117,Provisions,01-Dec-16,3214364-22/2162178,685.09,PALMER & HARVEY MCLANE LTD.
Regeneration and Local Services,Culture & Sport,Supplies and Services,324117,Provisions,01-Dec-16,3214462-2150,945,SHOW SOUVENIRS LTD.
Regeneration and Local Services,Culture & Sport,Construction Work,908105,Construction work,01-Dec-16,3214288-0315-135371,"4,649.00",MONTAGU EVANS LLP.
Regeneration and Local Services,Culture & Sport,Supplies and Services,338047,Services,01-Dec-16,3214061-000957,"2,940.00",CLEARVIEW TECHNICAL LTD.
Regeneration and Local Services,Culture & Sport,Supplies and Services,338047,Services,01-Dec-16,3214115-ONEFORTHEROAD,"2,465.73",DURHAM DRAMATIC SOCIETY.
Regeneration and Local Services,Culture & Sport,Supplies and Services,338047,Services,01-Dec-16,3214198-392,"3,500.00",REDACTED - PAYMENT TO INDIVIDUAL
Regeneration and Local Services,Culture & Sport,Supplies and Services,338047,Services,01-Dec-16,3214386-INV32976,681.25,PICTUREHOUSE ENTERTAINMENT LTD.
Regeneration and Local Services,Culture & Sport,Supplies and Services,338047,Services,01-Dec-16,3214443-020,"2,778.38",SALLY COLLETT.
Regeneration and Local Services,Culture & Sport,Supplies and Services,338047,Services,01-Dec-16,3214477-1133808-1/1133809-1,"1,403.20",SONY PICTURES RELEASING.
Regeneration and Local Services,Culture & Sport,Supplies and Services,338047,Services,01-Dec-16,3214502-SM150WDWGTA,"3,357.00",STILLMOTION PRODUCTION LTD.
Regeneration and Local Services,Culture & Sport,Supplies and Services,338047,Services,01-Dec-16,3214567-GB16B0138214,"1,220.00",TWENTIETH CENTURY FOX FILM COMPANY LTD.
Regeneration and Local Services,Culture & Sport,Supplies and Services,338047,Services,01-Dec-16,3214588-5565,"5,700.00",VORTEX LIGHTING LTD.
Regeneration and Local Services,Culture & Sport,Supplies and Services,338047,Services,01-Dec-16,3214588-5566,"3,000.00",VORTEX LIGHTING LTD.
Regeneration and Local Services,Culture & Sport,Supplies and Services,338047,Services,01-Dec-16,3214591-22413536,623.34,WARNER BROS ENTERTAINMENT UK LTD.
Regeneration and Local Services,Culture & Sport,Supplies and Services,304259,Equipment and Materials,01-Dec-16,3213937-9834,"1,630.00",A & P CHAMBERS LTD.
Regeneration and Local Services,Culture & Sport,Supplies and Services,304259,Equipment and Materials,01-Dec-16,3213939-116295747,"1,576.46",AC ENTERTAINMENT TECHNOLOGIES.
Regeneration and Local Services,Culture & Sport,Supplies and Services,304259,Equipment and Materials,01-Dec-16,3213942-4100547646,"1,325.00",ACTIVATION LTD.
Regeneration and Local Services,Culture & Sport,Supplies and Services,304259,Equipment and Materials,01-Dec-16,3214299-161217DURHAM,900,MR MICHAEL VINCENT THOMAS T/A MIKE`S DONKEYS.
Regeneration and Local Services,Culture & Sport,Supplies and Services,304259,Equipment and Materials,01-Dec-16,3214328-6249,825,NITELITES LTD.
Regeneration and Local Services,Culture & Sport,Supplies and Services,384199,Miscellaneous Expenses,01-Dec-16,3214079-INV-00064,"1,725.00",CRAIG WALTON.
Regeneration and Local Services,Culture & Sport,Supplies and Services,384199,Miscellaneous Expenses,01-Dec-16,3214280-2429,"1,000.00",MID NITE EXPRESS.
Regeneration and Local Services,Culture & Sport,Supplies and Services,384199,Miscellaneous Expenses,01-Dec-16,3214376-4100553927,970,PETER ANDERSON.
Regeneration and Local Services,Culture & Sport,Supplies and Services,338099,Services,01-Dec-16,3214114-NEI-INC-11-2016-036,660,DURHAM CRICKET BOARD COACHES ASSOCIATION.
Regeneration and Local Services,Culture & Sport,Supplies and Services,372009,Subscriptions,01-Dec-16,3214375-5014629,"1,288.50",PERFORMING RIGHT SOCIETY LTD T/A PRS FOR MUSIC.
Regeneration and Local Services,Direct Services,Premises,145023,Cleaning and Domestic Supplies,01-Dec-16,3214167-06/622359,"2,156.80",GREENHAM TRADING LTD.
Regeneration and Local Services,Direct Services,Debtors,930046,Debtor-leasing,01-Dec-16,3214467-72796,"10,728.19",SIMON BAILES LTD.
Regeneration and Local Services,Direct Services,Debtors,930046,Debtor-leasing,01-Dec-16,3214467-72797,"10,728.19",SIMON BAILES LTD.
Regeneration and Local Services,Direct Services,Transport,215005,Running Costs of Vehicles,01-Dec-16,3214352-205056,"13,647.97",OIL NRG LTD.
Regeneration and Local Services,Direct Services,Transport,215005,Running Costs of Vehicles,01-Dec-16,3214352-205455,"4,721.34",OIL NRG LTD.
Regeneration and Local Services,Direct Services,Transport,215005,Running Costs of Vehicles,01-Dec-16,3214352-205460,"15,895.21",OIL NRG LTD.
Regeneration and Local Services,Direct Services,Supplies and Services,304221,Equipment and Materials,01-Dec-16,3214024-1650/0410772,525.35,BSS GROUP PLC.
Regeneration and Local Services,Direct Services,Supplies and Services,304221,Equipment and Materials,01-Dec-16,3214176-4538067,"3,969.60",HEADLAM (FLOORCOVERING DISTRIBUTORS) LTD.
Regeneration and Local Services,Direct Services,Supplies and Services,304221,Equipment and Materials,01-Dec-16,3214217-B11208376,"1,308.00",JT DOVE LTD.
Regeneration and Local Services,Direct Services,Supplies and Services,304221,Equipment and Materials,01-Dec-16,3214217-BII208231,500.7,JT DOVE LTD.
Regeneration and Local Services,Direct Services,Supplies and Services,304221,Equipment and Materials,01-Dec-16,3214248-3897708,679.06,LONDON GENERAL SALES LTD.
Regeneration and Local Services,Direct Services,Supplies and Services,304221,Equipment and Materials,01-Dec-16,3214318-063414,564.65,NEW ROW FARM NURSERIES.
Regeneration and Local Services,Direct Services,Supplies and Services,304221,Equipment and Materials,01-Dec-16,3214365-XL184748,503.15,PARK ELECTRICAL DISTRIBUTORS LTD.
Regeneration and Local Services,Direct Services,Supplies and Services,304221,Equipment and Materials,01-Dec-16,3214515-2164713,847.67,T CROSSLING & CO LTD.
Regeneration and Local Services,Direct Services,Supplies and Services,304221,Equipment and Materials,01-Dec-16,3214515-2164714,"1,873.35",T CROSSLING & CO LTD.
Regeneration and Local Services,Direct Services,Supplies and Services,304221,Equipment and Materials,01-Dec-16,3214601-37541690,569,WOLSELEY UK LTD.
Regeneration and Local Services,Direct Services,Supplies and Services,304259,Equipment and Materials,01-Dec-16,3214402-15389,"1,969.10",PROBRUSH T/A NORTHERN MUNICIPAL SPARES LTD.
Regeneration and Local Services,Direct Services,Transport,210057,Repair and Maintenance of Vehicles,01-Dec-16,3214020-2657333,856,BRITISH STEEL LTD.
Regeneration and Local Services,Direct Services,Transport,210057,Repair and Maintenance of Vehicles,01-Dec-16,3214025-SI-169634,989.09,BUNCE (ASHBURY) LTD.
Regeneration and Local Services,Direct Services,Transport,210057,Repair and Maintenance of Vehicles,01-Dec-16,3214025-SI-169646,989.09,BUNCE (ASHBURY) LTD.
Regeneration and Local Services,Direct Services,Transport,215022,Running Costs of Vehicles,01-Dec-16,3214352-205080,"1,409.81",OIL NRG LTD.
Regeneration and Local Services,Direct Services,Transport,215022,Running Costs of Vehicles,01-Dec-16,3214352-205445,"1,168.87",OIL NRG LTD.
Regeneration and Local Services,Direct Services,Transport,215022,Running Costs of Vehicles,01-Dec-16,3214352-205464,"1,996.28",OIL NRG LTD.
Regeneration and Local Services,Direct Services,Premises,108099,Service Repairs and Maintenance,01-Dec-16,3214207-00322,"4,760.00",JN KEARTON.
Regeneration and Local Services,Direct Services,Premises,108099,Service Repairs and Maintenance,01-Dec-16,3214454-6/2016,"1,630.00",SE LANDSCAPING & GARDEN SERVICES.
Regeneration and Local Services,Direct Services,Supplies and Services,304358,Equipment and Materials,01-Dec-16,3214221-1441,619,KEVIN SNOWDON GROUNDWORKS LTD.
Regeneration and Local Services,Direct Services,Supplies and Services,304358,Equipment and Materials,01-Dec-16,3214589-42333,530,W MARLEY AGRICULTURAL CONTRACTORS LTD.
Regeneration and Local Services,Direct Services,Supplies and Services,389001,Inventory Related,01-Dec-16,3214224-SI02-0125585,"2,786.92",KILLGERM CHEMICALS LTD.
Regeneration and Local Services,Direct Services,Third Party Payments,430100,Rendered by Private Contractors,01-Dec-16,3213986-1625,"4,913.60",AWR ROOFING & ALUMIN RAINWATER SYSTEMS LTD.
Regeneration and Local Services,Direct Services,Third Party Payments,430100,Rendered by Private Contractors,01-Dec-16,3214223-16040005,"36,784.75",KIER SERVICES LTD - MAINTENANCE NORTH.
Regeneration and Local Services,Direct Services,Third Party Payments,430100,Rendered by Private Contractors,01-Dec-16,3214223-16040006,"6,047.60",KIER SERVICES LTD - MAINTENANCE NORTH.
Regeneration and Local Services,Direct Services,Third Party Payments,430100,Rendered by Private Contractors,01-Dec-16,3214223-16040007,"86,452.66",KIER SERVICES LTD - MAINTENANCE NORTH.
Regeneration and Local Services,Direct Services,Third Party Payments,430100,Rendered by Private Contractors,01-Dec-16,3214445-31942,800,SASSI LIFT SYSTEMS LTD.
Regeneration and Local Services,Direct Services,Third Party Payments,430100,Rendered by Private Contractors,01-Dec-16,3214546-LK/TCL/11,"1,433.02",THORNTON CONTRACTS LTD - IN ADMINISTRATION.
Regeneration and Local Services,Direct Services,Third Party Payments,430101,Rendered by Private Contractors,01-Dec-16,3214104-IV815838,804.6,DIRECT TYRE MANAGEMENT (DTM).
Regeneration and Local Services,Direct Services,Vehicles Equipment Furniture and Fittings,912529,Purchase-equipment,01-Dec-16,3214077-3007942,"14,320.80",CRAEMER UK LTD.
Regeneration and Local Services,Direct Services,Vehicles Equipment Furniture and Fittings,912529,Purchase-equipment,01-Dec-16,3214077-3007944,"15,116.40",CRAEMER UK LTD.
Regeneration and Local Services,Direct Services,Supplies and Services,384167,Miscellaneous Expenses,01-Dec-16,3214528-BAB32307,"1,173.75",THE BRITISH ASSESSMENT BUREAU.
Regeneration and Local Services,Direct Services,Premises,145051,Cleaning and Domestic Supplies,01-Dec-16,3214275-136369,"4,497.48",MAX RECYCLE T/A THE DURHAM COMPANY (TDC).
Regeneration and Local Services,Direct Services,Stock,926004,Stock,01-Dec-16,3214025-SI-169643,"1,645.43",BUNCE (ASHBURY) LTD.
Regeneration and Local Services,Direct Services,Stock,926004,Stock,01-Dec-16,3214479-SI-2092891,768.73,SPALDINGS (UK) LTD.
Regeneration and Local Services,Economic Development and Housing,Cap Exp on Grants & Other Financial Assistance (REFCUS),918401,Capital grants,01-Dec-16,3214179-RED-11-2016-289,"3,055.00",HES GROUP UK LTD.
Regeneration and Local Services,Economic Development and Housing,Cap Exp on Grants & Other Financial Assistance (REFCUS),918401,Capital grants,01-Dec-16,3214256-RED-11-2016-272,"15,000.00",M & R DEVELOPMENTS & CONTRACTORS LTD..
Regeneration and Local Services,Economic Development and Housing,Cap Exp on Grants & Other Financial Assistance (REFCUS),918401,Capital grants,01-Dec-16,3214277-RED-11-2016-275,"9,900.00",MDS BUILDING & ROOFING CONTRACTORS.
Regeneration and Local Services,Economic Development and Housing,Cap Exp on Grants & Other Financial Assistance (REFCUS),918401,Capital grants,01-Dec-16,3214373-RED-11-2016-276,"3,032.00",PEART ACCESS RAMPS.
Regeneration and Local Services,Economic Development and Housing,Cap Exp on Grants & Other Financial Assistance (REFCUS),918401,Capital grants,01-Dec-16,3214453-RED-11-2016-283,"2,053.00",SCOTT BROTHERS HEATING LTD.
Regeneration and Local Services,Economic Development and Housing,Cap Exp on Grants & Other Financial Assistance (REFCUS),918401,Capital grants,01-Dec-16,3214508-RED-11-2016-274,"2,762.51",SUNTER LTD.
Regeneration and Local Services,Economic Development and Housing,Cap Exp on Grants & Other Financial Assistance (REFCUS),918401,Capital grants,01-Dec-16,3214508-RED-11-2016-277,"3,078.32",SUNTER LTD.
Regeneration and Local Services,Economic Development and Housing,Cap Exp on Grants & Other Financial Assistance (REFCUS),918401,Capital grants,01-Dec-16,3214548-RED-11-2016-284,"4,122.00",THYSSENKRUPP ENCASA A DIVISION OF THYSSENKRUPP ACCESS LTD.
Regeneration and Local Services,Economic Development and Housing,Cap Exp on Grants & Other Financial Assistance (REFCUS),918401,Capital grants,01-Dec-16,3214548-RED-11-2016-285,"3,648.00",THYSSENKRUPP ENCASA A DIVISION OF THYSSENKRUPP ACCESS LTD.
Regeneration and Local Services,Economic Development and Housing,Cap Exp on Grants & Other Financial Assistance (REFCUS),918401,Capital grants,01-Dec-16,3214548-RED-11-2016-286,"3,902.00",THYSSENKRUPP ENCASA A DIVISION OF THYSSENKRUPP ACCESS LTD.
Regeneration and Local Services,Economic Development and Housing,Cap Exp on Grants & Other Financial Assistance (REFCUS),918401,Capital grants,01-Dec-16,3214548-RED-11-2016-287,"1,515.00",THYSSENKRUPP ENCASA A DIVISION OF THYSSENKRUPP ACCESS LTD.
Regeneration and Local Services,Economic Development and Housing,Cap Exp on Grants & Other Financial Assistance (REFCUS),918401,Capital grants,01-Dec-16,3214548-RED-11-2016-288,"3,024.96",THYSSENKRUPP ENCASA A DIVISION OF THYSSENKRUPP ACCESS LTD.
Regeneration and Local Services,Economic Development and Housing,Supplies and Services,324500,Provisions,01-Dec-16,3214353-88,746.25,OLDFIELDS CATERING LTD T/A OLDFIELDS EVENTS.
Regeneration and Local Services,Economic Development and Housing,Construction Work,908105,Construction work,01-Dec-16,3214099-0064160,554,DERWENTSIDE GLASS LTD.
Regeneration and Local Services,Economic Development and Housing,Construction Work,908105,Construction work,01-Dec-16,3214354-A152633,"3,780.54",OPENREACH LLU.
Regeneration and Local Services,Economic Development and Housing,Construction Work,908105,Construction work,01-Dec-16,3214429-10871,"4,075.00",ROBERTSON SIMPSON LTD.
Regeneration and Local Services,Economic Development and Housing,Supplies and Services,384899,Miscellaneous Expenses,01-Dec-16,3214111-RED-11-2016-291,"1,000.00",DURHAM AGENCY AGAINST CRIME LTD (DAAC).
Regeneration and Local Services,Economic Development and Housing,Supplies and Services,384071,Miscellaneous Expenses,01-Dec-16,3214266-4100549603,"2,400.00",MARK DILONARDO T/A IPD-ENTS.
Regeneration and Local Services,Economic Development and Housing,Cap Exp on Grants & Other Financial Assistance (REFCUS),918501,Exp assets not owned by authority,01-Dec-16,3214218-RED-11-2016-282,"17,293.20",K HARRISON (BUILDER) NE LTD.
Regeneration and Local Services,Economic Development and Housing,Cap Exp on Grants & Other Financial Assistance (REFCUS),918501,Exp assets not owned by authority,01-Dec-16,3214256-RED-11-2016-295,"5,889.00",M & R DEVELOPMENTS & CONTRACTORS LTD..
Regeneration and Local Services,Economic Development and Housing,Supplies and Services,384700,Miscellaneous Expenses,01-Dec-16,3214260-RED-11-2016-105,"1,500.00",MANOR WOODCRAFT LTD.
Regeneration and Local Services,Economic Development and Housing,Supplies and Services,384700,Miscellaneous Expenses,01-Dec-16,3214435-RED-11-2016-278,"1,500.00",RT FITNESS LTD.
Regeneration and Local Services,Economic Development and Housing,Fees,901002,Professional fees,01-Dec-16,3213982-16030560,"4,720.00",ATKINS GLOBAL.
Regeneration and Local Services,Economic Development and Housing,Fees,901002,Professional fees,01-Dec-16,3214153-107549907,"3,752.25",GATESHEAD COUNCIL.
Regeneration and Local Services,Economic Development and Housing,Supplies and Services,338094,Services,01-Dec-16,3214603-490,"1,500.00",XCEL CONFERENCE & EVENTS (INNOVATE COUNTY DURHAM) LTD.
Regeneration and Local Services,Projects and Business services,Supplies and Services,340001,Postages,01-Dec-16,3214434-9053264326,"1,825.24",ROYAL MAIL GROUP PLC.
Regeneration and Local Services,Projects and Business services,Fees,901002,Professional fees,01-Dec-16,3213982-16030276,"22,671.86",ATKINS GLOBAL.
Regeneration and Local Services,Projects and Business services,Fees,901002,Professional fees,01-Dec-16,3213982-16030538,"2,679.78",ATKINS GLOBAL.
Regeneration and Local Services,Spatial Policy Planning Assets & Environment,Supplies and Services,384700,Miscellaneous Expenses,01-Dec-16,3214276-BURSARY2NOV16,532.8,REDACTED - PAYMENT TO INDIVIDUAL
Regeneration and Local Services,Spatial Policy Planning Assets & Environment,Supplies and Services,384700,Miscellaneous Expenses,01-Dec-16,3214276-BURSARYNOV16,532.8,REDACTED - PAYMENT TO INDIVIDUAL
Regeneration and Local Services,Spatial Policy Planning Assets & Environment,Supplies and Services,384700,Miscellaneous Expenses,01-Dec-16,3214276-BURSARYOCT16,532.8,REDACTED - PAYMENT TO INDIVIDUAL
Regeneration and Local Services,Spatial Policy Planning Assets & Environment,Income,725025,Rents,01-Dec-16,305602-RED-11-2016-292,"1,002.74",REDACTED - PAYMENT TO INDIVIDUAL
Regeneration and Local Services,Technical Services,Supplies and Services,338027,Services,01-Dec-16,3213944-28284347,"3,956.83",AECOM LTD.
Regeneration and Local Services,Technical Services,Supplies and Services,384110,Miscellaneous Expenses,01-Dec-16,3214397-INV0386349,522.26,POSTURITE (UK) LTD.
Regeneration and Local Services,Technical Services,Supplies and Services,304221,Equipment and Materials,01-Dec-16,3213948-23997876,"1,260.27",AGGREGATE INDUSTRIES UK LTD.
Regeneration and Local Services,Technical Services,Supplies and Services,304221,Equipment and Materials,01-Dec-16,3213948-23997878,"1,243.93",AGGREGATE INDUSTRIES UK LTD.
Regeneration and Local Services,Technical Services,Supplies and Services,304221,Equipment and Materials,01-Dec-16,3213948-23997879,"1,212.62",AGGREGATE INDUSTRIES UK LTD.
Regeneration and Local Services,Technical Services,Supplies and Services,304221,Equipment and Materials,01-Dec-16,3213948-24004056,663.78,AGGREGATE INDUSTRIES UK LTD.
Regeneration and Local Services,Technical Services,Supplies and Services,304221,Equipment and Materials,01-Dec-16,3213948-24004132,"1,243.97",AGGREGATE INDUSTRIES UK LTD.
Regeneration and Local Services,Technical Services,Supplies and Services,304221,Equipment and Materials,01-Dec-16,3213948-24004133,718.54,AGGREGATE INDUSTRIES UK LTD.
Regeneration and Local Services,Technical Services,Supplies and Services,304221,Equipment and Materials,01-Dec-16,3213948-24004134,"1,628.66",AGGREGATE INDUSTRIES UK LTD.
Regeneration and Local Services,Technical Services,Supplies and Services,304221,Equipment and Materials,01-Dec-16,3213948-24004135,"1,235.19",AGGREGATE INDUSTRIES UK LTD.
Regeneration and Local Services,Technical Services,Supplies and Services,304221,Equipment and Materials,01-Dec-16,3213948-24009324,"1,236.44",AGGREGATE INDUSTRIES UK LTD.
Regeneration and Local Services,Technical Services,Supplies and Services,304221,Equipment and Materials,01-Dec-16,3213948-24012229,"1,252.75",AGGREGATE INDUSTRIES UK LTD.
Regeneration and Local Services,Technical Services,Supplies and Services,304221,Equipment and Materials,01-Dec-16,3213948-24012230,"1,973.41",AGGREGATE INDUSTRIES UK LTD.
Regeneration and Local Services,Technical Services,Supplies and Services,304221,Equipment and Materials,01-Dec-16,3213948-24012231,"1,165.46",AGGREGATE INDUSTRIES UK LTD.
Regeneration and Local Services,Technical Services,Supplies and Services,304221,Equipment and Materials,01-Dec-16,3213948-24016099,"1,087.12",AGGREGATE INDUSTRIES UK LTD.
Regeneration and Local Services,Technical Services,Supplies and Services,304221,Equipment and Materials,01-Dec-16,3213948-24018098,"1,250.24",AGGREGATE INDUSTRIES UK LTD.
Regeneration and Local Services,Technical Services,Supplies and Services,304221,Equipment and Materials,01-Dec-16,3213948-24018100,791.53,AGGREGATE INDUSTRIES UK LTD.
Regeneration and Local Services,Technical Services,Supplies and Services,304221,Equipment and Materials,01-Dec-16,3213948-24018101,734.38,AGGREGATE INDUSTRIES UK LTD.
Regeneration and Local Services,Technical Services,Supplies and Services,304221,Equipment and Materials,01-Dec-16,3214217-CNI26417/D,"2,273.44",JT DOVE LTD.
Regeneration and Local Services,Technical Services,Supplies and Services,304221,Equipment and Materials,01-Dec-16,3214240-900897,685,LIGHTING & ILLUMINATION TECHNOLOGY EXPERIENCE LTD (LITE).
Regeneration and Local Services,Technical Services,Supplies and Services,304221,Equipment and Materials,01-Dec-16,3214271-ZBB1130005,"2,888.52",MARSHALLS MONO LTD.
Regeneration and Local Services,Technical Services,Supplies and Services,304221,Equipment and Materials,01-Dec-16,3214271-ZBB1130815,"3,508.86",MARSHALLS MONO LTD.
Regeneration and Local Services,Technical Services,Supplies and Services,304221,Equipment and Materials,01-Dec-16,3214404-93983,550,PROTECTOR SECURITY GROUP LTD.
Regeneration and Local Services,Technical Services,Supplies and Services,304221,Equipment and Materials,01-Dec-16,3214503-087550,"1,215.44",STONEGRAVE AGGREGATES LTD.
Regeneration and Local Services,Technical Services,Supplies and Services,304221,Equipment and Materials,01-Dec-16,3214516-9034980366,695.36,TARMAC TRADING LTD.
Regeneration and Local Services,Technical Services,Supplies and Services,304221,Equipment and Materials,01-Dec-16,3214516-9035302207,623.1,TARMAC TRADING LTD.
Regeneration and Local Services,Technical Services,Supplies and Services,304221,Equipment and Materials,01-Dec-16,3214516-9035311168,867.99,TARMAC TRADING LTD.
Regeneration and Local Services,Technical Services,Supplies and Services,304221,Equipment and Materials,01-Dec-16,3214569-167334,714.4,TYNEDALE ROADSTONE LTD.
Regeneration and Local Services,Technical Services,Premises,120009,Energy Costs,01-Dec-16,3214347-NNO7WL26,"213,429.97",NPOWER.
Regeneration and Local Services,Technical Services,Supplies and Services,384194,Miscellaneous Expenses,01-Dec-16,3214326-72944,"1,930.00",NIRAMAX GROUP LTD.
Regeneration and Local Services,Technical Services,Supplies and Services,304358,Equipment and Materials,01-Dec-16,3214211-25821,"1,726.50",JOHN R BUTTERFIELD LTD.
Regeneration and Local Services,Technical Services,Supplies and Services,304358,Equipment and Materials,01-Dec-16,3214211-25860,"1,696.50",JOHN R BUTTERFIELD LTD.
Regeneration and Local Services,Technical Services,Supplies and Services,304358,Equipment and Materials,01-Dec-16,3214211-25862,830,JOHN R BUTTERFIELD LTD.
Regeneration and Local Services,Technical Services,Supplies and Services,304358,Equipment and Materials,01-Dec-16,3214211-25863,914.2,JOHN R BUTTERFIELD LTD.
Regeneration and Local Services,Technical Services,Supplies and Services,304358,Equipment and Materials,01-Dec-16,3214211-25894,"1,584.00",JOHN R BUTTERFIELD LTD.
Regeneration and Local Services,Technical Services,Supplies and Services,304358,Equipment and Materials,01-Dec-16,3214211-25896,830,JOHN R BUTTERFIELD LTD.
Regeneration and Local Services,Technical Services,Supplies and Services,304358,Equipment and Materials,01-Dec-16,3214211-25897,914.2,JOHN R BUTTERFIELD LTD.
Regeneration and Local Services,Technical Services,Supplies and Services,304358,Equipment and Materials,01-Dec-16,3214211-25898,707.4,JOHN R BUTTERFIELD LTD.
Regeneration and Local Services,Technical Services,Supplies and Services,304358,Equipment and Materials,01-Dec-16,3214211-25899,920,JOHN R BUTTERFIELD LTD.
Regeneration and Local Services,Technical Services,Supplies and Services,304358,Equipment and Materials,01-Dec-16,3214211-25926,"1,696.50",JOHN R BUTTERFIELD LTD.
Regeneration and Local Services,Technical Services,Supplies and Services,304358,Equipment and Materials,01-Dec-16,3214211-25927,785,JOHN R BUTTERFIELD LTD.
Regeneration and Local Services,Technical Services,Supplies and Services,304358,Equipment and Materials,01-Dec-16,3214211-25928,895.6,JOHN R BUTTERFIELD LTD.
Regeneration and Local Services,Technical Services,Supplies and Services,304358,Equipment and Materials,01-Dec-16,3214211-25929,943.4,JOHN R BUTTERFIELD LTD.
Regeneration and Local Services,Technical Services,Supplies and Services,304358,Equipment and Materials,01-Dec-16,3214211-25930,"1,210.00",JOHN R BUTTERFIELD LTD.
Regeneration and Local Services,Technical Services,Supplies and Services,304358,Equipment and Materials,01-Dec-16,3214211-25934,"1,104.00",JOHN R BUTTERFIELD LTD.
Regeneration and Local Services,Technical Services,Supplies and Services,304358,Equipment and Materials,01-Dec-16,3214211-25935,958.7,JOHN R BUTTERFIELD LTD.
Regeneration and Local Services,Technical Services,Supplies and Services,304358,Equipment and Materials,01-Dec-16,3214211-25961,975,JOHN R BUTTERFIELD LTD.
Regeneration and Local Services,Technical Services,Supplies and Services,304358,Equipment and Materials,01-Dec-16,3214211-25962,985,JOHN R BUTTERFIELD LTD.
Regeneration and Local Services,Technical Services,Supplies and Services,304358,Equipment and Materials,01-Dec-16,3214211-25963,914.2,JOHN R BUTTERFIELD LTD.
Regeneration and Local Services,Technical Services,Supplies and Services,304358,Equipment and Materials,01-Dec-16,3214211-25964,"1,145.10",JOHN R BUTTERFIELD LTD.
Regeneration and Local Services,Technical Services,Supplies and Services,304358,Equipment and Materials,01-Dec-16,3214211-25965,"1,030.00",JOHN R BUTTERFIELD LTD.
Regeneration and Local Services,Technical Services,Supplies and Services,304358,Equipment and Materials,01-Dec-16,3214211-25966,741,JOHN R BUTTERFIELD LTD.
Regeneration and Local Services,Technical Services,Supplies and Services,304358,Equipment and Materials,01-Dec-16,3214211-25968,725.4,JOHN R BUTTERFIELD LTD.
Regeneration and Local Services,Technical Services,Supplies and Services,304358,Equipment and Materials,01-Dec-16,3214211-25971,978,JOHN R BUTTERFIELD LTD.
Regeneration and Local Services,Technical Services,Supplies and Services,304358,Equipment and Materials,01-Dec-16,3214211-25973,695.2,JOHN R BUTTERFIELD LTD.
Regeneration and Local Services,Technical Services,Supplies and Services,304358,Equipment and Materials,01-Dec-16,3214211-25995,975,JOHN R BUTTERFIELD LTD.
Regeneration and Local Services,Technical Services,Supplies and Services,304358,Equipment and Materials,01-Dec-16,3214211-25996,990,JOHN R BUTTERFIELD LTD.
Regeneration and Local Services,Technical Services,Supplies and Services,304358,Equipment and Materials,01-Dec-16,3214211-26001,741,JOHN R BUTTERFIELD LTD.
Regeneration and Local Services,Technical Services,Supplies and Services,304358,Equipment and Materials,01-Dec-16,3214211-26002,639,JOHN R BUTTERFIELD LTD.
Regeneration and Local Services,Technical Services,Supplies and Services,304358,Equipment and Materials,01-Dec-16,3214211-26003,688.2,JOHN R BUTTERFIELD LTD.
Regeneration and Local Services,Technical Services,Supplies and Services,304358,Equipment and Materials,01-Dec-16,3214211-26004,"1,235.00",JOHN R BUTTERFIELD LTD.
Regeneration and Local Services,Technical Services,Supplies and Services,304358,Equipment and Materials,01-Dec-16,3214221-1442,"1,030.00",KEVIN SNOWDON GROUNDWORKS LTD.
Regeneration and Local Services,Technical Services,Supplies and Services,304358,Equipment and Materials,01-Dec-16,3214255-53A,"2,378.25",M & E & MR WALTON.
Regeneration and Local Services,Technical Services,Supplies and Services,304358,Equipment and Materials,01-Dec-16,3214416-9648,"3,304.00",RD KEARTON & SONS LTD.
Regeneration and Local Services,Technical Services,Supplies and Services,304358,Equipment and Materials,01-Dec-16,3214416-9652,"1,706.00",RD KEARTON & SONS LTD.
Regeneration and Local Services,Technical Services,Supplies and Services,304358,Equipment and Materials,01-Dec-16,3214416-9662,"1,476.00",RD KEARTON & SONS LTD.
Regeneration and Local Services,Technical Services,Supplies and Services,304358,Equipment and Materials,01-Dec-16,3214461-2016 058,985,SHIREHAVEN LTD.
Regeneration and Local Services,Technical Services,Supplies and Services,304358,Equipment and Materials,01-Dec-16,3214461-2016 059,"1,057.80",SHIREHAVEN LTD.
Regeneration and Local Services,Technical Services,Supplies and Services,304358,Equipment and Materials,01-Dec-16,3214461-2016057,"1,193.20",SHIREHAVEN LTD.
Regeneration and Local Services,Technical Services,Supplies and Services,304357,Equipment and Materials,01-Dec-16,3214152-DCC131116,"16,555.39",GAP GROUP LTD.
Regeneration and Local Services,Technical Services,Supplies and Services,304357,Equipment and Materials,01-Dec-16,3214152-DCC201116,"18,090.83",GAP GROUP LTD.
Regeneration and Local Services,Technical Services,Third Party Payments,430100,Rendered by Private Contractors,01-Dec-16,3213989-IN28725,"1,977.56",BALFOUR BEATTY LIVING PLACES LTD.*
Regeneration and Local Services,Technical Services,Third Party Payments,430100,Rendered by Private Contractors,01-Dec-16,3213989-IN28726,"3,306.00",BALFOUR BEATTY LIVING PLACES LTD.*
Regeneration and Local Services,Technical Services,Third Party Payments,430100,Rendered by Private Contractors,01-Dec-16,3213989-IN28733,"3,000.10",BALFOUR BEATTY LIVING PLACES LTD.*
Regeneration and Local Services,Technical Services,Third Party Payments,430100,Rendered by Private Contractors,01-Dec-16,3214016-39792,"64,174.00",BRIDGEWAY CONSULTING LTD.
Regeneration and Local Services,Technical Services,Third Party Payments,430100,Rendered by Private Contractors,01-Dec-16,3214212-09/16,"43,474.53",JOHN WADE (HAULAGE) LTD.
Regeneration and Local Services,Technical Services,Third Party Payments,430100,Rendered by Private Contractors,01-Dec-16,3214212-10/16,"49,808.38",JOHN WADE (HAULAGE) LTD.
Regeneration and Local Services,Technical Services,Third Party Payments,430100,Rendered by Private Contractors,01-Dec-16,3214229-1933,"59,635.36",L & G PLANT HIRE & SALES LTD.
Regeneration and Local Services,Technical Services,Third Party Payments,430100,Rendered by Private Contractors,01-Dec-16,3214240-900896,"9,964.00",LIGHTING & ILLUMINATION TECHNOLOGY EXPERIENCE LTD (LITE).
Regeneration and Local Services,Technical Services,Third Party Payments,430100,Rendered by Private Contractors,01-Dec-16,3214340-DI20256475,"2,304.40",NORTHERN POWERGRID (NORTHEAST) LTD.
Regeneration and Local Services,Technical Services,Third Party Payments,430100,Rendered by Private Contractors,01-Dec-16,3214400-142112,"24,812.52",PREMIER TRAFFIC MANAGEMENT LTD.
Regeneration and Local Services,Technical Services,Third Party Payments,430100,Rendered by Private Contractors,01-Dec-16,3214400-142133,"29,491.07",PREMIER TRAFFIC MANAGEMENT LTD.
Regeneration and Local Services,Technical Services,Third Party Payments,430100,Rendered by Private Contractors,01-Dec-16,3214404-93981,550,PROTECTOR SECURITY GROUP LTD.
Regeneration and Local Services,Technical Services,Third Party Payments,430100,Rendered by Private Contractors,01-Dec-16,3214404-93982,550,PROTECTOR SECURITY GROUP LTD.
Regeneration and Local Services,Technical Services,Third Party Payments,430100,Rendered by Private Contractors,01-Dec-16,3214404-93985,550,PROTECTOR SECURITY GROUP LTD.
Regeneration and Local Services,Technical Services,Third Party Payments,430100,Rendered by Private Contractors,01-Dec-16,3214413-2580/161039,"6,073.55",RAINTON CONSTRUCTION LTD.
Regeneration and Local Services,Technical Services,Third Party Payments,430100,Rendered by Private Contractors,01-Dec-16,3214447-1091,"1,195.00",SCHMUCK WHORLTON LTD.
Regeneration and Local Services,Technical Services,Third Party Payments,430100,Rendered by Private Contractors,01-Dec-16,3214482-622734,"1,445.00",SSE CONTRACTING LTD.
Regeneration and Local Services,Technical Services,Fees,901002,Professional fees,01-Dec-16,3213982-16031473,"4,770.00",ATKINS GLOBAL.
Regeneration and Local Services,Technical Services,Stock,926900,Stock in hand-Inventory system,01-Dec-16,3214009-8404719,"1,267.56",BOLD NU TEC INSULATION PRODUCTS & SERVICES LTD.
Regeneration and Local Services,Technical Services,Stock,926900,Stock in hand-Inventory system,01-Dec-16,3214035-851602954,"1,282.18",CARLISLE CONSTRUCTION MATERIALS LTD.
Regeneration and Local Services,Technical Services,Stock,926900,Stock in hand-Inventory system,01-Dec-16,3214047-74532,930,CHANTER BIOMED UK LTD.
Regeneration and Local Services,Technical Services,Stock,926900,Stock in hand-Inventory system,01-Dec-16,3214159-719133,"1,594.80",GLASDON UK LTD.
Regeneration and Local Services,Technical Services,Stock,926900,Stock in hand-Inventory system,01-Dec-16,3214167-06/623085,"2,355.61",GREENHAM TRADING LTD.
Regeneration and Local Services,Technical Services,Stock,926900,Stock in hand-Inventory system,01-Dec-16,3214203-8009,853.32,JG UNIFORMS.
Regeneration and Local Services,Technical Services,Stock,926900,Stock in hand-Inventory system,01-Dec-16,3214217-STI448052,"1,836.08",JT DOVE LTD.
Regeneration and Local Services,Technical Services,Stock,926900,Stock in hand-Inventory system,01-Dec-16,3214239-LFP/16/4856,"1,109.50",LIFELINE FIRE PREVENTION LTD.
Regeneration and Local Services,Technical Services,Stock,926900,Stock in hand-Inventory system,01-Dec-16,3214259-106786,848.1,MALLATITE LTD T/A MALLATITE PLASTICS LTD.
Regeneration and Local Services,Technical Services,Stock,926900,Stock in hand-Inventory system,01-Dec-16,3214365-XL184801,778.2,PARK ELECTRICAL DISTRIBUTORS LTD.
Regeneration and Local Services,Technical Services,Stock,926900,Stock in hand-Inventory system,01-Dec-16,3214365-XL184893,"4,717.26",PARK ELECTRICAL DISTRIBUTORS LTD.
Regeneration and Local Services,Technical Services,Stock,926900,Stock in hand-Inventory system,01-Dec-16,3214395-9477,790.85,PLYTECH UK LTD.
Regeneration and Local Services,Technical Services,Stock,926900,Stock in hand-Inventory system,01-Dec-16,3214405-111039,"1,287.09",PROTEUS EQUIPMENT LTD.
Regeneration and Local Services,Technical Services,Stock,926900,Stock in hand-Inventory system,01-Dec-16,3214423-RSIN0200919,636,RIGBY TAYLOR LTD.
Regeneration and Local Services,Technical Services,Stock,926900,Stock in hand-Inventory system,01-Dec-16,3214465-233460,"5,103.70",SIGNPOST SOLUTIONS LTD.
Regeneration and Local Services,Technical Services,Stock,926900,Stock in hand-Inventory system,01-Dec-16,3214465-233461,"1,514.40",SIGNPOST SOLUTIONS LTD.
Regeneration and Local Services,Technical Services,Stock,926900,Stock in hand-Inventory system,01-Dec-16,3214472-189459,"7,574.40",SNAPFAST.
Regeneration and Local Services,Technical Services,Stock,926900,Stock in hand-Inventory system,01-Dec-16,3214472-189475,"3,735.36",SNAPFAST.
Regeneration and Local Services,Technical Services,Stock,926900,Stock in hand-Inventory system,01-Dec-16,3214473-SI16008754,702.05,SOLON SECURITY LTD.
Regeneration and Local Services,Technical Services,Stock,926900,Stock in hand-Inventory system,01-Dec-16,3214516-9035289817,704.55,TARMAC TRADING LTD.
Regeneration and Local Services,Technical Services,Stock,926900,Stock in hand-Inventory system,01-Dec-16,3214544-N/IN184353,"1,476.80",THOMAS OWEN & SONS (NEWCASTLE) LTD.
Regeneration and Local Services,Technical Services,Stock,926900,Stock in hand-Inventory system,01-Dec-16,3214599-2103295,585.08,WILKIES.
Regeneration and Local Services,Technical Services,Employees,40149,Recruitment Instruction and Training,01-Dec-16,305586-31517,"2,250.00",JTL.
Regeneration and Local Services,Technical Services,Employees,40149,Recruitment Instruction and Training,01-Dec-16,305586-31543,"2,175.00",JTL.
Regeneration and Local Services,Technical Services,Employees,40149,Recruitment Instruction and Training,01-Dec-16,3214122-0000039551,"1,040.00",EAST DURHAM COLLEGE.
Regeneration and Local Services,Technical Services,Employees,40149,Recruitment Instruction and Training,01-Dec-16,3214180-WF0186,"2,352.00",HILL BRIGGS T/A WATER FITNESS.
Regeneration and Local Services,Transport and Contracted Services,Construction Work,908202,Capital - Public Utilities - Telephones Services,01-Dec-16,3214584-465045,"1,028.56",VODAFONE LTD.
Regeneration and Local Services,Transport and Contracted Services,Construction Work,908105,Construction work,01-Dec-16,3214172-727,"3,325.00",GW RUDD LTD.
Resources,Financial Services,Supplies and Services,342051,Computers and Communications,01-Dec-16,3214029-461524,"1,705.22",BYTES SOFTWARE SERVICES LTD.
Resources,I.C.T. Services,Vehicles Equipment Furniture and Fittings,912701,Computer equipment,01-Dec-16,3214094-7402325076,"68,699.34",DELL COMPUTER CORPORATION LTD.
Resources,I.C.T. Services,Supplies and Services,342033,Computers and Communications,01-Dec-16,3214514-INV-124836,"1,262.00",SWITCHSHOP LTD.
Resources,I.C.T. Services,Supplies and Services,342033,Computers and Communications,01-Dec-16,3214604-AX90405,686.1,XMA LTD.
Resources,I.C.T. Services,Debtors,930168,Debtor - Mobile Telephone Holding Account,01-Dec-16,3214583-81865320,"15,963.01",VODAFONE CORPORATE LTD.
Resources,I.C.T. Services,Debtors,930168,Debtor - Mobile Telephone Holding Account,01-Dec-16,3214583-81865456,"5,333.10",VODAFONE CORPORATE LTD.
Resources,I.C.T. Services,Debtors,930168,Debtor - Mobile Telephone Holding Account,01-Dec-16,3214583-81865519,"6,537.56",VODAFONE CORPORATE LTD.
Resources,I.C.T. Services,Debtors,930168,Debtor - Mobile Telephone Holding Account,01-Dec-16,3214583-81868088,"16,118.13",VODAFONE CORPORATE LTD.
Resources,I.C.T. Services,Debtors,930168,Debtor - Mobile Telephone Holding Account,01-Dec-16,3214583-81874522,"3,292.01",VODAFONE CORPORATE LTD.
Resources,I.C.T. Services,Debtors,930168,Debtor - Mobile Telephone Holding Account,01-Dec-16,3214585-81865477,"21,017.51",VODAFONE LTD.
Resources,I.C.T. Services,Supplies and Services,304259,Equipment and Materials,01-Dec-16,3214419-INV-25943,"65,750.00",REDSTOR LTD.
Resources,I.C.T. Services,Supplies and Services,304252,Equipment and Materials,01-Dec-16,3214270-INV16312,650,MARLOWE DIGITAL LTD.
Resources,I.C.T. Services,Supplies and Services,304245,Equipment and Materials,01-Dec-16,3213952-157279,"1,040.00",ALBANY CONTRACT FURNITURE.
Resources,I.C.T. Services,Supplies and Services,304303,Equipment and Materials,01-Dec-16,3214188-SOR332541,"7,551.39",INFORMATION & DATA NETWORK SUPPLIES LTD (IDN).
Resources,I.C.T. Services,Supplies and Services,304303,Equipment and Materials,01-Dec-16,3214554-119221,591.27,TP ELECTRICAL SUPPLIES & FIXINGS LTD.
Resources,I.C.T. Services,Supplies and Services,340001,Postages,01-Dec-16,3214434-9053256986,"2,400.00",ROYAL MAIL GROUP PLC.
Resources,I.C.T. Services,Supplies and Services,332029,Printing Stationery and Gen Off Exps,01-Dec-16,3214101-15218,990,DESIGN X PRESS LTD.
Resources,I.C.T. Services,Stock,926900,Stock in hand-Inventory system,01-Dec-16,3214190-3121647,"2,250.00",INSIGHT DIRECT (UK) LTD.
Resources,Legal & Democratic Services,Supplies and Services,338042,Services,01-Dec-16,3214096-321089/INVTD345,"1,560.00",DERE STREET BARRISTERS.
Resources,Legal & Democratic Services,Supplies and Services,338025,Services,01-Dec-16,3214064-S44995-01261,"1,260.00",CO-OPERATIVE FUNERAL CARE.
Resources,Legal & Democratic Services,Supplies and Services,338025,Services,01-Dec-16,3214098-00000385,"1,050.00",DERWENTSIDE FUNERAL SERVICE.
Resources,Legal & Democratic Services,Premises,120021,Energy Costs,01-Dec-16,3214013-D20607,"5,655.83",BRADLEY HALL CHARTERED SURVEYORS CLIENT ACCOUNT.
Resources,Legal & Democratic Services,Supplies and Services,338057,Services,01-Dec-16,3213953-0000024440,"2,590.00",ALERE FORENSICS.
Resources,Legal & Democratic Services,Supplies and Services,338057,Services,01-Dec-16,3213953-0000024854,"1,420.00",ALERE FORENSICS.
Resources,Legal & Democratic Services,Supplies and Services,338057,Services,01-Dec-16,3213953-0000025101,720,ALERE FORENSICS.
Resources,Legal & Democratic Services,Supplies and Services,340001,Postages,01-Dec-16,3214434-9053275240,"1,132.80",ROYAL MAIL GROUP PLC.
Resources,Resources Management,Supplies and Services,384197,Miscellaneous Expenses,01-Dec-16,3214012-A0011363,844.96,BOX IT NORTH.
Transformation and Partnerships,Partnerships & Community Engagement Div.,Supplies and Services,336005,Advertising,01-Dec-16,3214312-315018/0,"1,420.11",NATIONAL LEAFLET CO LTD.
Transformation and Partnerships,Partnerships & Community Engagement Div.,Construction Work,908105,Construction work,01-Dec-16,3214153-107549916,984,GATESHEAD COUNCIL.
Transformation and Partnerships,Partnerships & Community Engagement Div.,Cap Exp on Grants & Other Financial Assistance (REFCUS),918004,Contributions to other bodies,01-Dec-16,3214028-VOUCHER16NB-TEES025,"3,000.00",BUTTERKNOWLE VILLAGE HALL.
Transformation and Partnerships,Partnerships & Community Engagement Div.,Cap Exp on Grants & Other Financial Assistance (REFCUS),918004,Contributions to other bodies,01-Dec-16,3214051-VOUCHER16NB-CHES045,"3,434.36",CHESTER LE STREET & DISTRICT WELFARE COMMITTEE.
Transformation and Partnerships,Partnerships & Community Engagement Div.,Cap Exp on Grants & Other Financial Assistance (REFCUS),918004,Contributions to other bodies,01-Dec-16,3214110-VOUCHER16NB-TEES015/16AB-BASH001,"7,000.00",DURHAM & DARLINGTON FIRE & RESCUE.
Transformation and Partnerships,Partnerships & Community Engagement Div.,Cap Exp on Grants & Other Financial Assistance (REFCUS),918004,Contributions to other bodies,01-Dec-16,3214117-VOUCHER16NB-WEAR004,"12,800.00",DURHAM POLICE & CRIME COMMISSIONER.
Transformation and Partnerships,Partnerships & Community Engagement Div.,Cap Exp on Grants & Other Financial Assistance (REFCUS),918004,Contributions to other bodies,01-Dec-16,3214141-VOUCHER16NB-EDRC021,"33,234.00",FISHBURN PARISH COUNCIL.
Transformation and Partnerships,Partnerships & Community Engagement Div.,Cap Exp on Grants & Other Financial Assistance (REFCUS),918004,Contributions to other bodies,01-Dec-16,3214349-VOUCHER16NB-3TWN022,"2,000.00",OAKENSHAW COMMUNITY ASSOCIATION.
Transformation and Partnerships,Partnerships & Community Engagement Div.,Cap Exp on Grants & Other Financial Assistance (REFCUS),918004,Contributions to other bodies,01-Dec-16,3214363-VOUCHER16NB-STAN022,"3,328.07",PACT HOUSE STANLEY.
Transformation and Partnerships,Partnerships & Community Engagement Div.,Cap Exp on Grants & Other Financial Assistance (REFCUS),918004,Contributions to other bodies,01-Dec-16,3214455-VOUCHER16NB-EDRC024,"5,000.00",SEDGEFIELD COMMUNITY ASSOCIATION.
Transformation and Partnerships,Partnerships & Community Engagement Div.,Cap Exp on Grants & Other Financial Assistance (REFCUS),918004,Contributions to other bodies,01-Dec-16,3214488-VOUCHER15AB-TEES001SGF028,"1,000.00",STAINDROP PARISH COUNCIL.
Transformation and Partnerships,Partnerships & Community Engagement Div.,Transfer Payments,525030,Other,01-Dec-16,3214110-VOUCHER16NBDCTY10/16NBCHES27/16ABDCTY6/16ABCHES7,"8,077.00",DURHAM & DARLINGTON FIRE & RESCUE.
Transformation and Partnerships,Partnerships & Community Engagement Div.,Transfer Payments,525030,Other,01-Dec-16,3214130-VOUCHER16AB-4TOG005,"6,720.00",ENDEAVOUR WOODCRAFTS.
Transformation and Partnerships,Partnerships & Community Engagement Div.,Transfer Payments,525030,Other,01-Dec-16,3214131-VOUCHER16AB-DVLY004,"5,000.00",ENGINEERING DEVELOPMENT TRUST.
Transformation and Partnerships,Partnerships & Community Engagement Div.,Transfer Payments,525030,Other,01-Dec-16,3214335-VOUCHER16AB-DVLY008,"12,434.00",NORTH EAST ENVIRONMENT NETWORK LTD T/A (OASES).
Transformation and Partnerships,Partnerships & Community Engagement Div.,Supplies and Services,384085,Miscellaneous Expenses,01-Dec-16,3214100-HODM13-16YOUR06-16,"1,350.00",DERWENTSIDE HOMES LTD.
Transformation and Partnerships,Partnerships & Community Engagement Div.,Supplies and Services,384085,Miscellaneous Expenses,01-Dec-16,3214308-MAIJ09-16NAPA10-16,"1,040.00",MURTON COLLIERY BAND.
Transformation and Partnerships,Partnerships & Community Engagement Div.,Supplies and Services,384085,Miscellaneous Expenses,01-Dec-16,3214596-ADAE23-16CLAR25-16,517.65,WECAN PARENT`S GROUP.
Transformation and Partnerships,Partnerships & Community Engagement Div.,Supplies and Services,384086,Miscellaneous Expenses,01-Dec-16,305579-VOUCHER16NB-MDUR015,"5,000.00",HEDLEYHOPE PARISH COUNCIL.
Transformation and Partnerships,Partnerships & Community Engagement Div.,Supplies and Services,384086,Miscellaneous Expenses,01-Dec-16,3214112-VOUCHER16NB-EDRC018,"3,044.00",DURHAM CATHEDRAL LTD.
Transformation and Partnerships,Partnerships & Community Engagement Div.,Supplies and Services,384086,Miscellaneous Expenses,01-Dec-16,3214169-VOUCHER16NB-BASH029,"2,376.00",GROUNDWORK NORTH EAST.
Transformation and Partnerships,Partnerships & Community Engagement Div.,Supplies and Services,384086,Miscellaneous Expenses,01-Dec-16,3214558-VOUCHER16NB-EDRC020,"4,949.50",TRIMDON COMMUNITY COLLEGE ASSOCIATION.
Adult and Health Services,Commissioning inc Supporting People,Third Party Payments,470111,Purchase of Care,02-Dec-16,3214901-RINVTP/00422022,"3,994.97",LEONARD CHESHIRE DISABILITY.
Adult and Health Services,Commissioning inc Supporting People,Third Party Payments,470111,Purchase of Care,02-Dec-16,3214901-RINVTP/00422156,"3,994.97",LEONARD CHESHIRE DISABILITY.
Adult and Health Services,EnvironmentHealth & Consumer Protection,Supplies and Services,304999,Equipment and Materials,02-Dec-16,3215145-N/IN184779,885.6,THOMAS OWEN & SONS (NEWCASTLE) LTD.
Adult and Health Services,Head of Adults,Supplies and Services,304252,Equipment and Materials,02-Dec-16,3214789-3064,"1,338.00",EMMERSON DECORATING LTD.
Adult and Health Services,Planning & Service Strategy,Supplies and Services,338089,Services,02-Dec-16,3214875-2142,"1,017.20",JOY OSBORN T/A FUTURE CHILDCARE TRAINING LTD.
Adult and Health Services,Public Health,Third Party Payments,460802,Contract Payments,02-Dec-16,3214713-7910028533,"2,209.50",CITY HOSPITALS SUNDERLAND NHS FOUNDATION TRUST.
Adult and Health Services,Public Health,Third Party Payments,460802,Contract Payments,02-Dec-16,3214714-7910027842,"6,405.67",CITY HOSPITALS SUNDERLAND NHS FOUNDATION TRUST.
Children and Young Peoples Services,Childrens Services,Supplies and Services,384491,Miscellaneous Expenses,02-Dec-16,3214659-ADN00056,727.5,AYCLIFFE DAY NURSERY.
Children and Young Peoples Services,Childrens Services,Supplies and Services,384491,Miscellaneous Expenses,02-Dec-16,3214659-ADN00057,"1,309.50",AYCLIFFE DAY NURSERY.
Children and Young Peoples Services,Childrens Services,Third Party Payments,440013,Other Third Party Payments,02-Dec-16,3214944-CAS-11-2016-253,"1,350.00",REDACTED - PAYMENT TO INDIVIDUAL
Children and Young Peoples Services,Childrens Services,Supplies and Services,384199,Miscellaneous Expenses,02-Dec-16,3215087-OP2016CD006,500,SOUL PURPOSE LEARNING & LIFE MANAGEMENT LTD.
Children and Young Peoples Services,Childrens Services,Supplies and Services,384199,Miscellaneous Expenses,02-Dec-16,3215087-OP2016JK008,500,SOUL PURPOSE LEARNING & LIFE MANAGEMENT LTD.
Children and Young Peoples Services,Education,Transport,230008,Contract Hire,02-Dec-16,3214928-INV-117,"1,672.00",MICHAEL COBB (T/A HAIL TAXIS).
Children and Young Peoples Services,Education,Transport,230008,Contract Hire,02-Dec-16,3215161-87,"2,090.00",TRIDENT TAXIS.
Children and Young Peoples Services,Education,Supplies and Services,312009,Newspapers Books and Periodicals,02-Dec-16,3215006-1613811,"1,113.98",PETERS LTD.
Children and Young Peoples Services,Education,Third Party Payments,440999,Other Third Party Payments,02-Dec-16,3214691-132-,663.39,CAPITAL 4 TRAINING LTD
Children and Young Peoples Services,Education,Third Party Payments,440999,Other Third Party Payments,02-Dec-16,3214691-133,"1,220.92",CAPITAL 4 TRAINING LTD
Children and Young Peoples Services,Education,Third Party Payments,440999,Other Third Party Payments,02-Dec-16,3214965-001,"1,441.72",NIGEL BROUGH T/A BESPOKE TRAINING SOLUTIONS LTD.
Dedicated Schools Grant,Dedicated Schools Grant,Employees,80025,Agency Staff,02-Dec-16,3215126-1106568,704,TEACHING PERSONNEL LTD.
Dedicated Schools Grant,Dedicated Schools Grant,Employees,80025,Agency Staff,02-Dec-16,3215126-1110424,704,TEACHING PERSONNEL LTD.
Dedicated Schools Grant,Dedicated Schools Grant,Employees,80025,Agency Staff,02-Dec-16,3215126-1116740,880,TEACHING PERSONNEL LTD.
Regeneration and Local Services,Culture & Sport,Supplies and Services,324001,Provisions,02-Dec-16,3214694-843238395,646.82,CARLSBERG UK LTD.
Regeneration and Local Services,Culture & Sport,Supplies and Services,324117,Provisions,02-Dec-16,3215152-258284,818.04,TOMMY TUCKER LTD.
Regeneration and Local Services,Culture & Sport,Supplies and Services,352001,Conference Expenses,02-Dec-16,3214635-7909,700,ALUMINIUM ACCESS PRODUCTS LTD.
Regeneration and Local Services,Culture & Sport,Supplies and Services,338047,Services,02-Dec-16,3214790-3923A,"1,083.80",ENGLISH TOURING OPERA.
Regeneration and Local Services,Culture & Sport,Supplies and Services,338047,Services,02-Dec-16,3214957-754,"24,313.98",NEW WRITING NORTH LTD.
Regeneration and Local Services,Culture & Sport,Supplies and Services,338047,Services,02-Dec-16,3215089-210,"2,250.00",SOUNDPOST LIVE LTD.
Regeneration and Local Services,Culture & Sport,Supplies and Services,338099,Services,02-Dec-16,3215184-5571,734.4,VORTEX LIGHTING LTD.
Regeneration and Local Services,Culture & Sport,Supplies and Services,384362,Miscellaneous Expenses,02-Dec-16,3215200-WS/764,"28,500.00",WHEELSCAPE LTD.
Regeneration and Local Services,Culture & Sport,Supplies and Services,384237,Miscellaneous Expenses,02-Dec-16,3214711-4100555919,600,CIRCURAMA.
Regeneration and Local Services,Direct Services,Supplies and Services,324117,Provisions,02-Dec-16,3900286-5426518-29-JAN-16,"43,849.67",CO-OPERATIVE BANK PLC.
Regeneration and Local Services,Direct Services,Debtors,930046,Debtor-leasing,02-Dec-16,3215083-73086,"12,078.90",SIMON BAILES LTD.
Regeneration and Local Services,Direct Services,Debtors,930046,Debtor-leasing,02-Dec-16,3215083-73087,"12,078.90",SIMON BAILES LTD.
Regeneration and Local Services,Direct Services,Debtors,930046,Debtor-leasing,02-Dec-16,3215083-73088,"12,078.90",SIMON BAILES LTD.
Regeneration and Local Services,Direct Services,Debtors,930046,Debtor-leasing,02-Dec-16,3215083-73089,"12,078.90",SIMON BAILES LTD.
Regeneration and Local Services,Direct Services,Debtors,930046,Debtor-leasing,02-Dec-16,3215083-73090,"17,353.60",SIMON BAILES LTD.
Regeneration and Local Services,Direct Services,Debtors,930046,Debtor-leasing,02-Dec-16,3215083-73149,"10,336.90",SIMON BAILES LTD.
Regeneration and Local Services,Direct Services,Debtors,930046,Debtor-leasing,02-Dec-16,3215083-73150,"17,409.60",SIMON BAILES LTD.
Regeneration and Local Services,Direct Services,Debtors,930046,Debtor-leasing,02-Dec-16,3215083-73151,"23,142.85",SIMON BAILES LTD.
Regeneration and Local Services,Direct Services,Supplies and Services,304221,Equipment and Materials,02-Dec-16,3214754-829,"2,024.96",DECOR DESIGNS T/A 3D WALL PANELS COMPANY.
Regeneration and Local Services,Direct Services,Supplies and Services,304221,Equipment and Materials,02-Dec-16,3214803-1611-045545,520.72,FLAME HEATING SPARES LTD.
Regeneration and Local Services,Direct Services,Supplies and Services,304221,Equipment and Materials,02-Dec-16,3214992-BR557072,916.39,PARK ELECTRICAL DISTRIBUTORS LTD.
Regeneration and Local Services,Direct Services,Supplies and Services,304221,Equipment and Materials,02-Dec-16,3214992-BR557077,753.79,PARK ELECTRICAL DISTRIBUTORS LTD.
Regeneration and Local Services,Direct Services,Supplies and Services,304221,Equipment and Materials,02-Dec-16,3214992-XL185184,"1,157.85",PARK ELECTRICAL DISTRIBUTORS LTD.
Regeneration and Local Services,Direct Services,Supplies and Services,304221,Equipment and Materials,02-Dec-16,3215018-INV219814,"2,858.71",POINTER FIRE LTD.
Regeneration and Local Services,Direct Services,Supplies and Services,304221,Equipment and Materials,02-Dec-16,3215118-0000095676,504,TA PLASTIC SUPPLIES LTD.
Regeneration and Local Services,Direct Services,Supplies and Services,304259,Equipment and Materials,02-Dec-16,3214752-178979,704,DAVID OGILVIE ENGINEERING LTD.
Regeneration and Local Services,Direct Services,Supplies and Services,304259,Equipment and Materials,02-Dec-16,3214832-133857,"1,876.50",GREENLAY (GRASS MACHINERY) LTD.
Regeneration and Local Services,Direct Services,Supplies and Services,304259,Equipment and Materials,02-Dec-16,3214832-133858,"3,550.00",GREENLAY (GRASS MACHINERY) LTD.
Regeneration and Local Services,Direct Services,Supplies and Services,304259,Equipment and Materials,02-Dec-16,3215013-10443,"1,266.00",PIXL ID LTD.
Regeneration and Local Services,Direct Services,Premises,108099,Service Repairs and Maintenance,02-Dec-16,3214870-13740,"5,150.30",JC MAINTENANCE SERVICES LTD.
Regeneration and Local Services,Direct Services,Third Party Payments,430100,Rendered by Private Contractors,02-Dec-16,3214652-0000016564,920,ARMAH SWITCHGEAR LTD.
Regeneration and Local Services,Direct Services,Stock,926004,Stock,02-Dec-16,3214696-213315,833.41,CARRS BILLINGTON AGRICULTURE.
Regeneration and Local Services,Economic Development and Housing,Cap Exp on Grants & Other Financial Assistance (REFCUS),918401,Capital grants,02-Dec-16,3214935-RED-11-2016-299,"5,000.00",REDACTED - PAYMENT TO INDIVIDUAL
Regeneration and Local Services,Economic Development and Housing,Supplies and Services,384199,Miscellaneous Expenses,02-Dec-16,3214929-709,700,MICK STEPHENSON (LIGHT ARTIST).
Regeneration and Local Services,Economic Development and Housing,Premises,135005,Water Services,02-Dec-16,3214974-317273010027001,"1,582.60",NORTHUMBRIAN WATER LTD.
Regeneration and Local Services,Economic Development and Housing,Premises,135005,Water Services,02-Dec-16,3214974-317273010027003,521,NORTHUMBRIAN WATER LTD.
Regeneration and Local Services,Projects and Business services,Transport,215022,Running Costs of Vehicles,02-Dec-16,3214979-205452,"4,380.45",OIL NRG LTD.
Regeneration and Local Services,Spatial Policy Planning Assets & Environment,Supplies and Services,384700,Miscellaneous Expenses,02-Dec-16,3214927-BURSARY2OCT16,583.78,MAYA HORTON.
Regeneration and Local Services,Spatial Policy Planning Assets & Environment,Supplies and Services,384700,Miscellaneous Expenses,02-Dec-16,3214927-BURSARY2SEPT16,532.8,MAYA HORTON.
Regeneration and Local Services,Spatial Policy Planning Assets & Environment,Supplies and Services,384700,Miscellaneous Expenses,02-Dec-16,3214927-BURSARY3OCT16,532.8,MAYA HORTON.
Regeneration and Local Services,Spatial Policy Planning Assets & Environment,Supplies and Services,384199,Miscellaneous Expenses,02-Dec-16,3214829-2/11/16A,600,GORDON SEDGEWICK.
Regeneration and Local Services,Spatial Policy Planning Assets & Environment,Supplies and Services,338066,Services,02-Dec-16,3214884-1877,"2,750.00",KEVIN DOONAN ARCHITECT LTD.
Regeneration and Local Services,Technical Services,Construction Work,908108,Capital - Surface Dressing,02-Dec-16,3214888-17083,"26,540.53",KIELY BROS LTD.
Regeneration and Local Services,Technical Services,Construction Work,908105,Construction work,02-Dec-16,3214864-13144,"3,418.49",JACK COUPE & SONS LTD T/A COUPE LINE.
Regeneration and Local Services,Technical Services,Third Party Payments,460224,Contract Payments,02-Dec-16,3214988-SIN200244,"104,374.75",OWEN PUGH GDC LTD.*
Regeneration and Local Services,Technical Services,Supplies and Services,304221,Equipment and Materials,02-Dec-16,3214630-24024375,"1,595.36",AGGREGATE INDUSTRIES UK LTD.
Regeneration and Local Services,Technical Services,Supplies and Services,304221,Equipment and Materials,02-Dec-16,3214630-24024377,745.97,AGGREGATE INDUSTRIES UK LTD.
Regeneration and Local Services,Technical Services,Supplies and Services,304221,Equipment and Materials,02-Dec-16,3214879-BAI275578,815.76,JT DOVE LTD.
Regeneration and Local Services,Technical Services,Supplies and Services,304221,Equipment and Materials,02-Dec-16,3214953-NC36/C443/BW,"4,618.08",NEDCO CONTRACTS (NE) LTD.
Regeneration and Local Services,Technical Services,Supplies and Services,304221,Equipment and Materials,02-Dec-16,3215082-72313,"2,108.56",SIMMONSIGNS LTD.
Regeneration and Local Services,Technical Services,Supplies and Services,304221,Equipment and Materials,02-Dec-16,3215108-087737,"1,941.32",STONEGRAVE AGGREGATES LTD.
Regeneration and Local Services,Technical Services,Supplies and Services,304221,Equipment and Materials,02-Dec-16,3215186-19983,537.28,WARD TIMBER LTD.
Regeneration and Local Services,Technical Services,Third Party Payments,430100,Rendered by Private Contractors,02-Dec-16,3214666-INV-0109,"2,400.00",BEAVER BRIDGE HIRE LTD.
Regeneration and Local Services,Technical Services,Third Party Payments,430100,Rendered by Private Contractors,02-Dec-16,3214953-NC4/C500/BW,"6,443.00",NEDCO CONTRACTS (NE) LTD.
Regeneration and Local Services,Technical Services,Stock,926900,Stock in hand-Inventory system,02-Dec-16,3214831-06/623089,"2,100.00",GREENHAM TRADING LTD.
Regeneration and Local Services,Technical Services,Stock,926900,Stock in hand-Inventory system,02-Dec-16,3214857-557781,"2,424.80",INSTARMAC GROUP PLC.
Regeneration and Local Services,Technical Services,Stock,926900,Stock in hand-Inventory system,02-Dec-16,3214879-STI448126,768,JT DOVE LTD.
Regeneration and Local Services,Technical Services,Stock,926900,Stock in hand-Inventory system,02-Dec-16,3214882-1084,700,KBRO LTD.
Regeneration and Local Services,Technical Services,Stock,926900,Stock in hand-Inventory system,02-Dec-16,3215017-151041,"1,008.16",PLUMBING & HEATING SUPPLIES LTD.
Regeneration and Local Services,Technical Services,Stock,926900,Stock in hand-Inventory system,02-Dec-16,3215148-66479,684.12,THORNE & DERRICK.
Regeneration and Local Services,Technical Services,Stock,926900,Stock in hand-Inventory system,02-Dec-16,3215203-2103296,657.6,WILKIES.
Regeneration and Local Services,Technical Services,Stock,926900,Stock in hand-Inventory system,02-Dec-16,3215205-37712838,799.15,WOLSELEY UK LTD.
Regeneration and Local Services,Transport and Contracted Services,Third Party Payments,430100,Rendered by Private Contractors,02-Dec-16,3214994-7383,"2,520.80",PATROL.
Resources,Financial Services,Supplies and Services,384199,Miscellaneous Expenses,02-Dec-16,3214689-6003422574,"1,578.00",CAPITA BUSINESS SERVICES LTD.
Resources,Financial Services,Transfer Payments,520002,Housing Benefits,02-Dec-16,3214766-RENT-REBATE-BATCH87241,"2,941.19",DURHAM CITY HOMES LTD.
Resources,Financial Services,Employees,40149,Recruitment Instruction and Training,02-Dec-16,3215162-16053R,"1,153.00",TROJAN CONSULTANTS LTD.
Resources,I.C.T. Services,Vehicles Equipment Furniture and Fittings,912701,Computer equipment,02-Dec-16,3215037-INV-1245,"1,405.00",REDWOOD CABLE PROJECTS.
Resources,I.C.T. Services,Supplies and Services,340001,Postages,02-Dec-16,3215050-9053261083,"13,400.85",ROYAL MAIL GROUP PLC.
Resources,Legal & Democratic Services,Supplies and Services,352001,Conference Expenses,02-Dec-16,3214734-4181,"1,440.00",COUNTY COUNCILS NETWORK.
Resources,Legal & Democratic Services,Supplies and Services,372009,Subscriptions,02-Dec-16,3215147-802032296,680,THOMSON REUTERS.
Transformation and Partnerships,Partnerships & Community Engagement Div.,Cap Exp on Grants & Other Financial Assistance (REFCUS),918401,Capital grants,02-Dec-16,3214712-ACE-12-2016-001,"10,730.00",CITIZENS HOUSE.
Transformation and Partnerships,Partnerships & Community Engagement Div.,Supplies and Services,384085,Miscellaneous Expenses,02-Dec-16,3215005-BENH05-16LAIA05-16,800,PETERLEE METHODIST CHURCH.
Transformation and Partnerships,Policy & Communications Division,Employees,40001,Recruitment Instruction and Training,02-Dec-16,3214959-17552571,"5,000.00",NEWSQUEST (YORKSHIRE & NORTH EAST) LTD.
Adult and Health Services,Head of Adults,Supplies and Services,308013,Furniture,05-Dec-16,3215228-11368,808,AH & D CUTHBERTSON LTD.
Adult and Health Services,Head of Adults,Supplies and Services,308013,Furniture,05-Dec-16,3215228-11369,539,AH & D CUTHBERTSON LTD.
Adult and Health Services,Head of Adults,Supplies and Services,338365,Services,05-Dec-16,3215510-SIN039389,908.33,RNIB ENTERPRISES LTD.
Adult and Health Services,Head of Adults,Third Party Payments,479101,Purchase of Care,05-Dec-16,3215556-4810008668,"11,850.00",TEES ESK & WEAR VALLEYS NHS FOUNDATION TRUST.
Adult and Health Services,Planning & Service Strategy,Supplies and Services,338089,Services,05-Dec-16,3215333-00283,"2,400.00",EPOWERED LEARNING LTD.
Adult and Health Services,Planning & Service Strategy,Supplies and Services,338089,Services,05-Dec-16,3215387-4905,"1,250.00",IN TRAC TRAINING & CONSULTANCY LTD.
Adult and Health Services,Planning & Service Strategy,Supplies and Services,338089,Services,05-Dec-16,3215530-SINV8900,"2,250.00",SKILLS FOR CARE SOLUTIONS LTD.
Adult and Health Services,Public Health,Third Party Payments,460803,Contract Payments,05-Dec-16,3215533-1691B,"124,166.67",SOLUTIONS 4 HEALTH.
Children and Young Peoples Services,Childrens Services,Supplies and Services,384302,Miscellaneous Expenses,05-Dec-16,3215223-16/11/5266,715,ADVENTURE ACTIVITIES LICENSING SERVICE.
Children and Young Peoples Services,Childrens Services,Supplies and Services,384302,Miscellaneous Expenses,05-Dec-16,3215495-322,"1,160.00",RAB OUTDOOR EDUCATION LTD.
Children and Young Peoples Services,Childrens Services,Employees,80025,Agency Staff,05-Dec-16,3215486-28778,520,PK EDUCATION.
Children and Young Peoples Services,Childrens Services,Employees,80025,Agency Staff,05-Dec-16,3215486-28779,910,PK EDUCATION.
Children and Young Peoples Services,Childrens Services,Supplies and Services,384491,Miscellaneous Expenses,05-Dec-16,3215379-23654,"1,980.00",HOUSE OF EDEN CHILDRENS NURSERY.
Children and Young Peoples Services,Education,Supplies and Services,342055,Computers and Communications,05-Dec-16,3215291-14365,"24,175.00",COGNISOFT.
Children and Young Peoples Services,Education,Transport,230008,Contract Hire,05-Dec-16,3215377-349,964.96,HEPWORTHS LUXURY TRAVEL.
Children and Young Peoples Services,Education,Transport,230008,Contract Hire,05-Dec-16,3215377-350,"1,655.76",HEPWORTHS LUXURY TRAVEL.
Children and Young Peoples Services,Education,Third Party Payments,440999,Other Third Party Payments,05-Dec-16,3215273-129,"1,048.73",CAPITAL 4 TRAINING LTD
Children and Young Peoples Services,Education,Third Party Payments,440999,Other Third Party Payments,05-Dec-16,3215273-130,"2,078.56",CAPITAL 4 TRAINING LTD
Children and Young Peoples Services,Education,Third Party Payments,440999,Other Third Party Payments,05-Dec-16,3215456-1875,"2,121.60",NORTH EAST DANCE CIC.
Children and Young Peoples Services,Education,Transfer Payments,510026,School Children,05-Dec-16,3215571-SI-1958,928.8,TM NURSERY ENTERPRISES LTD T/A JACK IN THE BOX DAYCARE.
Children and Young Peoples Services,Education,Transfer Payments,510026,School Children,05-Dec-16,3215571-SI-1959,885.6,TM NURSERY ENTERPRISES LTD T/A JACK IN THE BOX DAYCARE.
Dedicated Schools Grant,Dedicated Schools Grant,Third Party Payments,440080,Other Third Party Payments,05-Dec-16,3215566-6075,"3,104.45",THE ROYAL NATIONAL COLLEGE FOR THE BLIND.
Dedicated Schools Grant,Dedicated Schools Grant,Third Party Payments,440080,Other Third Party Payments,05-Dec-16,3215566-6076,"2,834.00",THE ROYAL NATIONAL COLLEGE FOR THE BLIND.
Regeneration and Local Services,Culture & Sport,Supplies and Services,338047,Services,05-Dec-16,3215233-17-015,"2,200.00",REDACTED - PAYMENT TO INDIVIDUAL
Regeneration and Local Services,Culture & Sport,Supplies and Services,338047,Services,05-Dec-16,3215448-03/16-28/11/16,"1,200.00",NEIL ARMSTRONG..
Regeneration and Local Services,Culture & Sport,Supplies and Services,304259,Equipment and Materials,05-Dec-16,3215598-732310,"2,805.00",WICKSTEED LEISURE LTD.
Regeneration and Local Services,Culture & Sport,Supplies and Services,304259,Equipment and Materials,05-Dec-16,3215598-732311,"2,805.00",WICKSTEED LEISURE LTD.
Regeneration and Local Services,Culture & Sport,Supplies and Services,304259,Equipment and Materials,05-Dec-16,3215598-732312,"4,950.00",WICKSTEED LEISURE LTD.
Regeneration and Local Services,Culture & Sport,Supplies and Services,384199,Miscellaneous Expenses,05-Dec-16,3215432-4100550549,"3,650.00",MARK IAN THOMPSON.
Regeneration and Local Services,Culture & Sport,Supplies and Services,384199,Miscellaneous Expenses,05-Dec-16,3215542-1611112,"1,000.00",STEVE MESSAM.
Regeneration and Local Services,Culture & Sport,Premises,106082,Centrally Controlled Rep and Maint,05-Dec-16,3215237-27337,"1,790.00",AQUAJET DRAIN CLEANING LTD.
Regeneration and Local Services,Culture & Sport,Premises,106082,Centrally Controlled Rep and Maint,05-Dec-16,3215237-27353,"2,290.00",AQUAJET DRAIN CLEANING LTD.
Regeneration and Local Services,Direct Services,Premises,145023,Cleaning and Domestic Supplies,05-Dec-16,3215365-06/622358,516.6,GREENHAM TRADING LTD.
Regeneration and Local Services,Direct Services,Premises,106080,Centrally Controlled Rep and Maint,05-Dec-16,3215493-RI5524,619,PROMANEX (TOTAL FM & ENVIRONMENTAL SERVICES) LTD.
Regeneration and Local Services,Direct Services,Debtors,930046,Debtor-leasing,05-Dec-16,3215526-73085,"11,758.90",SIMON BAILES LTD.
Regeneration and Local Services,Direct Services,Transport,215005,Running Costs of Vehicles,05-Dec-16,3215468-206482,939.9,OIL NRG LTD.
Regeneration and Local Services,Direct Services,Supplies and Services,304221,Equipment and Materials,05-Dec-16,3215266-INV201461,"2,224.45",BROXAP LTD.
Regeneration and Local Services,Direct Services,Supplies and Services,304221,Equipment and Materials,05-Dec-16,3215267-1660/0464489,534,BSS GROUP PLC.
Regeneration and Local Services,Direct Services,Supplies and Services,304221,Equipment and Materials,05-Dec-16,3215344-1611-045799,603.18,FLAME HEATING SPARES LTD.
Regeneration and Local Services,Direct Services,Supplies and Services,304221,Equipment and Materials,05-Dec-16,3215374-4538065,542.4,HEADLAM (FLOORCOVERING DISTRIBUTORS) LTD.
Regeneration and Local Services,Direct Services,Supplies and Services,304221,Equipment and Materials,05-Dec-16,3215462-2174826,764,NORTHERN TOOLS & ACCESSORIES.
Regeneration and Local Services,Direct Services,Supplies and Services,304221,Equipment and Materials,05-Dec-16,3215483-2580291,638.18,PEW ELECTRICAL DISTRIBUTORS LTD.
Regeneration and Local Services,Direct Services,Supplies and Services,304221,Equipment and Materials,05-Dec-16,3215505-RSIN0201515,"4,828.50",RIGBY TAYLOR LTD.
Regeneration and Local Services,Direct Services,Supplies and Services,304221,Equipment and Materials,05-Dec-16,3215552-2172807,855.6,T CROSSLING & CO LTD.
Regeneration and Local Services,Direct Services,Supplies and Services,304221,Equipment and Materials,05-Dec-16,3215552-2174281,675,T CROSSLING & CO LTD.
Regeneration and Local Services,Direct Services,Transport,210057,Repair and Maintenance of Vehicles,05-Dec-16,3215366-134008,"1,386.18",GREENLAY (GRASS MACHINERY) LTD.
Regeneration and Local Services,Direct Services,Transport,210057,Repair and Maintenance of Vehicles,05-Dec-16,3215454-69261,"1,435.65",NORPLAST LTD.
Regeneration and Local Services,Direct Services,Transport,210057,Repair and Maintenance of Vehicles,05-Dec-16,3215457-21759781,972.08,NORTH EAST TRUCK & VAN LTD.
Regeneration and Local Services,Direct Services,Transport,210057,Repair and Maintenance of Vehicles,05-Dec-16,3215609-SI82971,"1,086.00",ZOELLER WASTE SYSTEMS LTD.
Regeneration and Local Services,Direct Services,Supplies and Services,304999,Equipment and Materials,05-Dec-16,3215462-2170058,616,NORTHERN TOOLS & ACCESSORIES.
Regeneration and Local Services,Direct Services,Third Party Payments,430100,Rendered by Private Contractors,05-Dec-16,3215282-143899,660,CDS SECURITY LTD.
Regeneration and Local Services,Direct Services,Third Party Payments,430100,Rendered by Private Contractors,05-Dec-16,3215308-SIN145679,"10,750.00",DALESAUNA LTD.
Regeneration and Local Services,Direct Services,Third Party Payments,430100,Rendered by Private Contractors,05-Dec-16,3215335-3631,"1,375.00",EURO TRUCK BODIES.
Regeneration and Local Services,Direct Services,Third Party Payments,430100,Rendered by Private Contractors,05-Dec-16,3215445-619847,"2,984.00",NATIONWIDE CHIMNEY COMPONENTS LTD.
Regeneration and Local Services,Direct Services,Third Party Payments,430100,Rendered by Private Contractors,05-Dec-16,3215474-560681,544,P & N ASSOCIATES LTD.
Regeneration and Local Services,Direct Services,Third Party Payments,430100,Rendered by Private Contractors,05-Dec-16,3215582-910352,"2,915.90",TRIPLE POINT LEASE PARTNERS.
Regeneration and Local Services,Direct Services,Third Party Payments,430101,Rendered by Private Contractors,05-Dec-16,3215312-IV815835,"1,255.05",DIRECT TYRE MANAGEMENT (DTM).
Regeneration and Local Services,Direct Services,Third Party Payments,430101,Rendered by Private Contractors,05-Dec-16,3215312-IV821264,"2,113.45",DIRECT TYRE MANAGEMENT (DTM).
Regeneration and Local Services,Direct Services,Third Party Payments,430101,Rendered by Private Contractors,05-Dec-16,3215312-IV821273,"1,969.15",DIRECT TYRE MANAGEMENT (DTM).
Regeneration and Local Services,Direct Services,Third Party Payments,430101,Rendered by Private Contractors,05-Dec-16,3215312-IV823952,"1,990.30",DIRECT TYRE MANAGEMENT (DTM).
Regeneration and Local Services,Direct Services,Third Party Payments,430101,Rendered by Private Contractors,05-Dec-16,3215312-IV831064,"1,894.85",DIRECT TYRE MANAGEMENT (DTM).
Regeneration and Local Services,Direct Services,Third Party Payments,430101,Rendered by Private Contractors,05-Dec-16,3215312-IV833161,"1,441.95",DIRECT TYRE MANAGEMENT (DTM).
Regeneration and Local Services,Direct Services,Third Party Payments,430101,Rendered by Private Contractors,05-Dec-16,3215312-IV834914,"1,034.12",DIRECT TYRE MANAGEMENT (DTM).
Regeneration and Local Services,Direct Services,Premises,106082,Centrally Controlled Rep and Maint,05-Dec-16,3215490-8527,"1,550.00",PREMIER CELL FIT T/A LIVEWIRE GATES & DOORS.
Regeneration and Local Services,Direct Services,Supplies and Services,304359,Equipment and Materials,05-Dec-16,3215413-137448,648,KEN THOMAS (SITE CLEARANCE LTD).
Regeneration and Local Services,Economic Development and Housing,Premises,108099,Service Repairs and Maintenance,05-Dec-16,3215398-13937,"1,608.55",JC MAINTENANCE SERVICES LTD.
Regeneration and Local Services,Economic Development and Housing,Fees,901002,Professional fees,05-Dec-16,3215338-101009/09,"2,775.00",FAIRHURST.
Regeneration and Local Services,Economic Development and Housing,Premises,106082,Centrally Controlled Rep and Maint,05-Dec-16,3215461-2016089,"1,931.00",NORTHERN POWER PLANT LTD.
Regeneration and Local Services,Economic Development and Housing,Supplies and Services,344033,Telephones,05-Dec-16,3215349-133263,"1,120.76",FREEDOM COMMUNICATIONS (UK) LTD.
Regeneration and Local Services,Projects and Business services,Premises,108251,Service Repairs and Maintenance,05-Dec-16,3215469-0000647063,938.07,OPENVIEW SECURITY SOLUTIONS LTD.
Regeneration and Local Services,Spatial Policy Planning Assets & Environment,Supplies and Services,338066,Services,05-Dec-16,3215450-3071,"70,884.77",NEPRO LTD.
Regeneration and Local Services,Technical Services,Supplies and Services,336005,Advertising,05-Dec-16,3215452-17587797,586.19,NEWSQUEST (YORKSHIRE & NORTH EAST) LTD.
Regeneration and Local Services,Technical Services,Third Party Payments,430127,Rendered by Private Contractors,05-Dec-16,3215592-42558,802,W MARLEY AGRICULTURAL CONTRACTORS LTD.
Regeneration and Local Services,Technical Services,Supplies and Services,304221,Equipment and Materials,05-Dec-16,3215227-24030760,967.91,AGGREGATE INDUSTRIES UK LTD.
Regeneration and Local Services,Technical Services,Supplies and Services,304221,Equipment and Materials,05-Dec-16,3215227-24030761,"1,171.79",AGGREGATE INDUSTRIES UK LTD.
Regeneration and Local Services,Technical Services,Supplies and Services,304221,Equipment and Materials,05-Dec-16,3215227-24036899,"1,336.58",AGGREGATE INDUSTRIES UK LTD.
Regeneration and Local Services,Technical Services,Supplies and Services,304221,Equipment and Materials,05-Dec-16,3215227-24036900,759.08,AGGREGATE INDUSTRIES UK LTD.
Regeneration and Local Services,Technical Services,Supplies and Services,304221,Equipment and Materials,05-Dec-16,3215227-24036902,"1,029.33",AGGREGATE INDUSTRIES UK LTD.
Regeneration and Local Services,Technical Services,Supplies and Services,304221,Equipment and Materials,05-Dec-16,3215391-558243,"4,200.00",INSTARMAC GROUP PLC.
Regeneration and Local Services,Technical Services,Supplies and Services,304221,Equipment and Materials,05-Dec-16,3215525-233557,"1,146.00",SIGNPOST SOLUTIONS LTD.
Regeneration and Local Services,Technical Services,Supplies and Services,304221,Equipment and Materials,05-Dec-16,3215554-9035318019,957,TARMAC TRADING LTD.
Regeneration and Local Services,Technical Services,Supplies and Services,304221,Equipment and Materials,05-Dec-16,3215588-INV039555,627,URBIS SCHREDER LTD.
Regeneration and Local Services,Technical Services,Supplies and Services,304357,Equipment and Materials,05-Dec-16,3215354-DCC271116,"18,235.36",GAP GROUP LTD.
Regeneration and Local Services,Technical Services,Third Party Payments,430100,Rendered by Private Contractors,05-Dec-16,3215246-IN28701,"32,268.25",BALFOUR BEATTY LIVING PLACES LTD.*
Regeneration and Local Services,Technical Services,Third Party Payments,430100,Rendered by Private Contractors,05-Dec-16,3215247-1638004,"20,127.88",BCE NORTHERN LTD.
Regeneration and Local Services,Technical Services,Third Party Payments,430100,Rendered by Private Contractors,05-Dec-16,3215247-1638005,"52,099.15",BCE NORTHERN LTD.
Regeneration and Local Services,Technical Services,Third Party Payments,430100,Rendered by Private Contractors,05-Dec-16,3215492-362,650,PRM FABRICATIONS LTD.
Regeneration and Local Services,Technical Services,Third Party Payments,430100,Rendered by Private Contractors,05-Dec-16,3215508-39957,"6,854.00",RJ UTILITY SERVICES LTD.
Regeneration and Local Services,Technical Services,Premises,150015,Apportioned Exps of Operational Blds,05-Dec-16,3215596-588610,500.84,WERNICK HIRE LTD.
Regeneration and Local Services,Technical Services,Stock,926900,Stock in hand-Inventory system,05-Dec-16,3215365-06/622879,663.75,GREENHAM TRADING LTD.
Regeneration and Local Services,Technical Services,Stock,926900,Stock in hand-Inventory system,05-Dec-16,3215382-34351,898,HUGH LOGAN ENGINEERING.
Regeneration and Local Services,Technical Services,Stock,926900,Stock in hand-Inventory system,05-Dec-16,3215402-NI032081,"1,376.00",JOHN MACLEAN & SONS ELECTRICAL (DINGWALL) LTD.
Regeneration and Local Services,Technical Services,Stock,926900,Stock in hand-Inventory system,05-Dec-16,3215402-NI032082,"29,234.00",JOHN MACLEAN & SONS ELECTRICAL (DINGWALL) LTD.
Regeneration and Local Services,Technical Services,Stock,926900,Stock in hand-Inventory system,05-Dec-16,3215402-NI032083,"9,194.00",JOHN MACLEAN & SONS ELECTRICAL (DINGWALL) LTD.
Regeneration and Local Services,Technical Services,Stock,926900,Stock in hand-Inventory system,05-Dec-16,3215410-STI448200,"3,504.50",JT DOVE LTD.
Regeneration and Local Services,Technical Services,Stock,926900,Stock in hand-Inventory system,05-Dec-16,3215462-2173024,503,NORTHERN TOOLS & ACCESSORIES.
Regeneration and Local Services,Technical Services,Stock,926900,Stock in hand-Inventory system,05-Dec-16,3215476-XL185245,"2,604.44",PARK ELECTRICAL DISTRIBUTORS LTD.
Regeneration and Local Services,Technical Services,Stock,926900,Stock in hand-Inventory system,05-Dec-16,3215476-XL185379,950,PARK ELECTRICAL DISTRIBUTORS LTD.
Regeneration and Local Services,Technical Services,Stock,926900,Stock in hand-Inventory system,05-Dec-16,3215499-NF150420,792,REFLEX PLUS LTD.
Regeneration and Local Services,Technical Services,Stock,926900,Stock in hand-Inventory system,05-Dec-16,3215554-9035318014,"1,038.45",TARMAC TRADING LTD.
Regeneration and Local Services,Technical Services,Stock,926900,Stock in hand-Inventory system,05-Dec-16,3215568-N/IN184918,"4,103.09",THOMAS OWEN & SONS (NEWCASTLE) LTD.
Regeneration and Local Services,Technical Services,Stock,926900,Stock in hand-Inventory system,05-Dec-16,3215568-N/IN184929,896.28,THOMAS OWEN & SONS (NEWCASTLE) LTD.
Regeneration and Local Services,Technical Services,Stock,926900,Stock in hand-Inventory system,05-Dec-16,3215568-N/IN184937,"6,688.71",THOMAS OWEN & SONS (NEWCASTLE) LTD.
Regeneration and Local Services,Technical Services,Stock,926900,Stock in hand-Inventory system,05-Dec-16,3215588-INV039553,"38,723.00",URBIS SCHREDER LTD.
Regeneration and Local Services,Technical Services,Stock,926900,Stock in hand-Inventory system,05-Dec-16,3215588-INV039554,"82,593.00",URBIS SCHREDER LTD.
Regeneration and Local Services,Technical Services,Stock,926900,Stock in hand-Inventory system,05-Dec-16,3215600-37799698,674.4,WOLSELEY UK LTD.
Regeneration and Local Services,Technical Services,Employees,40149,Recruitment Instruction and Training,05-Dec-16,3215381-3995,600,HSF TRAINING LTD.
Resources,Corporate Finance,Supplies and Services,352001,Conference Expenses,05-Dec-16,3215509-RES-12-2016-006,"1,773.25",RLSS UK ENTERPRISES LTD T/A LIFESAVERS DIRECT.
Resources,I.C.T. Services,Supplies and Services,342215,Computers and Communications,05-Dec-16,3215518-I16110022,900,SAPPHIRE TECHNOLOGIES LTD.*
Resources,I.C.T. Services,Supplies and Services,342215,Computers and Communications,05-Dec-16,3215518-I16110024,900,SAPPHIRE TECHNOLOGIES LTD.*
Resources,I.C.T. Services,Supplies and Services,344111,Telephones,05-Dec-16,3215451-202297,"4,833.00",NETWORKS 2 BUSINESS LTD.
Resources,I.C.T. Services,Supplies and Services,304303,Equipment and Materials,05-Dec-16,3215411-38232,"3,852.36",KBR IT & NETWORKING SOLUTIONS.
Resources,I.C.T. Services,Supplies and Services,304303,Equipment and Materials,05-Dec-16,3215411-38233,"3,515.19",KBR IT & NETWORKING SOLUTIONS.
Resources,I.C.T. Services,Stock,926900,Stock in hand-Inventory system,05-Dec-16,3215309-7402317316,"89,901.96",DELL COMPUTER CORPORATION LTD.
Resources,I.C.T. Services,Stock,926900,Stock in hand-Inventory system,05-Dec-16,3215604-AX96451,"2,160.00",XMA LTD.
Resources,I.C.T. Services,Stock,926900,Stock in hand-Inventory system,05-Dec-16,3215604-AY46082,"1,944.00",XMA LTD.
Resources,Legal & Democratic Services,Supplies and Services,338025,Services,05-Dec-16,3215546-7003,550,STUART WRIGHT FUNERAL SERVICE LTD.
Transformation and Partnerships,Partnerships & Community Engagement Div.,Supplies and Services,384085,Miscellaneous Expenses,05-Dec-16,3215303-JOHO06-16YOUR07-16,"1,000.00",CROFT VIEW HALLS LANCHESTER.
Transformation and Partnerships,Policy & Communications Division,Supplies and Services,312009,Newspapers Books and Periodicals,05-Dec-16,3215375-341038/390125,833,HEMMING GROUP LTD.
Adult and Health Services,Central/Other,Employees,80025,Agency Staff,06-Dec-16,3216383-334638,"160,423.52",DE POEL MANAGED SERVICES LTD.
Adult and Health Services,Head of Adults,Supplies and Services,338045,Services,06-Dec-16,3216304-194401-12594810-01,"2,850.00",39 ESSEX CHAMBERS.
Adult and Health Services,Head of Adults,Supplies and Services,338045,Services,06-Dec-16,3216304-204818-12092938,"8,550.24",39 ESSEX CHAMBERS.
Adult and Health Services,Head of Adults,Transport,230005,Contract Hire,06-Dec-16,3216302-111611,864,24/7 TAXI SERVICES LTD.
Adult and Health Services,Head of Adults,Transport,230005,Contract Hire,06-Dec-16,3216310-0015A,"1,500.00",AIRPORT TAXIS 4U.
Adult and Health Services,Head of Adults,Transport,230005,Contract Hire,06-Dec-16,3216319-11,550,AXLE TAXIS.
Adult and Health Services,Head of Adults,Transport,230005,Contract Hire,06-Dec-16,3216376-91,520,D CROOK T/A CK TAXIS.
Adult and Health Services,Head of Adults,Transport,230005,Contract Hire,06-Dec-16,3216427-209,673.2,I CLYDESDALE T/A BURNOPFIELD TAXIS.
Adult and Health Services,Head of Adults,Transport,230005,Contract Hire,06-Dec-16,3216438-1016,"1,175.90",JDS PRIVATE HIRE DURHAM.
Adult and Health Services,Head of Adults,Transport,230005,Contract Hire,06-Dec-16,3216438-NUM1024,"1,120.00",JDS PRIVATE HIRE DURHAM.
Adult and Health Services,Head of Adults,Transport,230005,Contract Hire,06-Dec-16,3216438-NUM1029,"1,969.00",JDS PRIVATE HIRE DURHAM.
Adult and Health Services,Head of Adults,Transport,230005,Contract Hire,06-Dec-16,3216442-DM1473-NOV2016,904,JOVIAL PRIVATE HIRE.
Adult and Health Services,Head of Adults,Transport,230005,Contract Hire,06-Dec-16,3216442-DM14914,"1,554.00",JOVIAL PRIVATE HIRE.
Adult and Health Services,Head of Adults,Transport,230005,Contract Hire,06-Dec-16,3216464-591116,"1,430.00",MARK MUSGROVE T/A MARKS TAXIS.
Adult and Health Services,Head of Adults,Transport,230005,Contract Hire,06-Dec-16,3216468-MCD36043,968,MCDONALD TRAVEL.
Adult and Health Services,Head of Adults,Transport,230005,Contract Hire,06-Dec-16,3216517-0493,968,PETER`S PRIVATE HIRE/PETER BEST.
Adult and Health Services,Head of Adults,Transport,230005,Contract Hire,06-Dec-16,3216529-15,"1,199.00",ROUTE 1.
Adult and Health Services,Head of Adults,Transport,230005,Contract Hire,06-Dec-16,3216564-0012,684,STEPHEN VALLANCE T/A SELECT CABS.
Adult and Health Services,Head of Adults,Transport,230005,Contract Hire,06-Dec-16,3216594-B104,550,TRUDY`S.
Adult and Health Services,Head of Adults,Transport,230005,Contract Hire,06-Dec-16,3216604-5569,"1,529.00",WEARDALE PRIVATE HIRE.
Adult and Health Services,Public Health,Third Party Payments,460802,Contract Payments,06-Dec-16,3216354-7910027844,"3,106.83",CITY HOSPITALS SUNDERLAND NHS FOUNDATION TRUST.
Adult and Health Services,Public Health,Third Party Payments,460802,Contract Payments,06-Dec-16,3216354-7910027863,"25,363.04",CITY HOSPITALS SUNDERLAND NHS FOUNDATION TRUST.
Adult and Health Services,Public Health,Third Party Payments,460802,Contract Payments,06-Dec-16,3216354-7910027864,"8,308.77",CITY HOSPITALS SUNDERLAND NHS FOUNDATION TRUST.
Adult and Health Services,Public Health,Third Party Payments,460802,Contract Payments,06-Dec-16,3216354-7910028531,"8,015.29",CITY HOSPITALS SUNDERLAND NHS FOUNDATION TRUST.
Adult and Health Services,Public Health,Third Party Payments,460802,Contract Payments,06-Dec-16,3216354-7910029029,"6,456.40",CITY HOSPITALS SUNDERLAND NHS FOUNDATION TRUST.
Adult and Health Services,Public Health,Third Party Payments,460802,Contract Payments,06-Dec-16,3216354-7910029031,"3,645.03",CITY HOSPITALS SUNDERLAND NHS FOUNDATION TRUST.
Adult and Health Services,Public Health,Premises,125009,Rents,06-Dec-16,3216500-48477612,"9,000.00",NHS PROPERTY SERVICES LTD.
Children and Young Peoples Services,Childrens Services,Third Party Payments,440001,Other Third Party Payments,06-Dec-16,3215920-1152504,595.8,REDACTED - PAYMENT TO INDIVIDUAL
Children and Young Peoples Services,Childrens Services,Third Party Payments,440001,Other Third Party Payments,06-Dec-16,3216157-1152505,"1,242.00",REDACTED - PAYMENT TO INDIVIDUAL
Children and Young Peoples Services,Childrens Services,Third Party Payments,440001,Other Third Party Payments,06-Dec-16,3216206-1151780,568,REDACTED - PAYMENT TO INDIVIDUAL
Children and Young Peoples Services,Childrens Services,Third Party Payments,440001,Other Third Party Payments,06-Dec-16,3216211-1152048,"1,471.02",REDACTED - PAYMENT TO INDIVIDUAL
Children and Young Peoples Services,Childrens Services,Third Party Payments,440016,Other Third Party Payments,06-Dec-16,3216260-1152506,"1,134.00",REDACTED - PAYMENT TO INDIVIDUAL
Children and Young Peoples Services,Childrens Services,Third Party Payments,440028,Other Third Party Payments,06-Dec-16,3215809-1152498,807.12,REDACTED - PAYMENT TO INDIVIDUAL
Children and Young Peoples Services,Childrens Services,Premises,125009,Rents,06-Dec-16,3216602-201600002218,"13,687.50",VINE PROPERTY MANAGEMENT LLP.
Children and Young Peoples Services,Childrens Services,Premises,150005,Apportioned Exps of Operational Blds,06-Dec-16,3216602-201600002242,"1,967.50",VINE PROPERTY MANAGEMENT LLP.
Children and Young Peoples Services,Childrens Services,Third Party Payments,486033,Service Level Agreements,06-Dec-16,3216321-141003524,"7,210.62",BARNARDO SERVICES LTD.
Children and Young Peoples Services,Education,Employees,40001,Recruitment Instruction and Training,06-Dec-16,3216583-TARINV/15445692,710.1,TES GLOBAL LTD.
Children and Young Peoples Services,Education,Transport,230007,Contract Hire,06-Dec-16,3216377-1493,880,DA TAXIS.
Children and Young Peoples Services,Education,Transport,230007,Contract Hire,06-Dec-16,3216479-53,"1,111.80",MR JOHN ALLINSON T/A AALPHA TAXIS.
Children and Young Peoples Services,Education,Transport,230007,Contract Hire,06-Dec-16,3216604-5559,704,WEARDALE PRIVATE HIRE.
Children and Young Peoples Services,Education,Transport,230007,Contract Hire,06-Dec-16,3216604-5560,"4,413.38",WEARDALE PRIVATE HIRE.
Children and Young Peoples Services,Education,Transport,230007,Contract Hire,06-Dec-16,3216604-5561,"3,957.80",WEARDALE PRIVATE HIRE.
Children and Young Peoples Services,Education,Transport,230003,Contract Hire,06-Dec-16,3216439-18709,"2,184.05",JIM HUGHES COACHES LTD.
Children and Young Peoples Services,Education,Transport,230003,Contract Hire,06-Dec-16,3216439-18710,"1,839.20",JIM HUGHES COACHES LTD.
Children and Young Peoples Services,Education,Transport,230006,Contract Hire,06-Dec-16,3216305-68118,930,A & C TAXIS.
Children and Young Peoples Services,Education,Transport,230006,Contract Hire,06-Dec-16,3216364-1090,"2,068.00",CONNORS MINI BUSES.*
Children and Young Peoples Services,Education,Transport,230006,Contract Hire,06-Dec-16,3216485-0012,"1,174.00",MR PM MULLEN T/A CATHEDRAL TAXIS.
Children and Young Peoples Services,Education,Transport,230006,Contract Hire,06-Dec-16,3216604-5564,"1,345.50",WEARDALE PRIVATE HIRE.
Children and Young Peoples Services,Education,Transport,230012,Contract Hire,06-Dec-16,3216323-10NOVEMBER16,"1,879.02",BEELINE PRIVATE HIRE.
Children and Young Peoples Services,Education,Transport,230012,Contract Hire,06-Dec-16,3216514-SC-106,"1,760.00",PAUL BURRELL T/A PAUL BURRELL TAXIS.
Children and Young Peoples Services,Education,Transport,230008,Contract Hire,06-Dec-16,3216306-NOV16,"1,695.00",A & P TAXIS.
Children and Young Peoples Services,Education,Transport,230008,Contract Hire,06-Dec-16,3216312-153903,"1,466.45",ALAN SOUTHERN T/A ALANS TAXIS PELTON FELL.
Children and Young Peoples Services,Education,Transport,230008,Contract Hire,06-Dec-16,3216312-388903,"1,323.00",ALAN SOUTHERN T/A ALANS TAXIS PELTON FELL.
Children and Young Peoples Services,Education,Transport,230008,Contract Hire,06-Dec-16,3216323-NOVEMBER16,"1,265.94",BEELINE PRIVATE HIRE.
Children and Young Peoples Services,Education,Transport,230008,Contract Hire,06-Dec-16,3216330-BZ00205,"1,782.00",BREZ`S TAXIS.
Children and Young Peoples Services,Education,Transport,230008,Contract Hire,06-Dec-16,3216336-PS0149,"1,309.12",BURNDALE PRIVATE HIRE.
Children and Young Peoples Services,Education,Transport,230008,Contract Hire,06-Dec-16,3216336-PS0150,589.16,BURNDALE PRIVATE HIRE.
Children and Young Peoples Services,Education,Transport,230008,Contract Hire,06-Dec-16,3216337-BIL0089,"1,840.61",CA MUSGROVE.
Children and Young Peoples Services,Education,Transport,230008,Contract Hire,06-Dec-16,3216364-1092,"2,320.00",CONNORS MINI BUSES.*
Children and Young Peoples Services,Education,Transport,230008,Contract Hire,06-Dec-16,3216364-1093,"1,831.80",CONNORS MINI BUSES.*
Children and Young Peoples Services,Education,Transport,230008,Contract Hire,06-Dec-16,3216364-1094,"1,831.80",CONNORS MINI BUSES.*
Children and Young Peoples Services,Education,Transport,230008,Contract Hire,06-Dec-16,3216377-1491,"1,298.00",DA TAXIS.
Children and Young Peoples Services,Education,Transport,230008,Contract Hire,06-Dec-16,3216378-204,"1,974.00",DA TRAVEL.
Children and Young Peoples Services,Education,Transport,230008,Contract Hire,06-Dec-16,3216427-208,"2,565.20",I CLYDESDALE T/A BURNOPFIELD TAXIS.
Children and Young Peoples Services,Education,Transport,230008,Contract Hire,06-Dec-16,3216447-3C-A046-NOV16,"1,160.00",L & R PRIVATE HIRE.
Children and Young Peoples Services,Education,Transport,230008,Contract Hire,06-Dec-16,3216460-24,"1,540.00",MALCOLM CARR T/A CARLY CABS.
Children and Young Peoples Services,Education,Transport,230008,Contract Hire,06-Dec-16,3216463-101605,"1,264.00",MARK & JOHN CHISHOLM T/A (CHEVRON).
Children and Young Peoples Services,Education,Transport,230008,Contract Hire,06-Dec-16,3216471-INV-116,"1,188.00",MICHAEL COBB (T/A HAIL TAXIS).
Children and Young Peoples Services,Education,Transport,230008,Contract Hire,06-Dec-16,3216478-0304826,"2,006.40",MR GN ROBBINS T/A GNR MINIBUS HIRE.
Children and Young Peoples Services,Education,Transport,230008,Contract Hire,06-Dec-16,3216565-07,"1,742.00",STEVEN HENDERSON T/A HENDYS TAXIS.
Children and Young Peoples Services,Education,Income,740298,Other Income,06-Dec-16,3216400-CAS-12-2016-009,"8,460.61",EXCEL ACADEMY PARTNERSHIP T/A FRAMWELLGATE SCHOOL DURHAM.
Children and Young Peoples Services,Education,Transfer Payments,510028,School Children,06-Dec-16,3216381-CAS-12-2016-022,"3,057.45",DAYPARK LTD T/A YELLOW WELLIES.
Dedicated Schools Grant,Dedicated Schools Grant,Central Support and Capital,689996,Unclassified,06-Dec-16,3216391-CAS-12-2016-010,"8,395.03",EASINGTON ACADEMY.
Regeneration and Local Services,Culture & Sport,Supplies and Services,338047,Services,06-Dec-16,3216436-26-50-21-09-16,"1,825.00",JAMES ROBSON (MUSICIAN).
Regeneration and Local Services,Culture & Sport,Supplies and Services,338047,Services,06-Dec-16,3216445-1660,"2,375.00",KERRY FOLEY MANAGEMENT LTD.
Regeneration and Local Services,Culture & Sport,Supplies and Services,338047,Services,06-Dec-16,3216487-2,"2,375.00",MR ROBERT EMILE.
Regeneration and Local Services,Culture & Sport,Supplies and Services,338047,Services,06-Dec-16,3216538-08,"2,587.71",REDACTED - PAYMENT TO INDIVIDUAL
Regeneration and Local Services,Culture & Sport,Supplies and Services,338047,Services,06-Dec-16,3216540-2/2,"2,375.00",SCOTT SLAYMAKER.
Regeneration and Local Services,Culture & Sport,Supplies and Services,304259,Equipment and Materials,06-Dec-16,3216444-4100555547,"3,200.00",KEN PEACOCK (BUILDING SERVICES).
Regeneration and Local Services,Culture & Sport,Supplies and Services,384199,Miscellaneous Expenses,06-Dec-16,3216317-030,"1,725.00",ANDREW SHUTT.
Regeneration and Local Services,Culture & Sport,Supplies and Services,384199,Miscellaneous Expenses,06-Dec-16,3216416-4100550548,"4,750.00",GEORGINA MANNIFIELD.
Regeneration and Local Services,Culture & Sport,Supplies and Services,384199,Miscellaneous Expenses,06-Dec-16,3216472-555,"1,647.06",MICHAEL LONG.
Regeneration and Local Services,Culture & Sport,Employees,40149,Recruitment Instruction and Training,06-Dec-16,3216326-S1NV23333,"1,040.00",BISHOP AUCKLAND COLLEGE.
Regeneration and Local Services,Direct Services,Supplies and Services,304221,Equipment and Materials,06-Dec-16,3216406-1611-045810,"2,249.85",FLAME HEATING SPARES LTD.
Regeneration and Local Services,Direct Services,Supplies and Services,304221,Equipment and Materials,06-Dec-16,3216498-431328953,650.59,NEWEY & EYRE LTD.
Regeneration and Local Services,Direct Services,Supplies and Services,304221,Equipment and Materials,06-Dec-16,3216590-108903,663.01,TOMMY WARDLE.
Regeneration and Local Services,Direct Services,Third Party Payments,430100,Rendered by Private Contractors,06-Dec-16,3216525-39951,"3,270.00",RJ UTILITY SERVICES LTD.
Regeneration and Local Services,Economic Development and Housing,Cap Exp on Grants & Other Financial Assistance (REFCUS),918401,Capital grants,06-Dec-16,3216541-RES-12-2016-008,"289,000.00",SEAHAM HARBOUR CIC.
Regeneration and Local Services,Economic Development and Housing,Premises,120009,Energy Costs,06-Dec-16,3216510-79812158620,829.56,NPOWER.
Regeneration and Local Services,Economic Development and Housing,Supplies and Services,384700,Miscellaneous Expenses,06-Dec-16,3216426-RED-12-2016-006,500,HORDEN RFC.
Regeneration and Local Services,Spatial Policy Planning Assets & Environment,Construction Work,908105,Construction work,06-Dec-16,3216470-INSMOORSIDECONSETT,"65,439.03",MGL DEMOLITION LTD.
Regeneration and Local Services,Technical Services,Construction Work,908105,Construction work,06-Dec-16,3216435-13138,"1,406.48",JACK COUPE & SONS LTD T/A COUPE LINE.
Regeneration and Local Services,Technical Services,Construction Work,908105,Construction work,06-Dec-16,3216435-13139,"1,508.41",JACK COUPE & SONS LTD T/A COUPE LINE.
Regeneration and Local Services,Technical Services,Construction Work,908105,Construction work,06-Dec-16,3216435-13143,"1,044.60",JACK COUPE & SONS LTD T/A COUPE LINE.
Regeneration and Local Services,Technical Services,Supplies and Services,304221,Equipment and Materials,06-Dec-16,3216309-24009323,748.81,AGGREGATE INDUSTRIES UK LTD.
Regeneration and Local Services,Technical Services,Supplies and Services,304221,Equipment and Materials,06-Dec-16,3216309-24042842,521.07,AGGREGATE INDUSTRIES UK LTD.
Regeneration and Local Services,Technical Services,Supplies and Services,304221,Equipment and Materials,06-Dec-16,3216523-SI1630426,920,REDIWELD RUBBER & PLASTICS LTD.
Regeneration and Local Services,Technical Services,Supplies and Services,378002,Levies,06-Dec-16,3216486-NEI-EXP-12-2016-001,"4,500.00",REDACTED - PAYMENT TO INDIVIDUAL
Regeneration and Local Services,Technical Services,Supplies and Services,384194,Miscellaneous Expenses,06-Dec-16,3216502-73357,"2,375.00",NIRAMAX GROUP LTD.
Regeneration and Local Services,Technical Services,Supplies and Services,304358,Equipment and Materials,06-Dec-16,3216348-1640,"8,586.05",CG SIMPSON & SON.
Regeneration and Local Services,Technical Services,Supplies and Services,304358,Equipment and Materials,06-Dec-16,3216430-0897,584,J & JG GILL & SONS LTD.
Regeneration and Local Services,Technical Services,Supplies and Services,304358,Equipment and Materials,06-Dec-16,3216533-1043,"1,612.00",S & R LANDSCAPES.
Regeneration and Local Services,Technical Services,Supplies and Services,304358,Equipment and Materials,06-Dec-16,3216533-1056,"2,476.00",S & R LANDSCAPES.
Regeneration and Local Services,Technical Services,Supplies and Services,304358,Equipment and Materials,06-Dec-16,3216610-5926,"1,861.50",YOULL CONSTRUCTION LTD.
Regeneration and Local Services,Technical Services,Supplies and Services,304358,Equipment and Materials,06-Dec-16,3216610-5930,930.75,YOULL CONSTRUCTION LTD.
Regeneration and Local Services,Technical Services,Stock,926900,Stock in hand-Inventory system,06-Dec-16,3216549-SI-096628,"1,071.00",SICAME ELECTRICAL DISTRIBUTION LTD.
Regeneration and Local Services,Technical Services,Stock,926900,Stock in hand-Inventory system,06-Dec-16,3216589-N/IN184815,"1,214.08",THOMAS OWEN & SONS (NEWCASTLE) LTD.
Regeneration and Local Services,Transport and Contracted Services,Transport,230020,Contract Hire,06-Dec-16,3216361-2981,"1,001.70",CO-WHEELS CAR CLUB CIC.
Resources,I.C.T. Services,Supplies and Services,342215,Computers and Communications,06-Dec-16,3216537-I16110023,900,SAPPHIRE TECHNOLOGIES LTD.*
Resources,Legal & Democratic Services,Supplies and Services,338042,Services,06-Dec-16,3216384-321555/INVPM195,550,DERE STREET BARRISTERS.
Resources,Legal & Democratic Services,Supplies and Services,340001,Postages,06-Dec-16,3216308-PSI0005193,"2,536.08",ADARE INSPIRED COMMUNICATIONS.
Transformation and Partnerships,Partnerships & Community Engagement Div.,Supplies and Services,384085,Miscellaneous Expenses,06-Dec-16,3216324-OLIP04-16,"1,362.50",BENFIELDSIDE BLACKHILL BRIDGEHILL & SHOTLEY BRIDGE COMMUNITY PARTNERSHIP.
Transformation and Partnerships,Partnerships & Community Engagement Div.,Supplies and Services,384085,Miscellaneous Expenses,06-Dec-16,3216542-YORR03-16,500,SELBY CLOSE SOCIAL CLUB.
Transformation and Partnerships,Partnerships & Community Engagement Div.,Supplies and Services,338099,Services,06-Dec-16,3216369-DC0005,"6,184.50",COUNTY DURHAM FURNITURE HELP SCHEME (CDFHS).
Transformation and Partnerships,Partnerships & Community Engagement Div.,Supplies and Services,338099,Services,06-Dec-16,3216369-DC0006,575,COUNTY DURHAM FURNITURE HELP SCHEME (CDFHS).
Adult and Health Services,Head of Adults,Supplies and Services,338366,Services,07-Dec-16,3216722-35917,"1,417.00",CARE ABILITY.
Adult and Health Services,Head of Adults,Supplies and Services,308013,Furniture,07-Dec-16,3216877-582713,533,J & D CARPETS T/A THE FLOORING STORE.
Adult and Health Services,Head of Adults,Third Party Payments,425020,Rendered by Voluntary Organisations,07-Dec-16,3217000-0000031381,"2,343.59",NORTH EAST AUTISM SOCIETY.
Adult and Health Services,Head of Adults,Third Party Payments,425020,Rendered by Voluntary Organisations,07-Dec-16,3217000-0000031383,"1,333.08",NORTH EAST AUTISM SOCIETY.
Adult and Health Services,Head of Adults,Transport,230005,Contract Hire,07-Dec-16,3216678-1458,"1,100.00",BOBBY DOVE.
Adult and Health Services,Head of Adults,Transport,230005,Contract Hire,07-Dec-16,3216829-9152,"1,200.50",G & P JOHNSON LTD T/A NIGHTINGALE COACHES.
Adult and Health Services,Head of Adults,Transport,230005,Contract Hire,07-Dec-16,3216862-IR1611004,"1,100.00",I & R EXECUTIVE TRAVEL.
Adult and Health Services,Head of Adults,Transport,230005,Contract Hire,07-Dec-16,3216958-694,"1,958.00",MOLLYS TAXIS.
Adult and Health Services,Head of Adults,Transport,230005,Contract Hire,07-Dec-16,3216962-EDB11-16,"1,254.00",MR CT WALKER T/A CW TAXIS.
Adult and Health Services,Head of Adults,Transport,230005,Contract Hire,07-Dec-16,3217128-174,680,THE TAXI COMPANY (MURTON) LTD.
Adult and Health Services,Head of Adults,Transport,230005,Contract Hire,07-Dec-16,3217141-2016-NOV2016,550,TRANSPORT.ADVENTURE.XI.
Adult and Health Services,Head of Adults,Third Party Payments,478151,Purchase of Care,07-Dec-16,3217048-1300003956,"1,057.05",PROGRESS CARE HOUSING ASSOCIATION LTD.
Adult and Health Services,Planning & Service Strategy,Supplies and Services,338089,Services,07-Dec-16,3216721-03,"6,000.00",CAPITAL 4 TRAINING LTD
Adult and Health Services,Planning & Service Strategy,Supplies and Services,338089,Services,07-Dec-16,3216861-4001,600,HSF TRAINING LTD.
Adult and Health Services,Public Health,Third Party Payments,460802,Contract Payments,07-Dec-16,3216747-3980020458,"41,774.00",CO DURHAM & DARLINGTON NHS FOUNDATION TRUST.
Adult and Health Services,Public Health,Third Party Payments,460803,Contract Payments,07-Dec-16,3216642-DPQX/00000076SC,508,ASDA PHARMACY.*
Adult and Health Services,Public Health,Third Party Payments,460803,Contract Payments,07-Dec-16,3216643-DTPB/00000066SC,"1,044.00",ASDA PHARMACY.*
Adult and Health Services,Public Health,Third Party Payments,460803,Contract Payments,07-Dec-16,3216663-FQYW/00000058SC,610,BESTWAY NATIONAL CHEMIST LTD T/A WELL.
Adult and Health Services,Public Health,Third Party Payments,460803,Contract Payments,07-Dec-16,3216664-DYPD/00000064SC,"1,128.00",BESTWAY NATIONAL CHEMIST LTD T/A WELL.
Adult and Health Services,Public Health,Third Party Payments,460803,Contract Payments,07-Dec-16,3216682-FHRN/00000068SC,924,BOOTS THE CHEMISTS LTD.*
Adult and Health Services,Public Health,Third Party Payments,460803,Contract Payments,07-Dec-16,3216692-DRJY/00000047SC,618,BOOTS THE CHEMISTS LTD.*
Adult and Health Services,Public Health,Third Party Payments,460803,Contract Payments,07-Dec-16,3216694-FLAP/00000058SC,708,BOOTS THE CHEMISTS LTD.*
Adult and Health Services,Public Health,Third Party Payments,460803,Contract Payments,07-Dec-16,3216727-DVQC/00000049SC,522,CENTRECHEM DISPENSING CHEMIST.
Adult and Health Services,Public Health,Third Party Payments,460803,Contract Payments,07-Dec-16,3216731-FDDM/00000051SC,564,CHEAPSIDE PHARMACY.*
Adult and Health Services,Public Health,Third Party Payments,460803,Contract Payments,07-Dec-16,3216747-3980020459,"177,500.00",CO DURHAM & DARLINGTON NHS FOUNDATION TRUST.
Adult and Health Services,Public Health,Third Party Payments,460803,Contract Payments,07-Dec-16,3216756-091,"2,500.00",CRAGHEAD DEVELOPMENT TRUST.
Adult and Health Services,Public Health,Third Party Payments,460803,Contract Payments,07-Dec-16,3216830-FNCW/00000073SC,590,G WHITFIELD LTD.
Adult and Health Services,Public Health,Third Party Payments,460803,Contract Payments,07-Dec-16,3216838-FBFN/00000063SC,820,GILL & SCHOFIELD PHARMACEUTICAL CHEMISTS LTD.
Adult and Health Services,Public Health,Third Party Payments,460803,Contract Payments,07-Dec-16,3216874-DQPW/00000062SC,910,INTRAHEALTH LTD.
Adult and Health Services,Public Health,Third Party Payments,460803,Contract Payments,07-Dec-16,3216878-DTJG/00000050SC,644,J & J PHARMACY.
Adult and Health Services,Public Health,Third Party Payments,460803,Contract Payments,07-Dec-16,3216920-DWGM/00000074SC,882,LLOYDS PHARMACY.
Adult and Health Services,Public Health,Third Party Payments,460803,Contract Payments,07-Dec-16,3216921-FRCN/00000048SC,572,LLOYDS PHARMACY.
Adult and Health Services,Public Health,Third Party Payments,460803,Contract Payments,07-Dec-16,3216922-DWZN/00000066SC,588,LLOYDS PHARMACY.
Adult and Health Services,Public Health,Third Party Payments,460803,Contract Payments,07-Dec-16,3216923-FQVV/00000062SC,742,LLOYDS PHARMACY.
Adult and Health Services,Public Health,Third Party Payments,460803,Contract Payments,07-Dec-16,3216930-DWMD/00000072SC,686,M & M PHARMACIES LTD.
Adult and Health Services,Public Health,Third Party Payments,460803,Contract Payments,07-Dec-16,3217053-6244738,"50,845.17",PUBLIC HEALTH ENGLAND (PHE).
Adult and Health Services,Public Health,Third Party Payments,460803,Contract Payments,07-Dec-16,3217066-FCTK/00000069SC,634,ROBERTS & ROBERTS LTD T/A HIGGINBOTTOM PHARMACY.
Adult and Health Services,Public Health,Third Party Payments,460803,Contract Payments,07-Dec-16,3217108-LQPJ/00000052SC,"1,230.00",T & J HEALTHCARE LTD T/A STATION ROAD PHARMACY..
Adult and Health Services,Public Health,Third Party Payments,460803,Contract Payments,07-Dec-16,3217118-FFPB/00000061SC,588,TESCO PHARMACY.*
Adult and Health Services,Public Health,Third Party Payments,460803,Contract Payments,07-Dec-16,3217120-DPNG/00000050SC,660,TESCO PHARMACY.*
Adult and Health Services,Public Health,Premises,125009,Rents,07-Dec-16,3216993-48478026,"9,000.00",NHS PROPERTY SERVICES LTD.
Children and Young Peoples Services,Central Charges (CYPS),Creditors,952258,Creditor-West Durham Cluster,07-Dec-16,3216978-201615,"1,860.00",MRS SUZANNE WILLIAMS.
Children and Young Peoples Services,Central Charges (CYPS),Employees,5001,Pay,07-Dec-16,3216977-RES-12-2016-014,"4,700.00",REDACTED - PAYMENT TO INDIVIDUAL
Children and Young Peoples Services,Childrens Services,Employees,80025,Agency Staff,07-Dec-16,3217156-230688,749.85,VISION FOR EDUCATION LTD.
Children and Young Peoples Services,Childrens Services,Employees,80025,Agency Staff,07-Dec-16,3217156-230689,540,VISION FOR EDUCATION LTD.
Children and Young Peoples Services,Childrens Services,Supplies and Services,364352,Grants to Voluntary Organisations,07-Dec-16,305646-1089,500,CITY OF SUNDERLAND YMCA LTD.
Children and Young Peoples Services,Childrens Services,Supplies and Services,364352,Grants to Voluntary Organisations,07-Dec-16,305646-1090,700,CITY OF SUNDERLAND YMCA LTD.
Children and Young Peoples Services,Childrens Services,Supplies and Services,364352,Grants to Voluntary Organisations,07-Dec-16,3216820-6547,"2,331.68",FOUNDATION.
Children and Young Peoples Services,Childrens Services,Transport,230710,Contract Hire,07-Dec-16,3217160-IN01685808,675.6,VOLKSWAGEN GROUP LEASING.
Children and Young Peoples Services,Childrens Services,Supplies and Services,364999,Grants to Voluntary Organisations,07-Dec-16,3216814-CAS-11-2016-166,720,FISHBURN YOUTH & COMMUNITY CENTRE.
Children and Young Peoples Services,Childrens Services,Transport,230005,Contract Hire,07-Dec-16,3217064-714,524,ROAD RUNNERS (NE) LTD.
Children and Young Peoples Services,Childrens Services,Third Party Payments,425041,Rendered by Voluntary Organisations,07-Dec-16,3216656-146513334,"18,000.00",BARNARDO SERVICES LTD.
Children and Young Peoples Services,Childrens Services,Third Party Payments,425041,Rendered by Voluntary Organisations,07-Dec-16,3216656-146513335,"9,000.00",BARNARDO SERVICES LTD.
Children and Young Peoples Services,Education,Third Party Payments,410037,Rendered by Other Local Authorities,07-Dec-16,3217056-SI-126,982,REDMAT LTD.
Children and Young Peoples Services,Education,Construction Work,908105,Construction work,07-Dec-16,3216804-PF17216037,"3,500.00",EXOVA (UK) LTD.
Children and Young Peoples Services,Education,Construction Work,908105,Construction work,07-Dec-16,3216900-DURHAMGILESGATESPORTS,"70,142.67",JOHN WADE (HAULAGE) LTD.
Children and Young Peoples Services,Education,Transport,230013,Contract Hire,07-Dec-16,3216762-92,"1,000.00",D CROOK T/A CK TAXIS.
Children and Young Peoples Services,Education,Transport,230007,Contract Hire,07-Dec-16,305645-STUDENTTRAVEL5-9/9/16,"1,000.00",CCC SAMUEL KINGS SCHOOL.
Children and Young Peoples Services,Education,Transport,230007,Contract Hire,07-Dec-16,3216718-326003-NOV2016,660,C & R TAXIS.
Children and Young Peoples Services,Education,Transport,230007,Contract Hire,07-Dec-16,3216741-928,"1,100.00",CLIVE HUBERY.
Children and Young Peoples Services,Education,Transport,230007,Contract Hire,07-Dec-16,3216755-DCC/4118/NOV16,"5,192.00",COUNTY COACHES.
Children and Young Peoples Services,Education,Transport,230007,Contract Hire,07-Dec-16,3216763-186,920,D MCDONNELL.
Children and Young Peoples Services,Education,Transport,230007,Contract Hire,07-Dec-16,3216783-23879,"2,863.52",DURHAM CITY COACHES.
Children and Young Peoples Services,Education,Transport,230007,Contract Hire,07-Dec-16,3216797-0702,949.83,EN ROUTE TRAVEL.
Children and Young Peoples Services,Education,Transport,230007,Contract Hire,07-Dec-16,3216833-18875,"2,574.00",GARNETTS LTD (COACHES).
Children and Young Peoples Services,Education,Transport,230007,Contract Hire,07-Dec-16,3216833-18877,"16,434.66",GARNETTS LTD (COACHES).
Children and Young Peoples Services,Education,Transport,230007,Contract Hire,07-Dec-16,3216833-18881,"2,478.00",GARNETTS LTD (COACHES).
Children and Young Peoples Services,Education,Transport,230007,Contract Hire,07-Dec-16,3216833-18883,"2,380.00",GARNETTS LTD (COACHES).
Children and Young Peoples Services,Education,Transport,230007,Contract Hire,07-Dec-16,3216881-1838,"1,092.00",J YOUNG T/A VIP TAXIS.
Children and Young Peoples Services,Education,Transport,230007,Contract Hire,07-Dec-16,3216881-1843,704,J YOUNG T/A VIP TAXIS.
Children and Young Peoples Services,Education,Transport,230007,Contract Hire,07-Dec-16,3216888-1023,"1,012.00",JDS PRIVATE HIRE DURHAM.
Children and Young Peoples Services,Education,Transport,230007,Contract Hire,07-Dec-16,3216888-1030,814,JDS PRIVATE HIRE DURHAM.
Children and Young Peoples Services,Education,Transport,230007,Contract Hire,07-Dec-16,3216901-52,"1,100.00",JOHN WARE T/A J & K TAXIS.
Children and Young Peoples Services,Education,Transport,230007,Contract Hire,07-Dec-16,3216962-HLA11-16,"1,130.24",MR CT WALKER T/A CW TAXIS.
Children and Young Peoples Services,Education,Transport,230007,Contract Hire,07-Dec-16,3217116-6032/422,"1,890.00",TED WILFORD COACHES.
Children and Young Peoples Services,Education,Transport,230003,Contract Hire,07-Dec-16,3216748-C/9551,"2,827.00",COCHRANES T/A KELVIN TRAVEL.
Children and Young Peoples Services,Education,Transport,230003,Contract Hire,07-Dec-16,3216783-23880,"2,970.00",DURHAM CITY COACHES.
Children and Young Peoples Services,Education,Transport,230003,Contract Hire,07-Dec-16,3216967-0013,"1,100.00",MR PM MULLEN T/A CATHEDRAL TAXIS.
Children and Young Peoples Services,Education,Transport,230003,Contract Hire,07-Dec-16,3217116-5039/5038NOV2016,"8,936.34",TED WILFORD COACHES.
Children and Young Peoples Services,Education,Transport,230009,Contract Hire,07-Dec-16,3216904-723103,"1,792.50",JOVIAL PRIVATE HIRE.
Children and Young Peoples Services,Education,Transport,230006,Contract Hire,07-Dec-16,3216612-111607,995.06,24/7 TAXI SERVICES LTD.
Children and Young Peoples Services,Education,Transport,230006,Contract Hire,07-Dec-16,3216669-F689-NOV2016,"1,450.00",BIG MAMMA`S EXPRESS.
Children and Young Peoples Services,Education,Transport,230006,Contract Hire,07-Dec-16,3216678-1418,"3,465.88",BOBBY DOVE.
Children and Young Peoples Services,Education,Transport,230006,Contract Hire,07-Dec-16,3216718-F67703,"1,078.00",C & R TAXIS.
Children and Young Peoples Services,Education,Transport,230006,Contract Hire,07-Dec-16,3216757-N220/NOV/16,875.1,CRAIG RAMSHAW T/A CRAIG`S CABS.
Children and Young Peoples Services,Education,Transport,230006,Contract Hire,07-Dec-16,3216778-16/17,"1,224.00",DMG PRIVATE HIRE.
Children and Young Peoples Services,Education,Transport,230006,Contract Hire,07-Dec-16,3216850-003,"1,894.00",HARDIP SINGH MAHIL T/A AMBER CARS.
Children and Young Peoples Services,Education,Transport,230006,Contract Hire,07-Dec-16,3216912-F642-1/11/16,"1,142.45",LANGLEY TAXIS.
Children and Young Peoples Services,Education,Transport,230006,Contract Hire,07-Dec-16,3216966-00214,836,MR P GARBUTT.
Children and Young Peoples Services,Education,Transport,230012,Contract Hire,07-Dec-16,3216612-111606,"1,438.14",24/7 TAXI SERVICES LTD.
Children and Young Peoples Services,Education,Transport,230012,Contract Hire,07-Dec-16,3216612-111616,836,24/7 TAXI SERVICES LTD.
Children and Young Peoples Services,Education,Transport,230012,Contract Hire,07-Dec-16,3216962-BCR11-16,"1,075.68",MR CT WALKER T/A CW TAXIS.
Children and Young Peoples Services,Education,Transport,230008,Contract Hire,07-Dec-16,3216651-301116,"1,722.16",AVALON TAXIS.
Children and Young Peoples Services,Education,Transport,230008,Contract Hire,07-Dec-16,3216660-593,"1,425.60",BEELINE MINI BUSES.
Children and Young Peoples Services,Education,Transport,230008,Contract Hire,07-Dec-16,3216660-594,743.59,BEELINE MINI BUSES.
Children and Young Peoples Services,Education,Transport,230008,Contract Hire,07-Dec-16,3216660-595,"1,598.56",BEELINE MINI BUSES.
Children and Young Peoples Services,Education,Transport,230008,Contract Hire,07-Dec-16,3216678-1421,"1,965.70",BOBBY DOVE.
Children and Young Peoples Services,Education,Transport,230008,Contract Hire,07-Dec-16,3216718-M10803,"1,732.50",C & R TAXIS.
Children and Young Peoples Services,Education,Transport,230008,Contract Hire,07-Dec-16,3216718-W15303,"1,049.40",C & R TAXIS.
Children and Young Peoples Services,Education,Transport,230008,Contract Hire,07-Dec-16,3216757-N069/OC6T/16,"1,481.14",CRAIG RAMSHAW T/A CRAIG`S CABS.
Children and Young Peoples Services,Education,Transport,230008,Contract Hire,07-Dec-16,3216765-2993,"1,759.85",DAVES MINIBUSES.
Children and Young Peoples Services,Education,Transport,230008,Contract Hire,07-Dec-16,3216765-2994,"1,573.63",DAVES MINIBUSES.
Children and Young Peoples Services,Education,Transport,230008,Contract Hire,07-Dec-16,3216765-2995,"2,406.90",DAVES MINIBUSES.
Children and Young Peoples Services,Education,Transport,230008,Contract Hire,07-Dec-16,3216765-2996,"2,130.00",DAVES MINIBUSES.
Children and Young Peoples Services,Education,Transport,230008,Contract Hire,07-Dec-16,3216765-2997,"1,390.50",DAVES MINIBUSES.
Children and Young Peoples Services,Education,Transport,230008,Contract Hire,07-Dec-16,3216797-0703,"1,768.36",EN ROUTE TRAVEL.
Children and Young Peoples Services,Education,Transport,230008,Contract Hire,07-Dec-16,3216812-E046-025,"2,616.20",FERRYHILL VILLAGE TRAVEL.
Children and Young Peoples Services,Education,Transport,230008,Contract Hire,07-Dec-16,3216852-HT248,"1,540.00",HARRY`S TAXI`S.
Children and Young Peoples Services,Education,Transport,230008,Contract Hire,07-Dec-16,3216856-3-NOV2016,927,HENRY FOREMAN T/A HENRY`S TAXIS.
Children and Young Peoples Services,Education,Transport,230008,Contract Hire,07-Dec-16,3216862-IR1611001,"2,907.52",I & R EXECUTIVE TRAVEL.
Children and Young Peoples Services,Education,Transport,230008,Contract Hire,07-Dec-16,3216862-IR1611003,"2,385.02",I & R EXECUTIVE TRAVEL.
Children and Young Peoples Services,Education,Transport,230008,Contract Hire,07-Dec-16,3216881-1846,877.8,J YOUNG T/A VIP TAXIS.
Children and Young Peoples Services,Education,Transport,230008,Contract Hire,07-Dec-16,3216881-1847,"1,236.00",J YOUNG T/A VIP TAXIS.
Children and Young Peoples Services,Education,Transport,230008,Contract Hire,07-Dec-16,3216888-1017,"1,519.46",JDS PRIVATE HIRE DURHAM.
Children and Young Peoples Services,Education,Transport,230008,Contract Hire,07-Dec-16,3216888-1018,"1,820.82",JDS PRIVATE HIRE DURHAM.
Children and Young Peoples Services,Education,Transport,230008,Contract Hire,07-Dec-16,3216888-1019,"1,428.18",JDS PRIVATE HIRE DURHAM.
Children and Young Peoples Services,Education,Transport,230008,Contract Hire,07-Dec-16,3216888-1020,"1,780.04",JDS PRIVATE HIRE DURHAM.
Children and Young Peoples Services,Education,Transport,230008,Contract Hire,07-Dec-16,3216904-M03625,"1,009.40",JOVIAL PRIVATE HIRE.
Children and Young Peoples Services,Education,Transport,230008,Contract Hire,07-Dec-16,3216904-N03025,"1,709.80",JOVIAL PRIVATE HIRE.
Children and Young Peoples Services,Education,Transport,230008,Contract Hire,07-Dec-16,3216909-0101116,"2,174.00",KEVIN EDMUNDSON.
Children and Young Peoples Services,Education,Transport,230008,Contract Hire,07-Dec-16,3216962-EPN11-16,684.84,MR CT WALKER T/A CW TAXIS.
Children and Young Peoples Services,Education,Transport,230008,Contract Hire,07-Dec-16,3216962-TDW11-16,"1,005.28",MR CT WALKER T/A CW TAXIS.
Children and Young Peoples Services,Education,Transport,230008,Contract Hire,07-Dec-16,3216962-WAL2/11-16,"1,421.80",MR CT WALKER T/A CW TAXIS.
Children and Young Peoples Services,Education,Transport,230008,Contract Hire,07-Dec-16,3216965-076,800,MR JOHN KNIGHTON T/A JK TAXIS.
Children and Young Peoples Services,Education,Transport,230008,Contract Hire,07-Dec-16,3217020-SC-105,"1,980.00",PAUL BURRELL T/A PAUL BURRELL TAXIS.
Children and Young Peoples Services,Education,Supplies and Services,304259,Equipment and Materials,07-Dec-16,3216899-0000113829,554,JOHN PACKER LTD.
Children and Young Peoples Services,Education,Transfer Payments,510026,School Children,07-Dec-16,3216716-14/11/16,864,BUDDIES CHILDCARE CENTRE.
Children and Young Peoples Services,Education,Transport,230005,Contract Hire,07-Dec-16,3217161-1116,"1,430.00",WEST AUCKLAND TOWN TRAVEL (WATT).
Children and Young Peoples Services,Education,Transport,235073,Public Transport,07-Dec-16,3216970-2485682,"1,430.00",REDACTED - PAYMENT TO INDIVIDUAL
Dedicated Schools Grant,Dedicated Schools Grant,Transport,230010,Contract Hire,07-Dec-16,3216881-1850,741.6,J YOUNG T/A VIP TAXIS.
Dedicated Schools Grant,Dedicated Schools Grant,Supplies and Services,340001,Postages,07-Dec-16,3217043-14069371-123456RT,800,POSTAGE BY PHONE PITNEY BOWES PLC.
Dedicated Schools Grant,Dedicated Schools Grant,Central Support and Capital,689996,Unclassified,07-Dec-16,3217101-CAS-12-2016-028,747.82,STEPHENSON WAY COMMUNITY PRIMARY SCHOOL.
Dedicated Schools Grant,Dedicated Schools Grant,Central Support and Capital,689996,Unclassified,07-Dec-16,3217101-CAS-12-2016-034,"4,185.43",STEPHENSON WAY COMMUNITY PRIMARY SCHOOL.
Regeneration and Local Services,Culture & Sport,Income,720501,Fees and Charges,07-Dec-16,3217110-1170,"1,000.00",TALEGATE THEATRE PRODUCTIONS.
Regeneration and Local Services,Culture & Sport,Supplies and Services,324117,Provisions,07-Dec-16,3217095-28902,"1,346.16",SNOWSHOCK LTD.
Regeneration and Local Services,Culture & Sport,Premises,145023,Cleaning and Domestic Supplies,07-Dec-16,3216707-22SI2219812,860.3,BRENNTAG UK LTD.
Regeneration and Local Services,Culture & Sport,Premises,145023,Cleaning and Domestic Supplies,07-Dec-16,3216846-08/513380,650.23,GREENHAM TRADING LTD.
Regeneration and Local Services,Culture & Sport,Supplies and Services,304337,Equipment and Materials,07-Dec-16,3216629-8720,832.05,ALISON BLACK LTD T/A SPORTMAX.
Regeneration and Local Services,Culture & Sport,Supplies and Services,338047,Services,07-Dec-16,3216798-60265925,594.56,ENTERTAINMENT ONE UK LTD.
Regeneration and Local Services,Culture & Sport,Income,720810,Fees and Charges,07-Dec-16,3216749-PSINV01285,"19,187.36",COMPETITION LINE UK LTD.
Regeneration and Local Services,Culture & Sport,Income,720810,Fees and Charges,07-Dec-16,3216749-PSINV01286,"26,272.29",COMPETITION LINE UK LTD.
Regeneration and Local Services,Culture & Sport,Income,720810,Fees and Charges,07-Dec-16,3216749-PSINV01287,"4,544.68",COMPETITION LINE UK LTD.
Regeneration and Local Services,Culture & Sport,Supplies and Services,304999,Equipment and Materials,07-Dec-16,3216827-1421,"4,171.07",FUSION LX LTD.
Regeneration and Local Services,Culture & Sport,Supplies and Services,384199,Miscellaneous Expenses,07-Dec-16,305679-NCBF2016/002,"1,090.00",NORTHERN CHILDRENS BOOK FESTIVAL.
Regeneration and Local Services,Culture & Sport,Supplies and Services,384199,Miscellaneous Expenses,07-Dec-16,3216795-002,770,EMILY LEWIS.
Regeneration and Local Services,Culture & Sport,Supplies and Services,384199,Miscellaneous Expenses,07-Dec-16,3217097-INV-9933,"3,482.31",SPEKTRIX LTD.
Regeneration and Local Services,Culture & Sport,Third Party Payments,430100,Rendered by Private Contractors,07-Dec-16,3216749-PSINV01283,"68,475.82",COMPETITION LINE UK LTD.
Regeneration and Local Services,Culture & Sport,Third Party Payments,430100,Rendered by Private Contractors,07-Dec-16,3216749-PSINV01284,"7,343.56",COMPETITION LINE UK LTD.
Regeneration and Local Services,Culture & Sport,Supplies and Services,340001,Postages,07-Dec-16,3216988-NEI-HCL-12-2016-001,"2,000.00",NEOPOST CREDIFON.
Regeneration and Local Services,Direct Services,Third Party Payments,430105,Rendered by Private Contractors,07-Dec-16,3216894-29,590,JH ORGANICS T/A P HUTCHINSON & SONS
Regeneration and Local Services,Direct Services,Supplies and Services,304221,Equipment and Materials,07-Dec-16,3216715-1660/0414135,759.52,BSS GROUP PLC.
Regeneration and Local Services,Direct Services,Supplies and Services,304221,Equipment and Materials,07-Dec-16,3216839-719543,775.73,GLASDON UK LTD.
Regeneration and Local Services,Direct Services,Supplies and Services,304221,Equipment and Materials,07-Dec-16,3216906-BII208924,"1,308.00",JT DOVE LTD.
Regeneration and Local Services,Direct Services,Supplies and Services,304221,Equipment and Materials,07-Dec-16,3217017-BR557459,815,PARK ELECTRICAL DISTRIBUTORS LTD.
Regeneration and Local Services,Direct Services,Supplies and Services,304221,Equipment and Materials,07-Dec-16,3217086-CD970435503,"1,447.80",SHERRIFF AMENITY.
Regeneration and Local Services,Direct Services,Supplies and Services,304221,Equipment and Materials,07-Dec-16,3217109-0000095740,"1,094.44",TA PLASTIC SUPPLIES LTD.
Regeneration and Local Services,Direct Services,Supplies and Services,384956,Miscellaneous Expenses,07-Dec-16,3216799-H00091928,"1,060.00",ENVIRONMENT AGENCY.
Regeneration and Local Services,Direct Services,Supplies and Services,304999,Equipment and Materials,07-Dec-16,3216724-472227,687.94,CARRS BILLINGTON AGRICULTURE.
Regeneration and Local Services,Direct Services,Third Party Payments,430100,Rendered by Private Contractors,07-Dec-16,3216658-DCC/160011,626.52,BEACON BUILDING & ASSOCIATED SERVICES LTD.
Regeneration and Local Services,Direct Services,Third Party Payments,430100,Rendered by Private Contractors,07-Dec-16,3216658-DCC/160012,778.32,BEACON BUILDING & ASSOCIATED SERVICES LTD.
Regeneration and Local Services,Direct Services,Third Party Payments,430100,Rendered by Private Contractors,07-Dec-16,3216658-DCC/160017,970.6,BEACON BUILDING & ASSOCIATED SERVICES LTD.
Regeneration and Local Services,Direct Services,Third Party Payments,430100,Rendered by Private Contractors,07-Dec-16,3216658-DCC/160018,"1,018.44",BEACON BUILDING & ASSOCIATED SERVICES LTD.
Regeneration and Local Services,Direct Services,Third Party Payments,430100,Rendered by Private Contractors,07-Dec-16,3216658-DCC/160019,"1,215.32",BEACON BUILDING & ASSOCIATED SERVICES LTD.
Regeneration and Local Services,Direct Services,Third Party Payments,430100,Rendered by Private Contractors,07-Dec-16,3216738-4841,"10,776.00",CITY FABRICATIONS LTD.
Regeneration and Local Services,Direct Services,Third Party Payments,430100,Rendered by Private Contractors,07-Dec-16,3217063-39944,"12,000.00",RJ UTILITY SERVICES LTD.
Regeneration and Local Services,Economic Development and Housing,Cap Exp on Grants & Other Financial Assistance (REFCUS),918401,Capital grants,07-Dec-16,3216630-RED-12-2016-010,"5,000.00",REDACTED - PAYMENT TO INDIVIDUAL
Regeneration and Local Services,Economic Development and Housing,Cap Exp on Grants & Other Financial Assistance (REFCUS),918401,Capital grants,07-Dec-16,3216858-RED-11-2016-171,"2,739.21",HES GROUP UK LTD.
Regeneration and Local Services,Economic Development and Housing,Cap Exp on Grants & Other Financial Assistance (REFCUS),918401,Capital grants,07-Dec-16,3216987-RED-12-2016-012,"6,682.50",NEIL BELL PLUMBERS HEATING & GAS INS.
Regeneration and Local Services,Economic Development and Housing,Cap Exp on Grants & Other Financial Assistance (REFCUS),918401,Capital grants,07-Dec-16,3217024-RED-12-2016-013,"6,378.00",PEART ACCESS RAMPS.
Regeneration and Local Services,Economic Development and Housing,Cap Exp on Grants & Other Financial Assistance (REFCUS),918401,Capital grants,07-Dec-16,3217071-RED-12-2016-021,"3,756.00",ROYCE CARSON BUILDING SERVICES.
Regeneration and Local Services,Economic Development and Housing,Cap Exp on Grants & Other Financial Assistance (REFCUS),918401,Capital grants,07-Dec-16,3217105-RED-12-2016-018,"3,511.75",SUNTER LTD.
Regeneration and Local Services,Economic Development and Housing,Cap Exp on Grants & Other Financial Assistance (REFCUS),918401,Capital grants,07-Dec-16,3217105-RED-12-2016-019,"2,555.09",SUNTER LTD.
Regeneration and Local Services,Economic Development and Housing,Cap Exp on Grants & Other Financial Assistance (REFCUS),918401,Capital grants,07-Dec-16,3217105-RED-12-2016-020,"3,250.26",SUNTER LTD.
Regeneration and Local Services,Economic Development and Housing,Cap Exp on Grants & Other Financial Assistance (REFCUS),918401,Capital grants,07-Dec-16,3217132-RED-12-2016-015,"4,275.00",THYSSENKRUPP ENCASA A DIVISION OF THYSSENKRUPP ACCESS LTD.
Regeneration and Local Services,Economic Development and Housing,Cap Exp on Grants & Other Financial Assistance (REFCUS),918401,Capital grants,07-Dec-16,3217132-RED-12-2016-016,"13,345.00",THYSSENKRUPP ENCASA A DIVISION OF THYSSENKRUPP ACCESS LTD.
Regeneration and Local Services,Economic Development and Housing,Cap Exp on Grants & Other Financial Assistance (REFCUS),918401,Capital grants,07-Dec-16,3217132-RED-12-2016-017,"1,425.78",THYSSENKRUPP ENCASA A DIVISION OF THYSSENKRUPP ACCESS LTD.
Regeneration and Local Services,Economic Development and Housing,Supplies and Services,304337,Equipment and Materials,07-Dec-16,3217059-384100,577.02,RICHARD LANG & SON LTD.
Regeneration and Local Services,Economic Development and Housing,Premises,145050,Cleaning and Domestic Supplies,07-Dec-16,3216736-CC106774,570,CITY CLEAN NORTHERN LTD.
Regeneration and Local Services,Economic Development and Housing,Supplies and Services,384700,Miscellaneous Expenses,07-Dec-16,3216637-RED-12-2016-022,"1,500.00",ARMIGER JOINERY LTD.
Regeneration and Local Services,Economic Development and Housing,Supplies and Services,384700,Miscellaneous Expenses,07-Dec-16,3216782-RED-12-2016-030,"2,000.00",DRILLING SUPPLIES & HIRE SERVICES LTD.
Regeneration and Local Services,Economic Development and Housing,Supplies and Services,384700,Miscellaneous Expenses,07-Dec-16,3216785-RED-12-2016-037,500,DURHAM MARRIOTT ROYAL COUNTY HOTEL.
Regeneration and Local Services,Economic Development and Housing,Supplies and Services,384700,Miscellaneous Expenses,07-Dec-16,3216789-RED-12-2016-023,"1,500.00",DY DECOR.
Regeneration and Local Services,Economic Development and Housing,Supplies and Services,384700,Miscellaneous Expenses,07-Dec-16,3216945-RED-12-2016-036,"1,000.00",MELLORS CATERING SERVICES LTD.
Regeneration and Local Services,Economic Development and Housing,Supplies and Services,384700,Miscellaneous Expenses,07-Dec-16,3216979-RED-12-2016-024,"2,000.00",MW CATERING T/A THE THAMES DINER.
Regeneration and Local Services,Economic Development and Housing,Supplies and Services,384700,Miscellaneous Expenses,07-Dec-16,3217104-RED-12-2016-031,585,STUART HALL & CO.
Regeneration and Local Services,Economic Development and Housing,Supplies and Services,338066,Services,07-Dec-16,3217035-3946,"1,050.00",PHLORUM LTD.
Regeneration and Local Services,Projects and Business services,Supplies and Services,340001,Postages,07-Dec-16,3217068-9053308135,"2,118.20",ROYAL MAIL GROUP PLC.
Regeneration and Local Services,Spatial Policy Planning Assets & Environment,Construction Work,908105,Construction work,07-Dec-16,3216867-INV-0554,"11,127.16",IFZW MAINTENANCE LTD.
Regeneration and Local Services,Spatial Policy Planning Assets & Environment,Supplies and Services,384899,Miscellaneous Expenses,07-Dec-16,3217055-RED-11-2016-297,"9,153.63",RED SQUIRRELS NORTHERN ENGLAND (RSNE).
Regeneration and Local Services,Spatial Policy Planning Assets & Environment,Supplies and Services,384899,Miscellaneous Expenses,07-Dec-16,3217070-RED-11-2016-298,"5,632.00",ROYAL SOCIETY FOR THE PROTECTION OF BIRDS (RSPB).*
Regeneration and Local Services,Spatial Policy Planning Assets & Environment,Income,720190,Fees and Charges,07-Dec-16,305690-RED-12-2016-026,770,REDACTED - PAYMENT TO INDIVIDUAL
Regeneration and Local Services,Spatial Policy Planning Assets & Environment,Supplies and Services,338066,Services,07-Dec-16,3216775-INV008663,"1,890.00",DIGITAL ACORN LTD.
Regeneration and Local Services,Technical Services,Third Party Payments,460502,Contract Payments,07-Dec-16,3217001-135492,718.02,NORTHUMBERLAND COUNTY COUNCIL.
Regeneration and Local Services,Technical Services,Supplies and Services,304221,Equipment and Materials,07-Dec-16,3216626-24046677,"1,235.19",AGGREGATE INDUSTRIES UK LTD.
Regeneration and Local Services,Technical Services,Supplies and Services,304221,Equipment and Materials,07-Dec-16,3216626-24046678,"1,265.08",AGGREGATE INDUSTRIES UK LTD.
Regeneration and Local Services,Technical Services,Supplies and Services,304221,Equipment and Materials,07-Dec-16,3216626-24046679,"1,142.28",AGGREGATE INDUSTRIES UK LTD.
Regeneration and Local Services,Technical Services,Supplies and Services,304221,Equipment and Materials,07-Dec-16,3216626-24046680,610.85,AGGREGATE INDUSTRIES UK LTD.
Regeneration and Local Services,Technical Services,Supplies and Services,304221,Equipment and Materials,07-Dec-16,3216626-24046681.,"1,319.06",AGGREGATE INDUSTRIES UK LTD.
Regeneration and Local Services,Technical Services,Supplies and Services,304221,Equipment and Materials,07-Dec-16,3216626-24046682,"1,659.78",AGGREGATE INDUSTRIES UK LTD.
Regeneration and Local Services,Technical Services,Supplies and Services,304221,Equipment and Materials,07-Dec-16,3216672-BMPR/023/LW,"2,996.00",BISHOP MIDDLEHAM PLANT & RECYCLING LTD.
Regeneration and Local Services,Technical Services,Supplies and Services,304221,Equipment and Materials,07-Dec-16,3216843-0017,650,GRAEME HOPPER LTD.
Regeneration and Local Services,Technical Services,Supplies and Services,304221,Equipment and Materials,07-Dec-16,3216908-9297,656.15,KEN THOMAS (SITE CLEARANCE LTD).
Regeneration and Local Services,Technical Services,Supplies and Services,304221,Equipment and Materials,07-Dec-16,3217049-94172,550,PROTECTOR SECURITY GROUP LTD.
Regeneration and Local Services,Technical Services,Supplies and Services,304221,Equipment and Materials,07-Dec-16,3217111-4002333376,"18,772.00",TARMAC TRADING LTD.
Regeneration and Local Services,Technical Services,Supplies and Services,304221,Equipment and Materials,07-Dec-16,3217111-9035335315,548.63,TARMAC TRADING LTD.
Regeneration and Local Services,Technical Services,Supplies and Services,304221,Equipment and Materials,07-Dec-16,3217111-9035341852,597.45,TARMAC TRADING LTD.
Regeneration and Local Services,Technical Services,Supplies and Services,304221,Equipment and Materials,07-Dec-16,3217111-9035355740,778.5,TARMAC TRADING LTD.
Regeneration and Local Services,Technical Services,Supplies and Services,304221,Equipment and Materials,07-Dec-16,3217111-9035364883,673.1,TARMAC TRADING LTD.
Regeneration and Local Services,Technical Services,Supplies and Services,304221,Equipment and Materials,07-Dec-16,3217166-041IN37322,"1,039.95",YESSS ELECTRICAL.
Regeneration and Local Services,Technical Services,Supplies and Services,378002,Levies,07-Dec-16,3217151-NEI-EXP-12-2016-018,"3,090.00",UPPER TEESDALE ESTATE.
Regeneration and Local Services,Technical Services,Supplies and Services,308011,Furniture,07-Dec-16,3217044-INV0388480,626.5,POSTURITE (UK) LTD.
Regeneration and Local Services,Technical Services,Third Party Payments,430100,Rendered by Private Contractors,07-Dec-16,3216986-NC5/C500/BW,"2,066.30",NEDCO CONTRACTS (NE) LTD.
Regeneration and Local Services,Technical Services,Third Party Payments,430100,Rendered by Private Contractors,07-Dec-16,3217049-94170,550,PROTECTOR SECURITY GROUP LTD.
Regeneration and Local Services,Technical Services,Stock,926900,Stock in hand-Inventory system,07-Dec-16,3216846-06/617931,989.26,GREENHAM TRADING LTD.
Regeneration and Local Services,Technical Services,Stock,926900,Stock in hand-Inventory system,07-Dec-16,3216846-06/623691,865.02,GREENHAM TRADING LTD.
Regeneration and Local Services,Technical Services,Stock,926900,Stock in hand-Inventory system,07-Dec-16,3216846-06/623765,"1,335.31",GREENHAM TRADING LTD.
Regeneration and Local Services,Technical Services,Stock,926900,Stock in hand-Inventory system,07-Dec-16,3216897-NI032087,"12,917.00",JOHN MACLEAN & SONS ELECTRICAL (DINGWALL) LTD.
Regeneration and Local Services,Technical Services,Stock,926900,Stock in hand-Inventory system,07-Dec-16,3216935-106835,"6,305.00",MALLATITE LTD T/A MALLATITE PLASTICS LTD.
Regeneration and Local Services,Technical Services,Stock,926900,Stock in hand-Inventory system,07-Dec-16,3217017-XL185479,"1,917.60",PARK ELECTRICAL DISTRIBUTORS LTD.
Regeneration and Local Services,Technical Services,Stock,926900,Stock in hand-Inventory system,07-Dec-16,3217131-N/IN185111,"3,951.94",THOMAS OWEN & SONS (NEWCASTLE) LTD.
Regeneration and Local Services,Technical Services,Employees,40149,Recruitment Instruction and Training,07-Dec-16,305659-31137,"1,500.00",JTL.
Regeneration and Local Services,Transport and Contracted Services,Construction Work,908105,Construction work,07-Dec-16,3216882-13152,"9,207.31",JACK COUPE & SONS LTD T/A COUPE LINE.
Regeneration and Local Services,Transport and Contracted Services,Third Party Payments,430100,Rendered by Private Contractors,07-Dec-16,3217003-041542,"27,425.09",NSL LTD.
Regeneration and Local Services,Transport and Contracted Services,Third Party Payments,430100,Rendered by Private Contractors,07-Dec-16,3217003-041544,"1,394.06",NSL LTD.
Regeneration and Local Services,Transport and Contracted Services,Third Party Payments,430100,Rendered by Private Contractors,07-Dec-16,3217003-041545,"49,205.81",NSL LTD.
Regeneration and Local Services,Transport and Contracted Services,Third Party Payments,430100,Rendered by Private Contractors,07-Dec-16,3217003-041546,"3,087.03",NSL LTD.
Regeneration and Local Services,Transport and Contracted Services,Third Party Payments,430100,Rendered by Private Contractors,07-Dec-16,3217003-041547,"6,518.87",NSL LTD.
Regeneration and Local Services,Transport and Contracted Services,Third Party Payments,430100,Rendered by Private Contractors,07-Dec-16,3217003-041548,"16,581.83",NSL LTD.
Regeneration and Local Services,Transport and Contracted Services,Third Party Payments,430100,Rendered by Private Contractors,07-Dec-16,3217003-041647,"7,954.92",NSL LTD.
Regeneration and Local Services,Transport and Contracted Services,Third Party Payments,430100,Rendered by Private Contractors,07-Dec-16,3217003-041648,"5,246.20",NSL LTD.
Regeneration and Local Services,Transport and Contracted Services,Third Party Payments,430100,Rendered by Private Contractors,07-Dec-16,3217003-041649,"7,980.47",NSL LTD.
Resources,Corporate Services Financing,Debtors,930165,Debtor-Housing Benefit Overpaid Recovered,07-Dec-16,305657-RES-12-2016-001,"1,681.81",REDACTED - PAYMENT TO INDIVIDUAL
Resources,I.C.T. Services,Supplies and Services,342033,Computers and Communications,07-Dec-16,3217165-AY75321,"1,007.00",XMA LTD.
Resources,I.C.T. Services,Debtors,930167,Debtor-Telephone Holding Account,07-Dec-16,3216934-107352,"23,730.33",MAINTEL EUROPE LTD.
Resources,I.C.T. Services,Supplies and Services,304639,Equipment and Materials,07-Dec-16,3216777-147059484,609.61,DIVERSEY LTD.
Resources,Legal & Democratic Services,Supplies and Services,338042,Services,07-Dec-16,3216772-326043/INVSPA130,660,DERE STREET BARRISTERS.
Resources,Legal & Democratic Services,Supplies and Services,338042,Services,07-Dec-16,3216772-326348/INVSPA131,540,DERE STREET BARRISTERS.
Resources,Legal & Democratic Services,Supplies and Services,338042,Services,07-Dec-16,3216772-326350/INVSPA132,540,DERE STREET BARRISTERS.
Resources,Legal & Democratic Services,Supplies and Services,338057,Services,07-Dec-16,305650-CPDMHJULY-SEPT2016,"4,407.60","DR CHANDRAKANT PATEL,"
Resources,Legal & Democratic Services,Supplies and Services,338057,Services,07-Dec-16,305650-CPUHNPJULY-SEPT2016,"1,355.20","DR CHANDRAKANT PATEL,"
Resources,Legal & Democratic Services,Supplies and Services,338057,Services,07-Dec-16,3216747-3980020017,"4,147.50",CO DURHAM & DARLINGTON NHS FOUNDATION TRUST.
Resources,Legal & Democratic Services,Supplies and Services,340001,Postages,07-Dec-16,3217068-9053318081,"1,331.84",ROYAL MAIL GROUP PLC.
Resources,Legal & Democratic Services,Supplies and Services,384954,Miscellaneous Expenses,07-Dec-16,305650-CP/INQ/MAR15-SEPT16,881.55,"DR CHANDRAKANT PATEL,"
Transformation and Partnerships,Partnerships & Community Engagement Div.,Income,740295,Other Income,07-Dec-16,3217093-227,800,SKIMSTONE PERFORMANCE CO LTD.
Transformation and Partnerships,Policy & Communications Division,Supplies and Services,332029,Printing Stationery and Gen Off Exps,07-Dec-16,3216621-55978,"15,290.63",ACORN WEB OFFSET LTD.
Adult and Health Services,EnvironmentHealth & Consumer Protection,Supplies and Services,304999,Equipment and Materials,08-Dec-16,3217454-440218561,"1,060.00",REDCAR & CLEVELAND BOROUGH COUNCIL.
Adult and Health Services,EnvironmentHealth & Consumer Protection,Transport,235057,Public Transport,08-Dec-16,3217454-440218360,"1,484.80",REDCAR & CLEVELAND BOROUGH COUNCIL.
Adult and Health Services,Head of Adults,Supplies and Services,338366,Services,08-Dec-16,3217223-36423,"1,624.70",CARE ABILITY.
Adult and Health Services,Head of Adults,Transfer Payments,515201,Social Services Clients,08-Dec-16,3217410-0039628,580,NORTHUMBRIA CALVERT TRUST.
Adult and Health Services,Head of Adults,Supplies and Services,384199,Miscellaneous Expenses,08-Dec-16,3217542-54,"2,900.00",WCB BUILDING SERVICES LTD.
Adult and Health Services,Head of Adults,Third Party Payments,470101,Purchase of Care,08-Dec-16,3217485-5640,"6,612.00",ST OSWALD`S HOSPICE.
Adult and Health Services,Head of Adults,Transport,230005,Contract Hire,08-Dec-16,3217197-DCC6NOV16,"3,624.50",ATLAS TAXIS BISHOP AUCKLAND.
Adult and Health Services,Head of Adults,Transport,230005,Contract Hire,08-Dec-16,3217206-06991,538,BIRDS TAXIS.
Adult and Health Services,Head of Adults,Transport,230005,Contract Hire,08-Dec-16,3217280-43,717,EXTREME TAXI`S.
Adult and Health Services,Head of Adults,Transport,230005,Contract Hire,08-Dec-16,3217292-9150,"1,760.00",G & P JOHNSON LTD T/A NIGHTINGALE COACHES.
Adult and Health Services,Head of Adults,Transport,230005,Contract Hire,08-Dec-16,3217292-9151,"1,336.00",G & P JOHNSON LTD T/A NIGHTINGALE COACHES.
Adult and Health Services,Head of Adults,Transport,230005,Contract Hire,08-Dec-16,3217292-9153,"1,298.00",G & P JOHNSON LTD T/A NIGHTINGALE COACHES.
Adult and Health Services,Head of Adults,Transport,230005,Contract Hire,08-Dec-16,3217313-DW108-NOV16,"1,320.00",HIPPY`S TAXI.
Adult and Health Services,Head of Adults,Transport,230005,Contract Hire,08-Dec-16,3217314-IR1611002,"1,944.00",I & R EXECUTIVE TRAVEL.
Adult and Health Services,Head of Adults,Transport,230005,Contract Hire,08-Dec-16,3217332-03-DW109-30/11/16,882,KD TAXIS.
Adult and Health Services,Head of Adults,Transport,230005,Contract Hire,08-Dec-16,3217377-3-NOV2016,790,MR BW YOUNG T/A ESH TAXIS.
Adult and Health Services,Head of Adults,Transport,230005,Contract Hire,08-Dec-16,3217380-SLD010-1116,660,MR D DONNELLY.
Adult and Health Services,Head of Adults,Transport,230005,Contract Hire,08-Dec-16,3217385-091,"1,470.00",MR JOHN KNIGHTON T/A JK TAXIS.
Adult and Health Services,Head of Adults,Transport,230005,Contract Hire,08-Dec-16,3217478-297A,585,SJ MACKENZIE T/A SCOTTS TAXIS.
Adult and Health Services,Head of Adults,Transport,230005,Contract Hire,08-Dec-16,3217489-DCC09/SLD005,"1,738.00",STEPHEN COXON.
Adult and Health Services,Head of Adults,Transport,230005,Contract Hire,08-Dec-16,3217501-B843,"1,588.84",TALBOTS TRAVEL LTD.
Adult and Health Services,Head of Adults,Third Party Payments,478151,Purchase of Care,08-Dec-16,3217415-27327,"4,701.96",OAKLEA TRUST.
Adult and Health Services,Public Health,Third Party Payments,460803,Contract Payments,08-Dec-16,3217346-0000008097,"466,357.75",LIFELINE PROJECT LTD.
Children and Young Peoples Services,Childrens Services,Supplies and Services,384491,Miscellaneous Expenses,08-Dec-16,3217541-2017-006/2017-007/2017-008,"1,324.60",WAYMAN DEVELOPMENTS LTD T/A CHILDSPLAY PRIVATE NURSERY.
Children and Young Peoples Services,Childrens Services,Supplies and Services,364352,Grants to Voluntary Organisations,08-Dec-16,3217492-251,722.12,STONHAM HOUSING ASSOCIATION LTD.
Children and Young Peoples Services,Childrens Services,Supplies and Services,364999,Grants to Voluntary Organisations,08-Dec-16,3217278-CAS-11-2016-149,645,EVENWOOD & COCKFIELD YOUTH PROJECT.
Children and Young Peoples Services,Education,Construction Work,908105,Construction work,08-Dec-16,3217468-3020,"22,818.06",SAFE STRIP UK LTD.
Children and Young Peoples Services,Education,Construction Work,908105,Construction work,08-Dec-16,3217468-3024,"8,268.80",SAFE STRIP UK LTD.
Children and Young Peoples Services,Education,Transport,230013,Contract Hire,08-Dec-16,3217182-6-30/11/16,660,ABLE NOVAK TAXIS.
Children and Young Peoples Services,Education,Transport,230013,Contract Hire,08-Dec-16,3217490-161108,550,STEVEN PRATT T/A PTL TAXIS.
Children and Young Peoples Services,Education,Transport,230013,Contract Hire,08-Dec-16,3217548-488003,927,WENDYS` TAXIS.
Children and Young Peoples Services,Education,Transport,230007,Contract Hire,08-Dec-16,3217172-111601,540,24/7 TAXI SERVICES LTD.
Children and Young Peoples Services,Education,Transport,230007,Contract Hire,08-Dec-16,3217180-F13/SJ,"1,496.00",AABAT TAXIS.
Children and Young Peoples Services,Education,Transport,230007,Contract Hire,08-Dec-16,3217180-F21/SE,511.2,AABAT TAXIS.
Children and Young Peoples Services,Education,Transport,230007,Contract Hire,08-Dec-16,3217180-F23/SK,"1,320.00",AABAT TAXIS.
Children and Young Peoples Services,Education,Transport,230007,Contract Hire,08-Dec-16,3217180-F24/SL,528,AABAT TAXIS.
Children and Young Peoples Services,Education,Transport,230007,Contract Hire,08-Dec-16,3217180-F26/SN-30/11/16,550,AABAT TAXIS.
Children and Young Peoples Services,Education,Transport,230007,Contract Hire,08-Dec-16,3217192-103,616,ANDY CABS.
Children and Young Peoples Services,Education,Transport,230007,Contract Hire,08-Dec-16,3217208-34-30/11/16,880,BL TAXIS.
Children and Young Peoples Services,Education,Transport,230007,Contract Hire,08-Dec-16,3217275-5182/1116,899.8,ELLIOTTS OF TRIMDON.
Children and Young Peoples Services,Education,Transport,230007,Contract Hire,08-Dec-16,3217298-3545,"1,185.60",GEM TRAVEL.
Children and Young Peoples Services,Education,Transport,230007,Contract Hire,08-Dec-16,3217303-296V-17/7/16,"5,436.08",GRAHAMS MOTOR SERVICES.
Children and Young Peoples Services,Education,Transport,230007,Contract Hire,08-Dec-16,3217303-297V-17/7/16,"4,386.00",GRAHAMS MOTOR SERVICES.
Children and Young Peoples Services,Education,Transport,230007,Contract Hire,08-Dec-16,3217322-1844,748,J YOUNG T/A VIP TAXIS.
Children and Young Peoples Services,Education,Transport,230007,Contract Hire,08-Dec-16,3217322-1845,"1,334.00",J YOUNG T/A VIP TAXIS.
Children and Young Peoples Services,Education,Transport,230007,Contract Hire,08-Dec-16,3217322-1849,630,J YOUNG T/A VIP TAXIS.
Children and Young Peoples Services,Education,Transport,230007,Contract Hire,08-Dec-16,3217340-2867,"2,972.86",LEE`S COACHES LTD.
Children and Young Peoples Services,Education,Transport,230007,Contract Hire,08-Dec-16,3217340-2869,"11,000.00",LEE`S COACHES LTD.
Children and Young Peoples Services,Education,Transport,230007,Contract Hire,08-Dec-16,3217340-2871,"2,178.00",LEE`S COACHES LTD.
Children and Young Peoples Services,Education,Transport,230007,Contract Hire,08-Dec-16,3217366-MCD36039,506,MCDONALD TRAVEL.
Children and Young Peoples Services,Education,Transport,230007,Contract Hire,08-Dec-16,3217376-10,"1,995.00",MORGAN`S TRAVEL.
Children and Young Peoples Services,Education,Transport,230007,Contract Hire,08-Dec-16,3217376-9,"1,760.00",MORGAN`S TRAVEL.
Children and Young Peoples Services,Education,Transport,230007,Contract Hire,08-Dec-16,3217387-1552,630,MR PETER YOUNG.
Children and Young Peoples Services,Education,Transport,230007,Contract Hire,08-Dec-16,3217388-2016/2017,"1,320.00",MR REES WILKINSON T/A B & L MINIBUS HIRE.
Children and Young Peoples Services,Education,Transport,230007,Contract Hire,08-Dec-16,3217393-TN036,795.96,MR THOMAS G GRIFFITHS T/A TNL TAXIS.
Children and Young Peoples Services,Education,Transport,230007,Contract Hire,08-Dec-16,3217445-326,874,PREMIER PRIVATE HIRE.
Children and Young Peoples Services,Education,Transport,230007,Contract Hire,08-Dec-16,3217521-01216,676.17,TRANSPORT.ADVENTURE.XI.
Children and Young Peoples Services,Education,Transport,230007,Contract Hire,08-Dec-16,3217540-73-1/12/16,"1,008.00",WALTONS TAXIS.
Children and Young Peoples Services,Education,Transport,230007,Contract Hire,08-Dec-16,3217553-114,"1,320.00",WHITTONSTALL TAXIS SERVICE.
Children and Young Peoples Services,Education,Transport,230003,Contract Hire,08-Dec-16,3217292-9131,"2,874.52",G & P JOHNSON LTD T/A NIGHTINGALE COACHES.
Children and Young Peoples Services,Education,Transport,230003,Contract Hire,08-Dec-16,3217292-9132,"2,244.00",G & P JOHNSON LTD T/A NIGHTINGALE COACHES.
Children and Young Peoples Services,Education,Transport,230003,Contract Hire,08-Dec-16,3217292-9133,"2,068.00",G & P JOHNSON LTD T/A NIGHTINGALE COACHES.
Children and Young Peoples Services,Education,Transport,230003,Contract Hire,08-Dec-16,3217298-3547,"1,540.00",GEM TRAVEL.
Children and Young Peoples Services,Education,Transport,230003,Contract Hire,08-Dec-16,3217327-2016/24,"1,813.76",JM HUMBLE COACH HIRE.
Children and Young Peoples Services,Education,Transport,230009,Contract Hire,08-Dec-16,3217322-1840,528,J YOUNG T/A VIP TAXIS.
Children and Young Peoples Services,Education,Transport,230009,Contract Hire,08-Dec-16,3217433-DCC/7271/11/2016,990,PB PRIVATE HIRE.
Children and Young Peoples Services,Education,Transport,230006,Contract Hire,08-Dec-16,3217172-111614,"1,625.00",24/7 TAXI SERVICES LTD.
Children and Young Peoples Services,Education,Transport,230006,Contract Hire,08-Dec-16,3217172-111615,510,24/7 TAXI SERVICES LTD.
Children and Young Peoples Services,Education,Transport,230006,Contract Hire,08-Dec-16,3217179-HA220783,"1,318.40",A MURRAY TRAVEL.
Children and Young Peoples Services,Education,Transport,230006,Contract Hire,08-Dec-16,3217180-F12/ST,"2,451.40",AABAT TAXIS.
Children and Young Peoples Services,Education,Transport,230006,Contract Hire,08-Dec-16,3217180-F30/GC,840,AABAT TAXIS.
Children and Young Peoples Services,Education,Transport,230006,Contract Hire,08-Dec-16,3217193-DC11/16,"1,565.00",ANDY`S TAXIS.
Children and Young Peoples Services,Education,Transport,230006,Contract Hire,08-Dec-16,3217275-E122/1116,"1,508.00",ELLIOTTS OF TRIMDON.
Children and Young Peoples Services,Education,Transport,230006,Contract Hire,08-Dec-16,3217296-0002,906.5,GAVIN ELLIOTT T/A LOCATION TAXIS.
Children and Young Peoples Services,Education,Transport,230006,Contract Hire,08-Dec-16,3217307-HT250,"1,784.00",HARRY`S TAXI`S.
Children and Young Peoples Services,Education,Transport,230006,Contract Hire,08-Dec-16,3217332-03-F671-NOV16,"1,056.00",KD TAXIS.
Children and Young Peoples Services,Education,Transport,230006,Contract Hire,08-Dec-16,3217339-1088,650,LD TAXIS.
Children and Young Peoples Services,Education,Transport,230006,Contract Hire,08-Dec-16,3217339-1089,"1,013.00",LD TAXIS.
Children and Young Peoples Services,Education,Transport,230006,Contract Hire,08-Dec-16,3217353-47,"1,188.00",LUMLEY TAXIS.
Children and Young Peoples Services,Education,Transport,230006,Contract Hire,08-Dec-16,3217354-72,"1,470.84",M BUTCHER T/A M & M`S TAXIS.
Children and Young Peoples Services,Education,Transport,230006,Contract Hire,08-Dec-16,3217382-01611,704,MR DEREK HENDERSON.
Children and Young Peoples Services,Education,Transport,230006,Contract Hire,08-Dec-16,3217394-003,"1,089.00",MT`S CABS.
Children and Young Peoples Services,Education,Transport,230006,Contract Hire,08-Dec-16,3217501-B844,990,TALBOTS TRAVEL LTD.
Children and Young Peoples Services,Education,Transport,230012,Contract Hire,08-Dec-16,3217180-F28/SS-30/11/16,979,AABAT TAXIS.
Children and Young Peoples Services,Education,Transport,230012,Contract Hire,08-Dec-16,3217181-1/11/16,"1,568.60",ABA TAXIS.
Children and Young Peoples Services,Education,Transport,230012,Contract Hire,08-Dec-16,3217322-2059.20,"1,716.00",J YOUNG T/A VIP TAXIS.
Children and Young Peoples Services,Education,Transport,230012,Contract Hire,08-Dec-16,3217353-46,"1,012.00",LUMLEY TAXIS.
Children and Young Peoples Services,Education,Transport,230012,Contract Hire,08-Dec-16,3217361-481116,"1,122.00",MARK MUSGROVE T/A MARKS TAXIS.
Children and Young Peoples Services,Education,Transport,230012,Contract Hire,08-Dec-16,3217387-1551,"1,215.40",MR PETER YOUNG.
Children and Young Peoples Services,Education,Transport,230012,Contract Hire,08-Dec-16,3217443-1219,"1,351.60",PODA LTD.
Children and Young Peoples Services,Education,Transport,230008,Contract Hire,08-Dec-16,3217172-111604,"2,156.00",24/7 TAXI SERVICES LTD.
Children and Young Peoples Services,Education,Transport,230008,Contract Hire,08-Dec-16,3217172-111608,"2,137.50",24/7 TAXI SERVICES LTD.
Children and Young Peoples Services,Education,Transport,230008,Contract Hire,08-Dec-16,3217172-111609,650,24/7 TAXI SERVICES LTD.
Children and Young Peoples Services,Education,Transport,230008,Contract Hire,08-Dec-16,3217172-111610,"1,012.00",24/7 TAXI SERVICES LTD.
Children and Young Peoples Services,Education,Transport,230008,Contract Hire,08-Dec-16,3217172-111617,"2,408.42",24/7 TAXI SERVICES LTD.
Children and Young Peoples Services,Education,Transport,230008,Contract Hire,08-Dec-16,3217176-553,630,A BARKER.
Children and Young Peoples Services,Education,Transport,230008,Contract Hire,08-Dec-16,3217176-554,515,A BARKER.
Children and Young Peoples Services,Education,Transport,230008,Contract Hire,08-Dec-16,3217179-A220781,"1,840.60",A MURRAY TRAVEL.
Children and Young Peoples Services,Education,Transport,230008,Contract Hire,08-Dec-16,3217179-EA220777,"1,469.70",A MURRAY TRAVEL.
Children and Young Peoples Services,Education,Transport,230008,Contract Hire,08-Dec-16,3217180-F10/SH-30/11/16,"1,732.50",AABAT TAXIS.
Children and Young Peoples Services,Education,Transport,230008,Contract Hire,08-Dec-16,3217180-F11/SP,"2,472.00",AABAT TAXIS.
Children and Young Peoples Services,Education,Transport,230008,Contract Hire,08-Dec-16,3217180-F14/SC,"1,957.00",AABAT TAXIS.
Children and Young Peoples Services,Education,Transport,230008,Contract Hire,08-Dec-16,3217180-F15/SF,"1,009.40",AABAT TAXIS.
Children and Young Peoples Services,Education,Transport,230008,Contract Hire,08-Dec-16,3217180-F16/SV-30/11/16,"1,009.40",AABAT TAXIS.
Children and Young Peoples Services,Education,Transport,230008,Contract Hire,08-Dec-16,3217180-F19/SA,"2,616.00",AABAT TAXIS.
Children and Young Peoples Services,Education,Transport,230008,Contract Hire,08-Dec-16,3217180-F9/SB,"1,486.80",AABAT TAXIS.
Children and Young Peoples Services,Education,Transport,230008,Contract Hire,08-Dec-16,3217207-0012,880,BL CARS.
Children and Young Peoples Services,Education,Transport,230008,Contract Hire,08-Dec-16,3217250-TOW003,995,D IRVING T/A BJ TAXIS.
Children and Young Peoples Services,Education,Transport,230008,Contract Hire,08-Dec-16,3217258-0029,"3,300.00",DAVID WALKER TAXIS.
Children and Young Peoples Services,Education,Transport,230008,Contract Hire,08-Dec-16,3217275-E014/1116,"1,757.80",ELLIOTTS OF TRIMDON.
Children and Young Peoples Services,Education,Transport,230008,Contract Hire,08-Dec-16,3217280-41,"1,586.00",EXTREME TAXI`S.
Children and Young Peoples Services,Education,Transport,230008,Contract Hire,08-Dec-16,3217280-42,"1,013.00",EXTREME TAXI`S.
Children and Young Peoples Services,Education,Transport,230008,Contract Hire,08-Dec-16,3217283-N060-003,"1,378.00",FERRYHILL VILLAGE TRAVEL.
Children and Young Peoples Services,Education,Transport,230008,Contract Hire,08-Dec-16,3217283-N071-003,"3,080.00",FERRYHILL VILLAGE TRAVEL.
Children and Young Peoples Services,Education,Transport,230008,Contract Hire,08-Dec-16,3217283-S033-003,"1,668.60",FERRYHILL VILLAGE TRAVEL.
Children and Young Peoples Services,Education,Transport,230008,Contract Hire,08-Dec-16,3217283-W053-003,"1,550.20",FERRYHILL VILLAGE TRAVEL.
Children and Young Peoples Services,Education,Transport,230008,Contract Hire,08-Dec-16,3217292-9134,"1,384.50",G & P JOHNSON LTD T/A NIGHTINGALE COACHES.
Children and Young Peoples Services,Education,Transport,230008,Contract Hire,08-Dec-16,3217292-9135,"1,810.50",G & P JOHNSON LTD T/A NIGHTINGALE COACHES.
Children and Young Peoples Services,Education,Transport,230008,Contract Hire,08-Dec-16,3217292-9136,"1,746.60",G & P JOHNSON LTD T/A NIGHTINGALE COACHES.
Children and Young Peoples Services,Education,Transport,230008,Contract Hire,08-Dec-16,3217292-9137,"1,524.40",G & P JOHNSON LTD T/A NIGHTINGALE COACHES.
Children and Young Peoples Services,Education,Transport,230008,Contract Hire,08-Dec-16,3217292-9138,"1,462.60",G & P JOHNSON LTD T/A NIGHTINGALE COACHES.
Children and Young Peoples Services,Education,Transport,230008,Contract Hire,08-Dec-16,3217292-9139,"1,339.00",G & P JOHNSON LTD T/A NIGHTINGALE COACHES.
Children and Young Peoples Services,Education,Transport,230008,Contract Hire,08-Dec-16,3217301-000026,"1,565.00",GP TAXIS.
Children and Young Peoples Services,Education,Transport,230008,Contract Hire,08-Dec-16,3217307-HT247,"1,842.80",HARRY`S TAXI`S.
Children and Young Peoples Services,Education,Transport,230008,Contract Hire,08-Dec-16,3217307-HT249,"1,950.00",HARRY`S TAXI`S.
Children and Young Peoples Services,Education,Transport,230008,Contract Hire,08-Dec-16,3217322-1839,880,J YOUNG T/A VIP TAXIS.
Children and Young Peoples Services,Education,Transport,230008,Contract Hire,08-Dec-16,3217322-1842,"1,535.85",J YOUNG T/A VIP TAXIS.
Children and Young Peoples Services,Education,Transport,230008,Contract Hire,08-Dec-16,3217322-1848,"1,133.80",J YOUNG T/A VIP TAXIS.
Children and Young Peoples Services,Education,Transport,230008,Contract Hire,08-Dec-16,3217325-1021,"1,194.80",JDS PRIVATE HIRE DURHAM.
Children and Young Peoples Services,Education,Transport,230008,Contract Hire,08-Dec-16,3217325-1025,"2,640.00",JDS PRIVATE HIRE DURHAM.
Children and Young Peoples Services,Education,Transport,230008,Contract Hire,08-Dec-16,3217325-1026,"2,395.00",JDS PRIVATE HIRE DURHAM.
Children and Young Peoples Services,Education,Transport,230008,Contract Hire,08-Dec-16,3217325-1027,"2,860.00",JDS PRIVATE HIRE DURHAM.
Children and Young Peoples Services,Education,Transport,230008,Contract Hire,08-Dec-16,3217325-1028,"3,020.00",JDS PRIVATE HIRE DURHAM.
Children and Young Peoples Services,Education,Transport,230008,Contract Hire,08-Dec-16,3217327-2016/26,"1,384.32",JM HUMBLE COACH HIRE.
Children and Young Peoples Services,Education,Transport,230008,Contract Hire,08-Dec-16,3217331-A069,"1,628.00",K & R TAXIS.
Children and Young Peoples Services,Education,Transport,230008,Contract Hire,08-Dec-16,3217332-03-N079-30/11/16,988.8,KD TAXIS.
Children and Young Peoples Services,Education,Transport,230008,Contract Hire,08-Dec-16,3217336-3C-30/11/16,"1,400.80",L & R PRIVATE HIRE.
Children and Young Peoples Services,Education,Transport,230008,Contract Hire,08-Dec-16,3217339-1086,"1,495.00",LD TAXIS.
Children and Young Peoples Services,Education,Transport,230008,Contract Hire,08-Dec-16,3217341-159,"2,728.42",LEE`S TAXIS (SACRISTON).
Children and Young Peoples Services,Education,Transport,230008,Contract Hire,08-Dec-16,3217341-160,"1,742.00",LEE`S TAXIS (SACRISTON).
Children and Young Peoples Services,Education,Transport,230008,Contract Hire,08-Dec-16,3217354-74,"2,588.34",M BUTCHER T/A M & M`S TAXIS.
Children and Young Peoples Services,Education,Transport,230008,Contract Hire,08-Dec-16,3217361-381116,"1,627.40",MARK MUSGROVE T/A MARKS TAXIS.
Children and Young Peoples Services,Education,Transport,230008,Contract Hire,08-Dec-16,3217362-03,"1,176.00",MARK SUMMERS T/A MARK`S TAXI.
Children and Young Peoples Services,Education,Transport,230008,Contract Hire,08-Dec-16,3217366-MCD36038,"3,052.50",MCDONALD TRAVEL.
Children and Young Peoples Services,Education,Transport,230008,Contract Hire,08-Dec-16,3217366-MCD36040,"1,524.40",MCDONALD TRAVEL.
Children and Young Peoples Services,Education,Transport,230008,Contract Hire,08-Dec-16,3217366-MCD36041,"1,565.60",MCDONALD TRAVEL.
Children and Young Peoples Services,Education,Transport,230008,Contract Hire,08-Dec-16,3217373-KDC-011116,"3,828.50",MJ TIMNEY T/A KDC & C&M TAXIS.
Children and Young Peoples Services,Education,Transport,230008,Contract Hire,08-Dec-16,3217375-692,"1,771.60",MOLLYS TAXIS.
Children and Young Peoples Services,Education,Transport,230008,Contract Hire,08-Dec-16,3217375-693,"2,860.00",MOLLYS TAXIS.
Children and Young Peoples Services,Education,Transport,230008,Contract Hire,08-Dec-16,3217375-695,"2,552.00",MOLLYS TAXIS.
Children and Young Peoples Services,Education,Transport,230008,Contract Hire,08-Dec-16,3217379-EL11-16,"1,831.40",MR CT WALKER T/A CW TAXIS.
Children and Young Peoples Services,Education,Transport,230008,Contract Hire,08-Dec-16,3217383-0304825,"2,535.94",MR GN ROBBINS T/A GNR MINIBUS HIRE.
Children and Young Peoples Services,Education,Transport,230008,Contract Hire,08-Dec-16,3217384-HW/11/16,"1,582.00",MR J AGAR T/A PARK TAXIS.
Children and Young Peoples Services,Education,Transport,230008,Contract Hire,08-Dec-16,3217384-SFB/11/16,"1,848.00",MR J AGAR T/A PARK TAXIS.
Children and Young Peoples Services,Education,Transport,230008,Contract Hire,08-Dec-16,3217385-1,"1,090.00",MR JOHN KNIGHTON T/A JK TAXIS.
Children and Young Peoples Services,Education,Transport,230008,Contract Hire,08-Dec-16,3217390-3-25/11/16,"1,223.60",REDACTED - PAYMENT TO INDIVIDUAL
Children and Young Peoples Services,Education,Transport,230008,Contract Hire,08-Dec-16,3217392-AA363,"2,067.38",MR T GUNN.
Children and Young Peoples Services,Education,Transport,230008,Contract Hire,08-Dec-16,3217397-025,"1,320.00",NEIL PASSMOOR T/A NEIL`S TAXI.
Children and Young Peoples Services,Education,Transport,230008,Contract Hire,08-Dec-16,3217397-25,"1,870.00",NEIL PASSMOOR T/A NEIL`S TAXI.
Children and Young Peoples Services,Education,Transport,230008,Contract Hire,08-Dec-16,3217432-DCC118,"1,656.44",PAUL`S TAXIS..
Children and Young Peoples Services,Education,Transport,230008,Contract Hire,08-Dec-16,3217432-DCC119,"2,804.00",PAUL`S TAXIS..
Children and Young Peoples Services,Education,Transport,230008,Contract Hire,08-Dec-16,3217433-DCC/M043/11/2016,865.2,PB PRIVATE HIRE.
Children and Young Peoples Services,Education,Transport,230008,Contract Hire,08-Dec-16,3217433-DCC/M117/11/2016,925,PB PRIVATE HIRE.
Children and Young Peoples Services,Education,Transport,230008,Contract Hire,08-Dec-16,3217433-DCC/N212/11/2016,744,PB PRIVATE HIRE.
Children and Young Peoples Services,Education,Transport,230008,Contract Hire,08-Dec-16,3217437-532,"1,363.20",PETERLEE EXECUTIVE CARS.
Children and Young Peoples Services,Education,Transport,230008,Contract Hire,08-Dec-16,3217437-533,"1,491.00",PETERLEE EXECUTIVE CARS.
Children and Young Peoples Services,Education,Transport,230008,Contract Hire,08-Dec-16,3217438-0492,"2,060.00",PETER`S PRIVATE HIRE/PETER BEST.
Children and Young Peoples Services,Education,Transport,230008,Contract Hire,08-Dec-16,3217438-0495,"2,178.00",PETER`S PRIVATE HIRE/PETER BEST.
Children and Young Peoples Services,Education,Transport,230008,Contract Hire,08-Dec-16,3217439-755,"3,674.01",PG TRIPS.
Children and Young Peoples Services,Education,Transport,230008,Contract Hire,08-Dec-16,3217443-1217,927,PODA LTD.
Children and Young Peoples Services,Education,Transport,230008,Contract Hire,08-Dec-16,3217499-1197,"1,394.00",TAILORMADE TRAVEL.
Children and Young Peoples Services,Education,Transport,230008,Contract Hire,08-Dec-16,3217500-1383,"1,715.60",TALBOTS TAXIS.
Children and Young Peoples Services,Education,Transport,230008,Contract Hire,08-Dec-16,3217501-B846,600,TALBOTS TRAVEL LTD.
Children and Young Peoples Services,Education,Transport,230008,Contract Hire,08-Dec-16,3217501-B847,"1,537.48",TALBOTS TRAVEL LTD.
Children and Young Peoples Services,Education,Transport,230008,Contract Hire,08-Dec-16,3217504-DCC/2016/121,"1,983.60",TAYLOR`S TAXIS.
Children and Young Peoples Services,Education,Transport,230008,Contract Hire,08-Dec-16,3217504-DCC/2016/122,"1,607.20",TAYLOR`S TAXIS.
Children and Young Peoples Services,Education,Transport,230008,Contract Hire,08-Dec-16,3217504-DCC/2016/123,"1,481.60",TAYLOR`S TAXIS.
Children and Young Peoples Services,Education,Transport,230008,Contract Hire,08-Dec-16,3217504-DCC/2016/124,"1,738.00",TAYLOR`S TAXIS.
Children and Young Peoples Services,Education,Transport,230008,Contract Hire,08-Dec-16,3217504-DCC/2016/125,"1,606.80",TAYLOR`S TAXIS.
Children and Young Peoples Services,Education,Transport,230008,Contract Hire,08-Dec-16,3217523-16,865.2,TRIDENT TAXIS.
Children and Young Peoples Services,Education,Transport,230008,Contract Hire,08-Dec-16,3217524-B103,"1,509.60",TRUDY`S.
Children and Young Peoples Services,Education,Transport,230008,Contract Hire,08-Dec-16,3217525-3-30/11/16,"1,177.00",TT TAXIS.
Children and Young Peoples Services,Education,Transport,230008,Contract Hire,08-Dec-16,3217550-WESTLEA301116,990,WESTLEA TAXIS.
Children and Young Peoples Services,Education,Third Party Payments,440999,Other Third Party Payments,08-Dec-16,3217409-127,"18,160.48",NORTHERN RIGHTS COMMUNITY INTEREST COMPANY (CIC)..
Dedicated Schools Grant,Dedicated Schools Grant,Transport,230009,Contract Hire,08-Dec-16,3217432-DCC120,"1,128.00",PAUL`S TAXIS..
Dedicated Schools Grant,Dedicated Schools Grant,Transport,230011,Contract Hire,08-Dec-16,3217172-111603,"1,232.00",24/7 TAXI SERVICES LTD.
Dedicated Schools Grant,Dedicated Schools Grant,Transport,230011,Contract Hire,08-Dec-16,3217187-0014,730,AJ`S TAXIS.
Dedicated Schools Grant,Dedicated Schools Grant,Transport,230011,Contract Hire,08-Dec-16,3217399-201,624,NEVILLE FORBES T/A FORBES TAXIS.
Dedicated Schools Grant,Dedicated Schools Grant,Transport,230011,Contract Hire,08-Dec-16,3217436-9006,"1,276.00",PEPPA`S CABS.
Dedicated Schools Grant,Dedicated Schools Grant,Transport,230010,Contract Hire,08-Dec-16,3217235-60/16,832,CLARKS TAXIS LTD.
Dedicated Schools Grant,Dedicated Schools Grant,Transport,230010,Contract Hire,08-Dec-16,3217283-PF006-001,"1,004.40",FERRYHILL VILLAGE TRAVEL.
Dedicated Schools Grant,Dedicated Schools Grant,Transport,230010,Contract Hire,08-Dec-16,3217375-690,"1,911.20",MOLLYS TAXIS.
Dedicated Schools Grant,Dedicated Schools Grant,Transport,230010,Contract Hire,08-Dec-16,3217500-1382,"1,147.60",TALBOTS TAXIS.
Dedicated Schools Grant,Dedicated Schools Grant,Supplies and Services,304259,Equipment and Materials,08-Dec-16,3217326-202974,"2,004.20",JENX LTD.
Regeneration and Local Services,Culture & Sport,Supplies and Services,304221,Equipment and Materials,08-Dec-16,3217516-52/16,"1,316.66",THRILLS & SKILLS FOR LIFE.
Regeneration and Local Services,Culture & Sport,Supplies and Services,338047,Services,08-Dec-16,3217196-15024,515,ARTS ALLIANCE DISTRIBUTION LTD.
Regeneration and Local Services,Culture & Sport,Supplies and Services,338047,Services,08-Dec-16,3217196-15025,714.67,ARTS ALLIANCE DISTRIBUTION LTD.
Regeneration and Local Services,Culture & Sport,Supplies and Services,384362,Miscellaneous Expenses,08-Dec-16,3217552-WS/771,"16,188.59",WHEELSCAPE LTD.
Regeneration and Local Services,Direct Services,Construction Work,908105,Construction work,08-Dec-16,3217175-2370,"3,600.00",A & J GUTHRIE.
Regeneration and Local Services,Direct Services,Supplies and Services,304221,Equipment and Materials,08-Dec-16,3217178-005688,534.35,A HILL & SONS LTD.
Regeneration and Local Services,Direct Services,Supplies and Services,304221,Equipment and Materials,08-Dec-16,3217287-1611-044273,635.14,FLAME HEATING SPARES LTD.
Regeneration and Local Services,Direct Services,Supplies and Services,304221,Equipment and Materials,08-Dec-16,3217287-1611-047246,"1,063.20",FLAME HEATING SPARES LTD.
Regeneration and Local Services,Direct Services,Supplies and Services,304221,Equipment and Materials,08-Dec-16,3217318-27788,"3,264.80",INTERPLAN SIGN SYSTEMS LTD.
Regeneration and Local Services,Direct Services,Supplies and Services,304221,Equipment and Materials,08-Dec-16,3217372-161721,855,MITCHELL FLOORING.
Regeneration and Local Services,Direct Services,Supplies and Services,304259,Equipment and Materials,08-Dec-16,3217257-122596,550,DAVID DIXON GARDEN MACHINERY CENTRE.
Regeneration and Local Services,Direct Services,Supplies and Services,304259,Equipment and Materials,08-Dec-16,3217274-INV000004139,"10,250.00",EGBERT H TAYLOR & CO LTD.
Regeneration and Local Services,Direct Services,Supplies and Services,304259,Equipment and Materials,08-Dec-16,3217349-547576,"3,600.00",LLOYD LTD.
Regeneration and Local Services,Direct Services,Supplies and Services,304259,Equipment and Materials,08-Dec-16,3217447-15442,"1,659.00",PROBRUSH T/A NORTHERN MUNICIPAL SPARES LTD.
Regeneration and Local Services,Direct Services,Supplies and Services,304259,Equipment and Materials,08-Dec-16,3217458-760389,"3,045.00",RICKERBY LTD.
Regeneration and Local Services,Direct Services,Supplies and Services,304259,Equipment and Materials,08-Dec-16,3217458-760391,"3,045.00",RICKERBY LTD.
Regeneration and Local Services,Direct Services,Transport,215022,Running Costs of Vehicles,08-Dec-16,3217418-205985,"3,482.98",OIL NRG LTD.
Regeneration and Local Services,Direct Services,Supplies and Services,384956,Miscellaneous Expenses,08-Dec-16,3217276-H00091929,"1,270.00",ENVIRONMENT AGENCY.
Regeneration and Local Services,Direct Services,Supplies and Services,304245,Equipment and Materials,08-Dec-16,3217411-NEI-EXP-12-2016-017,"1,200.00",NORTHUMBRIA IN BLOOM.
Regeneration and Local Services,Direct Services,Third Party Payments,430100,Rendered by Private Contractors,08-Dec-16,3217225-1860,"1,017.40",CATHEDRAL LOCK & SAFE SERVICES LTD.
Regeneration and Local Services,Direct Services,Third Party Payments,430100,Rendered by Private Contractors,08-Dec-16,3217225-1862,"1,489.20",CATHEDRAL LOCK & SAFE SERVICES LTD.
Regeneration and Local Services,Direct Services,Third Party Payments,430100,Rendered by Private Contractors,08-Dec-16,3217227-216,"3,381.00",CEILINGS DIRECT LTD.
Regeneration and Local Services,Direct Services,Third Party Payments,430100,Rendered by Private Contractors,08-Dec-16,3217420-7028-01,"3,340.50",OPUS BUILDING SERVICES LTD.
Regeneration and Local Services,Direct Services,Third Party Payments,430100,Rendered by Private Contractors,08-Dec-16,3217426-1067,816.5,PARAMOUNT CEILINGS & PARTITIONS.
Regeneration and Local Services,Direct Services,Third Party Payments,430100,Rendered by Private Contractors,08-Dec-16,3217426-1084,803,PARAMOUNT CEILINGS & PARTITIONS.
Regeneration and Local Services,Direct Services,Third Party Payments,430100,Rendered by Private Contractors,08-Dec-16,3217529-DCC/GT/17,"1,096.00",TYNE VALLEY FLOORING & CARPETS.
Regeneration and Local Services,Economic Development and Housing,Cap Exp on Grants & Other Financial Assistance (REFCUS),918401,Capital grants,08-Dec-16,3217312-RED-12-2016-046,"3,597.00",HES GROUP UK LTD.
Regeneration and Local Services,Economic Development and Housing,Cap Exp on Grants & Other Financial Assistance (REFCUS),918401,Capital grants,08-Dec-16,3217312-RED-12-2016-047,"3,765.00",HES GROUP UK LTD.
Regeneration and Local Services,Economic Development and Housing,Cap Exp on Grants & Other Financial Assistance (REFCUS),918401,Capital grants,08-Dec-16,3217435-RED-12-2016-050,"1,915.00",PEART ACCESS RAMPS.
Regeneration and Local Services,Economic Development and Housing,Cap Exp on Grants & Other Financial Assistance (REFCUS),918401,Capital grants,08-Dec-16,3217494-RED-12-2016-043,"2,982.90",SUNTER LTD.
Regeneration and Local Services,Economic Development and Housing,Cap Exp on Grants & Other Financial Assistance (REFCUS),918401,Capital grants,08-Dec-16,3217494-RED-12-2016-044,"4,973.66",SUNTER LTD.
Regeneration and Local Services,Economic Development and Housing,Cap Exp on Grants & Other Financial Assistance (REFCUS),918401,Capital grants,08-Dec-16,3217494-RED-12-2016-048,"3,428.45",SUNTER LTD.
Regeneration and Local Services,Economic Development and Housing,Cap Exp on Grants & Other Financial Assistance (REFCUS),918401,Capital grants,08-Dec-16,3217494-RED-12-2016-049,"2,575.36",SUNTER LTD.
Regeneration and Local Services,Economic Development and Housing,Cap Exp on Grants & Other Financial Assistance (REFCUS),918401,Capital grants,08-Dec-16,3217494-RED-12-2016-051,"3,425.90",SUNTER LTD.
Regeneration and Local Services,Economic Development and Housing,Supplies and Services,384700,Miscellaneous Expenses,08-Dec-16,3217200-RED-12-2016-029,"1,000.00",BEARLE EQUINE CLINIC.
Regeneration and Local Services,Economic Development and Housing,Supplies and Services,384700,Miscellaneous Expenses,08-Dec-16,3217324-RED-12-2016-040,"2,000.00",JBL SERVICES LTD.
Regeneration and Local Services,Economic Development and Housing,Supplies and Services,384700,Miscellaneous Expenses,08-Dec-16,3217429-RED-12-2016-038,"1,500.00",PAUL DEVINE T/A DEVINE MEDIA.
Regeneration and Local Services,Economic Development and Housing,Supplies and Services,384700,Miscellaneous Expenses,08-Dec-16,3217510-RED-12-2016-039,"1,500.00",TEESDALE RENEWABLES LTD.
Regeneration and Local Services,Economic Development and Housing,Supplies and Services,384700,Miscellaneous Expenses,08-Dec-16,3217543-RED-12-2016-041,"1,500.00",WEARDALE ADVENTURE CENTRE LTD.
Regeneration and Local Services,Projects and Business services,Supplies and Services,304999,Equipment and Materials,08-Dec-16,3217425-245669,"1,213.70",PALINTEST LTD.
Regeneration and Local Services,Spatial Policy Planning Assets & Environment,Construction Work,908105,Construction work,08-Dec-16,3217482-8878,699,SPOT ON DISPLAYS LTD.
Regeneration and Local Services,Spatial Policy Planning Assets & Environment,Supplies and Services,384199,Miscellaneous Expenses,08-Dec-16,3217311-424,"16,406.50",HERITAGE CONSOLIDATION LTD.
Regeneration and Local Services,Spatial Policy Planning Assets & Environment,Supplies and Services,384199,Miscellaneous Expenses,08-Dec-16,3217311-425,"17,195.00",HERITAGE CONSOLIDATION LTD.
Regeneration and Local Services,Spatial Policy Planning Assets & Environment,Supplies and Services,384199,Miscellaneous Expenses,08-Dec-16,3217311-426,"6,650.00",HERITAGE CONSOLIDATION LTD.
Regeneration and Local Services,Spatial Policy Planning Assets & Environment,Supplies and Services,338066,Services,08-Dec-16,3217295-GGD-0773,"2,041.80",GAUNT GOLF DESIGN LTD.
Regeneration and Local Services,Sport & Leisure,Supplies and Services,384362,Miscellaneous Expenses,08-Dec-16,3217552-WS/763,"23,750.00",WHEELSCAPE LTD.
Regeneration and Local Services,Sport & Leisure,Supplies and Services,384362,Miscellaneous Expenses,08-Dec-16,3217552-WS/765,"23,750.00",WHEELSCAPE LTD.
Regeneration and Local Services,Technical Services,Construction Work,908105,Construction work,08-Dec-16,3217483-622753,"2,544.64",SSE CONTRACTING LTD.
Regeneration and Local Services,Technical Services,Third Party Payments,460502,Contract Payments,08-Dec-16,3217369-2151586,"36,257.00",METEO GROUP UK LTD.
Regeneration and Local Services,Technical Services,Third Party Payments,430127,Rendered by Private Contractors,08-Dec-16,3217321-0822,"1,070.00",J & JG GILL & SONS LTD.
Regeneration and Local Services,Technical Services,Third Party Payments,430127,Rendered by Private Contractors,08-Dec-16,3217321-0846,"1,565.00",J & JG GILL & SONS LTD.
Regeneration and Local Services,Technical Services,Third Party Payments,430127,Rendered by Private Contractors,08-Dec-16,3217358-5333,528,MAKEPEACE MOTORS.
Regeneration and Local Services,Technical Services,Supplies and Services,304221,Equipment and Materials,08-Dec-16,3217185-23574973,"1,250.04",AGGREGATE INDUSTRIES UK LTD.
Regeneration and Local Services,Technical Services,Supplies and Services,304221,Equipment and Materials,08-Dec-16,3217185-24052394,752.3,AGGREGATE INDUSTRIES UK LTD.
Regeneration and Local Services,Technical Services,Supplies and Services,304221,Equipment and Materials,08-Dec-16,3217185-24052395,"1,494.41",AGGREGATE INDUSTRIES UK LTD.
Regeneration and Local Services,Technical Services,Supplies and Services,304221,Equipment and Materials,08-Dec-16,3217185-24052396,"1,102.22",AGGREGATE INDUSTRIES UK LTD.
Regeneration and Local Services,Technical Services,Supplies and Services,304221,Equipment and Materials,08-Dec-16,3217185-24052398,"1,849.60",AGGREGATE INDUSTRIES UK LTD.
Regeneration and Local Services,Technical Services,Supplies and Services,304221,Equipment and Materials,08-Dec-16,3217185-24052399,729.65,AGGREGATE INDUSTRIES UK LTD.
Regeneration and Local Services,Technical Services,Supplies and Services,304221,Equipment and Materials,08-Dec-16,3217185-24052400,"6,143.35",AGGREGATE INDUSTRIES UK LTD.
Regeneration and Local Services,Technical Services,Supplies and Services,304221,Equipment and Materials,08-Dec-16,3217363-ZDB0027785,"11,528.41",MARSHALLS MONO LTD.
Regeneration and Local Services,Technical Services,Third Party Payments,430100,Rendered by Private Contractors,08-Dec-16,3217358-5330,"4,680.00",MAKEPEACE MOTORS.
Regeneration and Local Services,Technical Services,Third Party Payments,430100,Rendered by Private Contractors,08-Dec-16,3217407-DI20257496,"2,454.79",NORTHERN POWERGRID (NORTHEAST) LTD.
Regeneration and Local Services,Technical Services,Stock,926900,Stock in hand-Inventory system,08-Dec-16,3217304-06/620228,"2,264.74",GREENHAM TRADING LTD.
Regeneration and Local Services,Transport and Contracted Services,Third Party Payments,410037,Rendered by Other Local Authorities,08-Dec-16,3217498-90008830,785.28,SWARCO TRAFFIC LTD.
Regeneration and Local Services,Transport and Contracted Services,Supplies and Services,304221,Equipment and Materials,08-Dec-16,3217347-CINV-067180,"1,286.50",LIMELIGHT SIGNS LTD.
Regeneration and Local Services,Transport and Contracted Services,Supplies and Services,304245,Equipment and Materials,08-Dec-16,3217218-023708,"1,950.00",BUDDI.
Regeneration and Local Services,Transport and Contracted Services,Supplies and Services,304245,Equipment and Materials,08-Dec-16,3217218-023709,"2,400.00",BUDDI.
Regeneration and Local Services,Transport and Contracted Services,Supplies and Services,304245,Equipment and Materials,08-Dec-16,3217218-023710,900,BUDDI.
Resources,Corporate Finance,Supplies and Services,338027,Services,08-Dec-16,3217391-267264NOV16,"1,050.00",REDACTED - PAYMENT TO INDIVIDUAL
Resources,I.C.T. Services,Vehicles Equipment Furniture and Fittings,912701,Computer equipment,08-Dec-16,3217455-INV-1256,685,REDWOOD CABLE PROJECTS.
Resources,I.C.T. Services,Supplies and Services,342033,Computers and Communications,08-Dec-16,3217558-AY84014,"3,980.00",XMA LTD.
Resources,I.C.T. Services,Supplies and Services,340001,Postages,08-Dec-16,3217463-9053304646,"11,184.10",ROYAL MAIL GROUP PLC.
Resources,I.C.T. Services,Supplies and Services,332029,Printing Stationery and Gen Off Exps,08-Dec-16,3217186-236314,"1,733.00",AGNE LTD T/A ALPHAGRAPHICS.
Resources,I.C.T. Services,Supplies and Services,332029,Printing Stationery and Gen Off Exps,08-Dec-16,3217186-236315,"1,694.00",AGNE LTD T/A ALPHAGRAPHICS.
Resources,I.C.T. Services,Supplies and Services,332029,Printing Stationery and Gen Off Exps,08-Dec-16,3217186-236316,"1,500.00",AGNE LTD T/A ALPHAGRAPHICS.
Resources,I.C.T. Services,Supplies and Services,332029,Printing Stationery and Gen Off Exps,08-Dec-16,3217186-236317,"1,623.00",AGNE LTD T/A ALPHAGRAPHICS.
Resources,I.C.T. Services,Supplies and Services,332029,Printing Stationery and Gen Off Exps,08-Dec-16,3217450-14314,544.1,RADECAL SIGNS GRAPHICS & ADVERTISING.
Resources,I.C.T. Services,Stock,926900,Stock in hand-Inventory system,08-Dec-16,3217317-3137990,626.37,INSIGHT DIRECT (UK) LTD.
Resources,I.C.T. Services,Stock,926900,Stock in hand-Inventory system,08-Dec-16,3217558-AY83830,"1,440.00",XMA LTD.
Resources,I.C.T. Services,Stock,926900,Stock in hand-Inventory system,08-Dec-16,3217558-AY86153,"1,395.00",XMA LTD.
Resources,I.C.T. Services,Supplies and Services,344137,Telephones,08-Dec-16,3217357-667651,"55,333.25",MAINTEL EUROPE LTD.
Transformation and Partnerships,Partnerships & Community Engagement Div.,Transfer Payments,525030,Other,08-Dec-16,3217243-ACE-12-2016-002,"10,000.00",COUNTY DURHAM ASSOCIATION OF LOCAL COUNCILS.
Transformation and Partnerships,Partnerships & Community Engagement Div.,Supplies and Services,304403,Equipment and Materials,08-Dec-16,3217528-W896,"9,000.00",TWO RED RUBBER THINGS.
Transformation and Partnerships,Partnerships & Community Engagement Div.,Supplies and Services,384199,Miscellaneous Expenses,08-Dec-16,3217260-1,702,DENESIDE ACTION GROUP.
Transformation and Partnerships,Planning & Performance Division,Employees,40149,Recruitment Instruction and Training,08-Dec-16,3217428-0000108040,890,PARTNERSHIP MEDIA GROUP LTD T/A UNDERSTANDING MODERNGOV.
Adult and Health Services,Head of Adults,Supplies and Services,304516,Equipment and Materials,09-Dec-16,3217624-1436/09,778.6,CABLES TAXI CONTRACTS.
Adult and Health Services,Head of Adults,Third Party Payments,470101,Purchase of Care,09-Dec-16,3217623-176/17,960,BUTTERWICK HOSPICE RETAIL LTD.
Adult and Health Services,Head of Adults,Transport,230005,Contract Hire,09-Dec-16,3217732-9154,858,G & P JOHNSON LTD T/A NIGHTINGALE COACHES.
Adult and Health Services,Planning & Service Strategy,Employees,40001,Recruitment Instruction and Training,09-Dec-16,3217652-2803034261,"3,300.00",CITY OF SUNDERLAND.
Adult and Health Services,Planning & Service Strategy,Supplies and Services,338089,Services,09-Dec-16,3217580-7,720,ALYSON CORKISH T/A BODY SHAPE MATTERS.
Adult and Health Services,Public Health,Third Party Payments,460802,Contract Payments,09-Dec-16,3217599-A83021/OCT2016HC,565,AUCKLAND MEDICAL GROUP.
Adult and Health Services,Public Health,Third Party Payments,460802,Contract Payments,09-Dec-16,3217604-A83046/OCT2016HC,"1,320.00",BARNARD CASTLE SURGERY.
Adult and Health Services,Public Health,Third Party Payments,460802,Contract Payments,09-Dec-16,3217610-A83037/OCT2016HC,955,BEWICK CRESCENT SURGERY.
Adult and Health Services,Public Health,Third Party Payments,460802,Contract Payments,09-Dec-16,3217612-A83007/OCT2016HC,790,BLACKHALL & PETERLEE PRACTICE.
Adult and Health Services,Public Health,Third Party Payments,460802,Contract Payments,09-Dec-16,3217690-A83075/OCT2016HC,630,DR KV REDDY (DENESIDE MEDICAL CENTRE).
Adult and Health Services,Public Health,Third Party Payments,460802,Contract Payments,09-Dec-16,3217716-A83045/OCT2016HC,"1,120.00",FERRYHILL & CHILTON MEDICAL PRACTICE.
Adult and Health Services,Public Health,Third Party Payments,460802,Contract Payments,09-Dec-16,3217779-A83634/OCT2016HC,505,INTRAHEALTH LTD.
Adult and Health Services,Public Health,Third Party Payments,460802,Contract Payments,09-Dec-16,3217798-A83066/OCT2016HC,525,JUBILEE MEDICAL GROUP.
Adult and Health Services,Public Health,Third Party Payments,460802,Contract Payments,09-Dec-16,3217851-A83622/OCT2016HC,720,MR R MIAH.
Adult and Health Services,Public Health,Third Party Payments,460802,Contract Payments,09-Dec-16,3217885-7510125052,651,NORTHUMBRIA HEALTHCARE NHS FOUNDATION TRUST.
Adult and Health Services,Public Health,Third Party Payments,460802,Contract Payments,09-Dec-16,3217885-7510130958,593,NORTHUMBRIA HEALTHCARE NHS FOUNDATION TRUST.
Adult and Health Services,Public Health,Third Party Payments,460802,Contract Payments,09-Dec-16,3217885-7510131000,651,NORTHUMBRIA HEALTHCARE NHS FOUNDATION TRUST.
Adult and Health Services,Public Health,Third Party Payments,460802,Contract Payments,09-Dec-16,3217887-A83618/OCT2016HC,640,OAKFIELDS HEALTH CENTRE.
Adult and Health Services,Public Health,Third Party Payments,460802,Contract Payments,09-Dec-16,3217969-A83026/IUCDQ1/201617,"2,134.57",SACRISTON SURGERY.
Adult and Health Services,Public Health,Third Party Payments,460802,Contract Payments,09-Dec-16,3218081-A83003/OCT2016HC,"1,185.00",WILLINGTON MEDICAL GROUP.
Adult and Health Services,Public Health,Third Party Payments,460803,Contract Payments,09-Dec-16,3217646-50PERCENTOFFUNDING1OCT16-MAR17,"1,283.50",CHESTER WEST & CENTRAL COMMUNITY PROJECT.
Adult and Health Services,Public Health,Premises,125009,Rents,09-Dec-16,3217870-48478163,"9,000.00",NHS PROPERTY SERVICES LTD.
Children and Young Peoples Services,Childrens Services,Supplies and Services,364340,Grants to Voluntary Organisations,09-Dec-16,3217946-CAS-12-2016-036,"1,152.00",REACH OUT CARE SUPPORT SERVICES LTD.
Children and Young Peoples Services,Childrens Services,Supplies and Services,364999,Grants to Voluntary Organisations,09-Dec-16,3217912-CAS-11-2016-134,538,PELTON FELL COMMUNITY PARTNERSHIP.
Children and Young Peoples Services,Childrens Services,Third Party Payments,425020,Rendered by Voluntary Organisations,09-Dec-16,3217623-177/17,720,BUTTERWICK HOSPICE RETAIL LTD.
Children and Young Peoples Services,Childrens Services,Supplies and Services,364358,Grants to Voluntary Organisations,09-Dec-16,3218032-CAS-12-2016-039,666,REDACTED - PAYMENT TO INDIVIDUAL
Children and Young Peoples Services,Education,Supplies and Services,384302,Miscellaneous Expenses,09-Dec-16,3217700-EE1611030,800,EARLY EDUCATION.
Children and Young Peoples Services,Education,Supplies and Services,352001,Conference Expenses,09-Dec-16,3217626-INV-39778,574.4,CAPITA CONFERENCES.*
Children and Young Peoples Services,Education,Transport,230007,Contract Hire,09-Dec-16,3217597-03502,594,ATLAS TAXIS CONSETT.
Children and Young Peoples Services,Education,Transport,230007,Contract Hire,09-Dec-16,3217653-45635,"1,650.00",CJ GRIERSON T/A GRIERSONS COACHES.
Children and Young Peoples Services,Education,Transport,230007,Contract Hire,09-Dec-16,3217724-0372,540,FMR SILVA PITA.
Children and Young Peoples Services,Education,Transport,230007,Contract Hire,09-Dec-16,3217801-00725,528,KENNAS CABS.
Children and Young Peoples Services,Education,Transport,230007,Contract Hire,09-Dec-16,3217805-1-1197,832,KT TAXIS.
Children and Young Peoples Services,Education,Transport,230007,Contract Hire,09-Dec-16,3217807-KW663,660,KWIK CABS.
Children and Young Peoples Services,Education,Transport,230007,Contract Hire,09-Dec-16,3217811-2868,"2,640.00",LEE`S COACHES LTD.
Children and Young Peoples Services,Education,Transport,230007,Contract Hire,09-Dec-16,3217828-111603,"1,650.00",MARK & JOHN CHISHOLM T/A (CHEVRON).
Children and Young Peoples Services,Education,Transport,230007,Contract Hire,09-Dec-16,3217944-45A,"1,479.59",RAYNERS COACHES.
Children and Young Peoples Services,Education,Transport,230007,Contract Hire,09-Dec-16,3217944-45C,"6,935.19",RAYNERS COACHES.
Children and Young Peoples Services,Education,Transport,230003,Contract Hire,09-Dec-16,3217737-3546,"2,161.94",GEM TRAVEL.
Children and Young Peoples Services,Education,Transport,230003,Contract Hire,09-Dec-16,3217793-2016/25,"1,111.80",JM HUMBLE COACH HIRE.
Children and Young Peoples Services,Education,Transport,230003,Contract Hire,09-Dec-16,3217964-3208/03,"1,869.00",S & S TRAVEL LTD.
Children and Young Peoples Services,Education,Transport,230009,Contract Hire,09-Dec-16,3217724-0371,600,FMR SILVA PITA.
Children and Young Peoples Services,Education,Transport,230009,Contract Hire,09-Dec-16,3217800-7301-30/11/16,630,KDH TAXIS.
Children and Young Peoples Services,Education,Transport,230006,Contract Hire,09-Dec-16,3217597-03509,742.4,ATLAS TAXIS CONSETT.
Children and Young Peoples Services,Education,Transport,230006,Contract Hire,09-Dec-16,3217743-3/2016,"1,307.00",GLEN`S TAXI.
Children and Young Peoples Services,Education,Transport,230006,Contract Hire,09-Dec-16,3217801-00727,770,KENNAS CABS.
Children and Young Peoples Services,Education,Transport,230006,Contract Hire,09-Dec-16,3217849-KDKWOL/3,"1,584.00",MR I KELSEY.
Children and Young Peoples Services,Education,Transport,230006,Contract Hire,09-Dec-16,3217959-0035,"1,810.50",RONS TAXI (CHESTER LE ST).
Children and Young Peoples Services,Education,Transport,230006,Contract Hire,09-Dec-16,3217960-1687,"1,182.00",RON`S TAXIS (FISHBURN).
Children and Young Peoples Services,Education,Transport,230006,Contract Hire,09-Dec-16,3217964-W085/14,"1,957.00",S & S TRAVEL LTD.
Children and Young Peoples Services,Education,Transport,230012,Contract Hire,09-Dec-16,3217573-O332,"2,904.00",ABC & OUSTON CABS.
Children and Young Peoples Services,Education,Transport,230012,Contract Hire,09-Dec-16,3217573-O333,"1,848.00",ABC & OUSTON CABS.
Children and Young Peoples Services,Education,Transport,230012,Contract Hire,09-Dec-16,3217828-111606,"1,339.85",MARK & JOHN CHISHOLM T/A (CHEVRON).
Children and Young Peoples Services,Education,Transport,230012,Contract Hire,09-Dec-16,3217850-N053/11/16,"1,710.00",MR M ALLISON T/A MACBETH TAXIS/COACHES.
Children and Young Peoples Services,Education,Transport,230012,Contract Hire,09-Dec-16,3217987-72295,"1,744.00",SHOTTON PRIVATE HIRE.
Children and Young Peoples Services,Education,Transport,230012,Contract Hire,09-Dec-16,3217992-506-W119,"2,299.00",SIMONS TAXIS.
Children and Young Peoples Services,Education,Transport,230008,Contract Hire,09-Dec-16,3217564-N17301116,"2,180.00",1ST AID COMMERCIALS LTD.
Children and Young Peoples Services,Education,Transport,230008,Contract Hire,09-Dec-16,3217564-N64301116,"2,343.00",1ST AID COMMERCIALS LTD.
Children and Young Peoples Services,Education,Transport,230008,Contract Hire,09-Dec-16,3217573-O331,"1,254.00",ABC & OUSTON CABS.
Children and Young Peoples Services,Education,Transport,230008,Contract Hire,09-Dec-16,3217801-00728,"1,034.00",KENNAS CABS.
Children and Young Peoples Services,Education,Transport,230008,Contract Hire,09-Dec-16,3217807-KW664,514.2,KWIK CABS.
Children and Young Peoples Services,Education,Transport,230008,Contract Hire,09-Dec-16,3217807-KW665,"1,236.00",KWIK CABS.
Children and Young Peoples Services,Education,Transport,230008,Contract Hire,09-Dec-16,3217807-KW666,660,KWIK CABS.
Children and Young Peoples Services,Education,Transport,230008,Contract Hire,09-Dec-16,3217807-KW667,"1,125.00",KWIK CABS.
Children and Young Peoples Services,Education,Transport,230008,Contract Hire,09-Dec-16,3217807-KW668,"1,030.00",KWIK CABS.
Children and Young Peoples Services,Education,Transport,230008,Contract Hire,09-Dec-16,3217815-3027,"2,678.00",LOCAL TRANSPORT LTD.
Children and Young Peoples Services,Education,Transport,230008,Contract Hire,09-Dec-16,3217828-111608,"1,638.00",MARK & JOHN CHISHOLM T/A (CHEVRON).
Children and Young Peoples Services,Education,Transport,230008,Contract Hire,09-Dec-16,3217844-CEW33,"1,870.00",MOOR PRIVATE HIRE.
Children and Young Peoples Services,Education,Transport,230008,Contract Hire,09-Dec-16,3217850-A067/11/16,"1,512.00",MR M ALLISON T/A MACBETH TAXIS/COACHES.
Children and Young Peoples Services,Education,Transport,230008,Contract Hire,09-Dec-16,3217906-03,"1,554.27",PAUL ROSE T/A PAUL`S TAXIS.
Children and Young Peoples Services,Education,Transport,230008,Contract Hire,09-Dec-16,3217960-1685,"1,526.00",RON`S TAXIS (FISHBURN).
Children and Young Peoples Services,Education,Transport,230008,Contract Hire,09-Dec-16,3217964-S017/03,"1,730.40",S & S TRAVEL LTD.
Children and Young Peoples Services,Education,Transport,230008,Contract Hire,09-Dec-16,3217964-W048/03,"1,833.40",S & S TRAVEL LTD.
Children and Young Peoples Services,Education,Transport,230008,Contract Hire,09-Dec-16,3217964-W052/03,"1,957.00",S & S TRAVEL LTD.
Children and Young Peoples Services,Education,Transport,230008,Contract Hire,09-Dec-16,3217964-W056/03,"1,730.40",S & S TRAVEL LTD.
Children and Young Peoples Services,Education,Transport,230008,Contract Hire,09-Dec-16,3218018-3-E002,"1,442.00",STEELYS TAXIS.
Children and Young Peoples Services,Education,Supplies and Services,338035,Services,09-Dec-16,3217861-INV223430,"1,210.00",NCFE-CACHE.
Children and Young Peoples Services,Education,Supplies and Services,338035,Services,09-Dec-16,3217861-INV223431,"1,485.00",NCFE-CACHE.
Children and Young Peoples Services,Education,Third Party Payments,440999,Other Third Party Payments,09-Dec-16,3217720-PD/16/YR2-3,"5,152.00",FIRST POINT TRAINING T/A POSITIVE DIRECTIONS.
Children and Young Peoples Services,Education,Third Party Payments,440999,Other Third Party Payments,09-Dec-16,3217947-4100525163,767.04,REAL LIVES REAL CHOICES.
Children and Young Peoples Services,Education,Third Party Payments,440999,Other Third Party Payments,09-Dec-16,3217947-4100525417,"1,730.63",REAL LIVES REAL CHOICES.
Children and Young Peoples Services,Education,Supplies and Services,338094,Services,09-Dec-16,3217563-1800281,"1,008.00",1LIFE MANAGEMENT SOLUTIONS LTD.
Dedicated Schools Grant,Dedicated Schools Grant,Transport,230010,Contract Hire,09-Dec-16,3217828-111601,"1,565.60",MARK & JOHN CHISHOLM T/A (CHEVRON).
Dedicated Schools Grant,Dedicated Schools Grant,Transport,230010,Contract Hire,09-Dec-16,3217828-111602,"1,565.60",MARK & JOHN CHISHOLM T/A (CHEVRON).
Regeneration and Local Services,Culture & Sport,Supplies and Services,324001,Provisions,09-Dec-16,3217630-843259128,"1,710.46",CARLSBERG UK LTD.
Regeneration and Local Services,Culture & Sport,Supplies and Services,324117,Provisions,09-Dec-16,3218000-28941,557.8,SNOWSHOCK LTD.
Regeneration and Local Services,Culture & Sport,Premises,145023,Cleaning and Domestic Supplies,09-Dec-16,3217748-08/513903,830.97,GREENHAM TRADING LTD.
Regeneration and Local Services,Culture & Sport,Supplies and Services,338047,Services,09-Dec-16,3217875-600,"2,920.28",NO THIRD ENTERTAINMENTS LTD.
Regeneration and Local Services,Culture & Sport,Supplies and Services,338047,Services,09-Dec-16,3218061-GB16B0140210,"3,295.25",TWENTIETH CENTURY FOX FILM COMPANY LTD.
Regeneration and Local Services,Culture & Sport,Supplies and Services,338047,Services,09-Dec-16,3218061-GB16B0140435,940.5,TWENTIETH CENTURY FOX FILM COMPANY LTD.
Regeneration and Local Services,Culture & Sport,Supplies and Services,338047,Services,09-Dec-16,3218061-GB16B0141472,575.5,TWENTIETH CENTURY FOX FILM COMPANY LTD.
Regeneration and Local Services,Culture & Sport,Supplies and Services,384999,Miscellaneous Expenses,09-Dec-16,3218001-GDB000104,"2,188.32",SOCIETY OF LONDON THEATRE.
Regeneration and Local Services,Culture & Sport,Supplies and Services,384199,Miscellaneous Expenses,09-Dec-16,3218008-INV-10181,"4,441.95",SPEKTRIX LTD.
Regeneration and Local Services,Direct Services,Third Party Payments,460305,Contract Payments,09-Dec-16,3217659-2982,"1,260.00",CO-WHEELS CAR CLUB CIC.
Regeneration and Local Services,Direct Services,Transport,215005,Running Costs of Vehicles,09-Dec-16,3217891-206481,"13,798.50",OIL NRG LTD.
Regeneration and Local Services,Direct Services,Transport,215005,Running Costs of Vehicles,09-Dec-16,3217891-206485,"3,726.42",OIL NRG LTD.
Regeneration and Local Services,Direct Services,Supplies and Services,304221,Equipment and Materials,09-Dec-16,3217721-1611-047600,756.11,FLAME HEATING SPARES LTD.
Regeneration and Local Services,Direct Services,Supplies and Services,304221,Equipment and Materials,09-Dec-16,3217817-3903905,995.86,LONDON GENERAL SALES LTD.
Regeneration and Local Services,Direct Services,Supplies and Services,304221,Equipment and Materials,09-Dec-16,3217874-31743,749,NLS SECURITY LTD T/A ESAFES.
Regeneration and Local Services,Direct Services,Supplies and Services,304221,Equipment and Materials,09-Dec-16,3217902-XL185728,"1,271.30",PARK ELECTRICAL DISTRIBUTORS LTD.
Regeneration and Local Services,Direct Services,Supplies and Services,304221,Equipment and Materials,09-Dec-16,3217984-593173,651.6,SHERBURN STONE CO LTD.
Regeneration and Local Services,Direct Services,Supplies and Services,304221,Equipment and Materials,09-Dec-16,3218055-30765,"2,150.00",TOTAL PUMP SOLUTIONS LTD.
Regeneration and Local Services,Direct Services,Supplies and Services,304221,Equipment and Materials,09-Dec-16,3218073-83325,"2,695.14",VISION TECHNIQUES (UK) LTD.
Regeneration and Local Services,Direct Services,Transport,210057,Repair and Maintenance of Vehicles,09-Dec-16,3218095-SI82908,871.5,ZOELLER WASTE SYSTEMS LTD.
Regeneration and Local Services,Direct Services,Transport,215022,Running Costs of Vehicles,09-Dec-16,3217891-206484,942.13,OIL NRG LTD.
Regeneration and Local Services,Direct Services,Transport,215022,Running Costs of Vehicles,09-Dec-16,3217891-206488,942.6,OIL NRG LTD.
Regeneration and Local Services,Direct Services,Premises,108135,Service Repairs and Maintenance,09-Dec-16,3217794-00323,"1,360.00",JN KEARTON.
Regeneration and Local Services,Direct Services,Third Party Payments,430100,Rendered by Private Contractors,09-Dec-16,3217621-82580789,"1,662.32",BRISTOL STREET MOTORS.
Regeneration and Local Services,Direct Services,Third Party Payments,430100,Rendered by Private Contractors,09-Dec-16,3217703-R022817,"5,911.64",ECON ENGINEERING LTD.
Regeneration and Local Services,Direct Services,Third Party Payments,430100,Rendered by Private Contractors,09-Dec-16,3217766-66023,"1,456.50",HOGARTH COACHWORKS LTD.
Regeneration and Local Services,Direct Services,Third Party Payments,430100,Rendered by Private Contractors,09-Dec-16,3217806-3944,"1,075.00",KTD NE LTD.
Regeneration and Local Services,Direct Services,Third Party Payments,430100,Rendered by Private Contractors,09-Dec-16,3217878-1386156,919.23,NORTH EAST TRUCK & VAN LTD.
